Workbook

Sheet Nagłówek
A1: Nagłówek
F2: =IF(NumerWariantuRaportu = 5,teksty!D269 & " ","") & teksty!D276 -> sprawozdanie finansowe
F5: =teksty!D281 -> dla:
B6: =IF(Wprowadzenie!$I$4="",teksty!$D$275,Wprowadzenie!$I$4) -> Przedsiębiorstwo "Test" Sp. z o.o.
F7: =teksty!D283 -> za okres:
E8: 2017-01-01 | F8: =teksty!D286 -> - | G8: 2017-12-31
D9: =IF(ISNONTEXT(DataOd),"",teksty!$D$284) ->  | G9: =IF(ISNONTEXT(DataDo),"",teksty!$D$285) -> 
E10: =IF(D9 <> "",TODAY(),"") ->  | I10: =IF(G9 <> "",TODAY(),"") -> 
F11: =teksty!D280 -> Data sporządzenia: | G11: 2018-10-12
E13: =teksty!D279 -> Wszystkie kwoty tego raportu są podane w: | F13: =VLOOKUP(techniczne!G2,BazyKwot,3) -> złotych
E16: =teksty!D278 -> Raport przygotowano w układzie: | F16: =VLOOKUP(techniczne!F2,ListaWariantowRaportow,3) -> dla większego przedsiębiorstwa ("Jednostka Inna")
B27: =teksty!D15 -> Etykiety skoroszytu w:
C33: Etykiety skoroszytu w języku:

Sheet Wprowadzenie
A1: Wprowadzenie | L1: 4 | M1: =VLOOKUP(WybranaPozycja,teksty!B97:E102,2) -> JednostkaInna
G2: =teksty!$D$288 -> Wprowadzenie do sprawozdania finansowego
E3: P_1
E4: P_1A | H4: =IF(WybranaPozycja=6,teksty!$D$347,teksty!$D$291) -> Nazwa jednostki | I4: Przedsiębiorstwo "Test" Sp. z o.o.
S5: =teksty!$D$263 -> Pola obowiązkowe:
S7: =teksty!$D$264 -> Pola opcjonalne:
A8: =64 -> 64 | G8: =teksty!$D$350 -> Położenie siedziby jednostki dominującej:
A9: =64 -> 64
A10: =2+4+16+32 -> 54 | G10: =teksty!$D$298 -> Dokładny adres siedziby (w Polsce):
A11: 54
A12: 54 | H12: =teksty!$D$299 -> Ulica | I12: Fabryczna
A13: 54
A14: 54 | H14: =teksty!$D$300 -> Nr domu | I14: 20 | J14: =teksty!$D$301 -> Nr lokalu
A15: 54
H16: =teksty!$D$308 -> Miejscowość | I16: Kąty Wrocławskie
A18: 54 | H18: =teksty!$D$303 -> Poczta | I18: Kąty Wrocławskie | K18: =teksty!$D$302 -> Kod pocztowy | L18: 55-080 | N18: =teksty!$D$306 -> Kod kraju | O18: PL
A19: 54
H20: =teksty!$D$295 -> Gmina | I20: Kąty Wrocławskie
H22: =teksty!$D$294 -> Powiat | I22: Wrocławski
H24: =teksty!$D$293 -> Województwo | I24: Dolnośląskie
A25: 54
A26: 54 | E26: P_1B | G26: =teksty!$D$305 -> Adres przedsiębiorcy zagranicznego (opcjonalny):
A27: 54
A28: 54 | H28: =teksty!$D$299 -> Ulica
A29: 54
A30: 54 | H30: =teksty!$D$300 -> Nr domu | J30: =teksty!$D$301 -> Nr lokalu
A31: 54
A32: 54 | H32: =teksty!$D$308 -> Miejscowość | K32: =teksty!$D$302 -> Kod pocztowy | N32: =teksty!$D$306 -> Kod kraju
A33: 54
A34: 64
A35: =64 -> 64 | E35: P_1B | I35: =teksty!$D$349 -> Podstawowy przedmiot działalności jednostki dominującej:
A36: =64 -> 64
A37: =64 -> 64
A38: =64 -> 64
A39: =64 -> 64
A40: =2+16 -> 18 | E40: P_1C | G40: =teksty!$D$312 -> Podstawowy przedmiot działalności:
A41: 18
A42: 18 | H42: =teksty!$D$313 -> kod(y) PKD | I42: 5110Z
A43: 18
A44: 18
A45: 18
A46: 18
A47: 18
A48: 18
G49: =teksty!$D$314 -> Identyfikator podmiotu:
A50: =2+4+16+32 -> 54
A51: 54 | D51: 1 | E51: =OFFSET(P_Labels, D51,WybranaPozycja) -> P_1D | I51: =VLOOKUP(techniczne!E3,ListaRodzajowId,3) -> numer KRS | J51: 0123456789 | K51: =teksty!D315 -> (Wpisz numer KRS dla sprawozdań dla eKRS, a numer NIP - dla wysyłanych do KAS)
A52: 54
A53: =64 -> 64
A54: =64 -> 64 | E54: P_1C | H54: =teksty!D348 -> Numer KRS
A55: =64 -> 64
A56: =2+4+16+32 -> 54 | D56: 2 | E56: =OFFSET(P_Labels, D56, WybranaPozycja) -> P_2 | G56: =teksty!$D$316 -> Czas trwania działalności jednostki (jeśli ograniczony):
A57: =2+4+16+32 -> 54 | I57: 2
A58: =2+4+16+32 -> 54 | H58: =teksty!$D$317 -> Od dnia
A59: =2+4+16+32 -> 54
A60: 54 | H60: =teksty!$D$319 -> Do
A61: 54
A62: 54 | I62: 2
A63: 54
A64: 54 | E64: P_3 | G64: =teksty!D322 -> Wskazanie okresu objętego sprawozdaniem finansowym:
A65: =2+4+16+32 -> 54 | I65: 2
A66: =2+4+16+32 -> 54 | I66: =teksty!D323 -> (w pola tej sekcji jest kopiowany okres wpisany w nagłówku sprawozdania)
A67: =2+4+16+32 -> 54
A68: 54 | I68: =teksty!$D$317 -> Od dnia | K68: =teksty!$D$318 -> Do dnia
A69: 54 | I69: =IF(DataOd="","",DataOd) -> 2017-01-01 | K69: =IF(DataDo="","",DataDo) -> 2017-12-31
A70: =2+16+32 -> 50
A71: =4 -> 4
A72: =2+4 -> 6 | D72: 8 | E72: =OFFSET(P_Labels, D72, WybranaPozycja) -> P_9 | G72: =teksty!$D$344 -> Zastosowane zasad rachunkowości przewidzianych dla mniejszych jednostek:
A73: =2+4 -> 6
A74: 6 | I74: =teksty!D345 -> Wyszczególnienie wybranych uproszczeń:
A75: 6
A76: 6 | I76: 2
A77: 6
A78: 6
A79: =2+16+64 -> 82 | D79: 5 | E79: =OFFSET(P_Labels, D79, WybranaPozycja) -> P_4 | G79: =teksty!$D$321 -> Włączenie danych wewnętrznych jednostek organizacyjnych:
A80: 82 | I80: 2
A81: 82 | I81: =IF(WybranaPozycja=6,teksty!$D$382,teksty!$D$324) -> Wskazanie, że sprawozdanie finansowe zawiera dane łączne, jeżeli w skład jednostki wchodzą wewnętrzne jednostki organizacyjne sporządzające samodzielne sprawozdania finansowe:
A82: 82 | I82: =teksty!$D$325 -> Czy sprawozdanie zawiera także łączne dane samodzielnych jednostek organizacyjnych?
A83: 82 | I83: 2
A84: 82
A85: 82
D86: 6 | E86: =OFFSET(P_Labels, D86, WybranaPozycja) -> P_5 | G86: =teksty!$D$326 -> Założenie kontynuacji działalności jednostki:
E88: =$E$86 & "A" -> P_5A | I88: =IF(WybranaPozycja=6,teksty!D383,teksty!$D$329) -> Czy sprawozdanie finansowe zostało sporządzone przy założeniu kontynuowania działalności gospodarczej przez jednostkę w dającej się przewidzieć przyszłości?
I89: 1
E91: =$E$86 & "B" -> P_5B | I91: =IF(WybranaPozycja=6,teksty!D384,teksty!$D$330) -> Czy nie istnieją okoliczności wskazujące na zagrożenie kontynuowania przez nią działalności?
I92: 1 | J92: =teksty!D385 -> odpowiedź "Nie" oznacza, że ISTNIEJĄ takie okoliczności
I94: =teksty!$D$331 -> Jeżeli tak - to jakie to okoliczności?
E95: =$E$86 & "C" -> P_5C
I96: 2
A98: =2+4+16+32 -> 54
A99: =2+16+64 -> 82 | D99: 7 | E99: =OFFSET(P_Labels, D99, WybranaPozycja) -> P_6 | G99: =teksty!$D$332 -> Łączenie spółek:
A100: =2+16+64 -> 82 | I100: =IF(WybranaPozycja=6,teksty!$D$377,teksty!$D$333) -> Czy to sprawozdanie finansowe sporządzono za okres, w ciągu którego nastąpiło połączenie spółek?
A101: 82 | I101: 2
A102: 82 | I102: 2
A103: 82 | I103: =IF(WybranaPozycja=6,teksty!D378,teksty!$D$334) -> Czy sprawozdanie sporządzono po połączeniu spółek?
A104: 82 | E104: =$E$99 & "A" -> P_6A
A105: 82
A106: 82 | I106: =teksty!$D$335 -> Zastosowana metoda rozliczenia połączenia (nabycia, łączenia udziałów)
A107: 82 | E107: =$E$99 & "B" -> P_6B
D109: 9 | E109: =OFFSET(P_Labels, D109, WybranaPozycja) -> P_7 | G109: =teksty!$D$336 -> Zasady (polityka) rachunkowości:
E110: =$E$109 & "A" -> P_7A | I110: =teksty!$D$338 -> Omówienie przyjętych zasad polityki rachunkowości:
I111: Szczegółowy opis polityki rachunkowości znajduje się w sekcji "Dodatkowe informacje i objaśnienia", w Załączniku 1 (plik polityka_rachunkowosci.pdf)
H115: =teksty!$D$337 -> w tym:
A116: =64 -> 64 | E116: =$E$109 & "B" -> P_7B | I116: =teksty!$D$380 -> zasady grupowania operacji gospodarczych:
A117: =64 -> 64
A118: =64 -> 64
A119: =64 -> 64
A120: =64 -> 64
D121: 10 | E121: =OFFSET(P_Labels, D121, WybranaPozycja) -> P_7B | I121: =teksty!$D$339 -> metody wyceny aktywów i pasywów:
I122: Kompletny opis wyceny aktywów i pasywów znajduje się w Załączniku 1 (plik "polityka_rachunkowosci.pdf). W szczególności metody wyceny: * Wartości niematerialnych i prawnych: por. Załącznik 1, sekcja III * Środków trwałych: por. Załącznik 1, sekcja IV * Inwestycje w nieruchomości i prawa wycenia się w cenie nabycia * Należności: po. Załącznik 1, sekcja VI * Zapasy: por. Załącznik 1, sekcja VII * Kosztów działalności operacyjnej: por. Załącznik 1, skecja VIII * Aktywa i pasywa w walutach obcych: por. Załącznik 1, sekcja IX
A132: =64 -> 64 | E132: =$E$109 & "D" -> P_7D | I132: =teksty!$D$381 -> dokonywania amortyzacji:
A133: =64 -> 64
A134: =64 -> 64
A135: =64 -> 64
A136: =64 -> 64
A137: =2+16+64 -> 82 | D137: 11 | E137: =OFFSET(P_Labels, D137, WybranaPozycja) -> P_7C | I137: =teksty!$D$340 -> ustalenia wyniku finansowego:
A138: =2+16+64 -> 82 | I138: Zgodnie z polityką rachunkowości przedsiębiorstwa - patrz Załącznik 1.
A139: 82
A140: 82
A141: 82
A142: 82 | D142: 12 | E142: =OFFSET(P_Labels, D142, WybranaPozycja) -> P_7D | I142: =IF(WybranaPozycja=6,teksty!D386,teksty!D341) -> ustalenia sposobu sporządzania sprawozdania finansowego:
A143: 82 | I143: Zgodnie z polityką rachunkowości przedsiębiorstwa - patrz Załącznik 1.
A144: 82
A145: 82
A146: 82
A147: =4+32 -> 36 | E147: =$E$109 & "C" -> P_7C | I147: =teksty!D343 -> ustalenia wyniku finansowego oraz sposobu sporządzenia sprawozdania finansowego:
A148: =4+32 -> 36
A149: 36
A150: 36
A151: 36
A152: =64 -> 64 | E152: P_12 | I152: =teksty!D387 -> Zmiany zasad rachunkowości wprowadzone w trakcie raportowanego okresu:
A153: =64 -> 64 | I153: =teksty!D388 -> Zmiany dokonane od pierwszego dnia okresu raportu, w szczególności zasad grupowania operacji gospodarczych, metod wyceny aktywów i pasywów, dokonywania odpisów amortyzacyjnych, ustalania wyniku finansowego i sporządzania jednostkowych sprawozdań finansowych oraz skonsolidowanego sprawozdania finansowego wraz z podaniem ich przyczyny
A154: =64 -> 64
A155: =64 -> 64
A156: =64 -> 64
A157: =64 -> 64
A158: =64 -> 64 | E158: P_13 | I158: =teksty!D389 -> Kryteria wyłączeń jednostek podporządkowanych ze sprawozdania skonsolidowanego:
A159: =64 -> 64
A160: =64 -> 64
A161: =64 -> 64
D163: 13 | E163: =OFFSET(P_Labels, D163, WybranaPozycja) -> P_8 | G163: =teksty!$D$392 -> Informacja uszczegóławiająca:
H165: =teksty!$D$393 -> Nazwa pozycji | I165: Uwagi dodatkowe
H167: =teksty!$D$394 -> Opis | I167: brak
H171: =teksty!$D$393 -> Nazwa pozycji
H173: =teksty!$D$394 -> Opis
H177: =teksty!$D$393 -> Nazwa pozycji
H179: =teksty!$D$394 -> Opis
H183: =teksty!$D$393 -> Nazwa pozycji
H185: =teksty!$D$394 -> Opis
I1697: 2

Sheet Bilans
A1: Bilans | C1: Poziom | F1: Składniki | J1: (pełen symbol) | K1: (wyświetlana etykieta) | R1: 1 | S1: =VLOOKUP(WybranaPozycja,teksty!B106:F111,2) -> JednostkaInna
M2: =teksty!$D$397 -> Bilans
J3: Aktywa | N3: =Wprowadzenie!$I$4 & " " & IF(NumerWariantuRaportu = 5, teksty!$D$270, "") -> Przedsiębiorstwo "Test" Sp. z o.o. | X3: =teksty!D265 & VLOOKUP(NumerBazyRaportu,BazyKwot,3) -> wszystkie kwoty w złotych
A5: =(2+16) -> 18 | J5: JednostkaInna | N5: =teksty!$D$401 -> Aktywa | U5: =IF(DataDo = "","",teksty!$D$398) -> Stan na: | V5: =IF(DataDo = "",teksty!$D$930,DataDo) -> 2017-12-31 | W5: =IF(DataOd = "",teksty!$D$931,DataOd-1) -> 2016-12-31 | X5: =teksty!$D$273 -> Przekszt. dane porów. za poprzedni okres
A6: 18 | C6: =COUNTA(D6:H6) -> 1 | D6: A | J6: =$J$3&":"&$D6 -> Aktywa:A | K6: =D6 -> A | N6: =K6 -> A | O6: =teksty!$D$402 -> Aktywa trwałe | V6: =V7+V12+V21+V25+V46 -> 12936936.73 | W6: =W7+W12+W21+W25+W46 -> 2880167.46
A7: 18 | C7: =COUNTA(D7:H7) -> 2 | D7: =D6 -> A | E7: I | J7: =$J$3&":"&$D7&"."&E7 -> Aktywa:A.I | K7: =E7 -> I | N7: =K7 -> I | O7: =teksty!$D$403 -> Wartości niematerialne i prawne | V7: =V8+V9+V10+V11 -> 28645.97 | W7: =W8+W9+W10+W11 -> 17940.56
A8: 18 | C8: 3 | D8: A | E8: =E7 -> I | F8: 1 | J8: =$J$3&":"&$D8&"."&E8&"."&F8 -> Aktywa:A.I.1 | K8: =F8 -> 1 | N8: =K8 -> 1 | O8: =teksty!$D$404 -> Koszty zakończonych prac rozwojowych
A9: 18 | C9: 3 | D9: A | E9: =E8 -> I | F9: 2 | J9: =$J$3&":"&$D9&"."&E9&"."&F9 -> Aktywa:A.I.2 | K9: =F9 -> 2 | N9: =K9 -> 2 | O9: =teksty!$D$405 -> Wartość firmy
A10: 18 | C10: 3 | D10: A | E10: =E9 -> I | F10: 3 | J10: =$J$3&":"&$D10&"."&E10&"."&F10 -> Aktywa:A.I.3 | K10: 3 | N10: 3 | O10: =teksty!$D$406 -> Inne wartości niematerialne i prawne | V10: 28645.97 | W10: 17940.56
A11: 18 | C11: 3 | D11: A | E11: =E10 -> I | F11: 4 | J11: =$J$3&":"&$D11&"."&E11&"."&F11 -> Aktywa:A.I.4 | K11: 4 | N11: =K11 -> 4 | O11: =teksty!$D$407 -> Zaliczki na wartości niematerialne i prawne
A12: 18 | C12: 2 | D12: A | E12: II | J12: =$J$3&":"&$D12&"."&E12 -> Aktywa:A.II | K12: =E12 -> II | N12: II | O12: =teksty!$D$408 -> Rzeczowe aktywa trwałe | V12: =V13+V19+V20 -> 12690521.77 | W12: =W13+W19+W20 -> 2831226.35
A13: 18 | C13: 3 | D13: A | E13: =E12 -> II | F13: 1 | J13: =$J$3&":"&$D13&"."&E13&"."&F13 -> Aktywa:A.II.1 | K13: =F13 -> 1 | N13: 1 | O13: =teksty!$D$409 -> Środki trwałe | V13: =V14+V15+V16+V17+V18 -> 12690521.77 | W13: =W14+W15+W16+W17+W18 -> 1364234.91
A14: 18 | C14: 4 | D14: A | E14: =E13 -> II | F14: =F13 -> 1 | G14: a | J14: =$J$3&":"&$D14&"."&E14&"."&F14&"."&G14 -> Aktywa:A.II.1.a | K14: =G14 &")" -> a) | N14: a) | O14: =teksty!$D$410 -> grunty (w tym prawo użytkowania wieczystego gruntu) | V14: 457047.4 | W14: 458547.4
A15: 18 | C15: 4 | D15: A | E15: =E14 -> II | F15: =F14 -> 1 | G15: b | J15: =$J$3&":"&$D15&"."&E15&"."&F15&"."&G15 -> Aktywa:A.II.1.b | K15: =G15 &")" -> b) | N15: =K15 -> b) | O15: =teksty!$D$411 -> budynki, lokale, prawa do lokali i obiekty inżynierii lądowej i wodnej | V15: 10247021.73 | W15: 212500.28
A16: 18 | C16: 4 | D16: =D15 -> A | E16: =E15 -> II | F16: =F15 -> 1 | G16: c | J16: =$J$3&":"&$D16&"."&E16&"."&F16&"."&G16 -> Aktywa:A.II.1.c | K16: =G16 &")" -> c) | N16: =K16 -> c) | O16: =teksty!$D$412 -> urządzenia techniczne i maszyny | V16: 1373774.38 | W16: 537208.97
A17: 18 | C17: 4 | D17: A | E17: II | F17: 1 | G17: d | J17: =$J$3&":"&$D17&"."&E17&"."&F17&"."&G17 -> Aktywa:A.II.1.d | K17: d) | N17: d) | O17: =teksty!$D$413 -> środki transportu | V17: 497635.74 | W17: 113668.99
A18: 18 | C18: =COUNTA(D18:H18) -> 4 | D18: A | E18: II | F18: 1 | G18: e | J18: =$J$3&":"&$D18&"."&E18&"."&F18&"."&G18 -> Aktywa:A.II.1.e | K18: e) | N18: e) | O18: =teksty!$D$414 -> inne środki trwałe | V18: 115042.52 | W18: 42309.27
A19: 18 | C19: 3 | D19: =D18 -> A | E19: =E18 -> II | F19: 2 | J19: =$J$3&":"&$D19&"."&E19&"."&F19 -> Aktywa:A.II.2 | K19: =F19 -> 2 | N19: 2 | O19: =teksty!$D$415 -> Środki trwałe w budowie | V19: 0 | W19: 1466991.44
A20: 18 | C20: 3 | D20: =D19 -> A | E20: =E19 -> II | F20: 3 | J20: =$J$3&":"&$D20&"."&E20&"."&F20 -> Aktywa:A.II.3 | K20: =F20 -> 3 | N20: =K20 -> 3 | O20: =teksty!$D$416 -> Zaliczki na środki trwałe w budowie
A21: 18 | C21: 2 | D21: =D20 -> A | E21: III | J21: =$J$3&":"&$D21&"."&E21 -> Aktywa:A.III | K21: =E21 -> III | N21: III | O21: =teksty!$D$417 -> Należności długoterminowe | V21: =V22+V23+V24 -> 120036.99 | W21: =W22+W23+W24 -> 31000.55
A22: 18 | C22: 3 | D22: A | E22: =E21 -> III | F22: 1 | J22: =$J$3&":"&$D22&"."&E22&"."&F22 -> Aktywa:A.III.1 | K22: =F22 -> 1 | N22: 1 | O22: =teksty!$D$418 -> Od jednostek powiązanych
A23: 18 | C23: =COUNTA(D23:H23) -> 3 | D23: A | E23: =E22 -> III | F23: 2 | J23: =$J$3&":"&$D23&"."&E23&"."&F23 -> Aktywa:A.III.2 | K23: =F23 -> 2 | N23: =K23 -> 2 | O23: =teksty!$D$419 -> Od pozostałych jednostek, w których jednostka posiada zaangażowanie w kapitale
A24: 18 | C24: 3 | D24: A | E24: =E23 -> III | F24: 3 | J24: =$J$3&":"&$D24&"."&E24&"."&F24 -> Aktywa:A.III.3 | K24: =F24 -> 3 | N24: =K24 -> 3 | O24: =teksty!$D$420 -> Od pozostałych jednostek | V24: 120036.99 | W24: 31000.55
A25: 18 | C25: 2 | D25: A | E25: IV | J25: =$J$3&":"&$D25&"."&E25 -> Aktywa:A.IV | K25: =E25 -> IV | N25: IV | O25: =teksty!$D$421 -> Inwestycje długoterminowe | V25: =V26+V27+V28+V45 -> 0 | W25: =W26+W27+W28+W45 -> 0
A26: 18 | C26: 3 | D26: A | E26: =E25 -> IV | F26: 1 | J26: =$J$3&":"&$D26&"."&E26&"."&F26 -> Aktywa:A.IV.1 | K26: =F26 -> 1 | N26: 1 | O26: =teksty!$D$422 -> Nieruchomości
A27: 18 | C27: 3 | D27: A | E27: IV | F27: 2 | J27: =$J$3&":"&$D27&"."&E27&"."&F27 -> Aktywa:A.IV.2 | K27: =F27 -> 2 | N27: =K27 -> 2 | O27: =teksty!$D$423 -> Wartości niematerialne i prawne
A28: 18 | C28: 3 | D28: A | E28: IV | F28: 3 | J28: =$J$3&":"&$D28&"."&E28&"."&F28 -> Aktywa:A.IV.3 | K28: =F28 -> 3 | N28: =K28 -> 3 | O28: =teksty!$D$424 -> Długoterminowe aktywa finansowe | V28: =V29+V35+V40 -> 0 | W28: =W29+W35+W40 -> 0
A29: 18 | C29: 4 | D29: A | E29: IV | F29: =F28 -> 3 | G29: a | J29: =$J$3&":"&$D29&"."&E29&"."&F29&"."&G29 -> Aktywa:A.IV.3.a | K29: =G29 &")" -> a) | N29: a) | O29: =teksty!$D$425 -> w jednostkach powiązanych | V29: =V30+V31+V32+V33 -> 0 | W29: =W30+W31+W32+W33 -> 0
A30: 18 | C30: 5 | D30: A | E30: IV | F30: =F29 -> 3 | G30: =G29 -> a | H30: 1 | J30: =$J$3&":"&$D30&"."&E30&"."&F30&"."&G30&"."&H30 -> Aktywa:A.IV.3.a.1 | K30: =H30 & ") " -> 1) | O30: =K30&teksty!$D426 -> 1) udziały lub akcje
A31: 18 | C31: 5 | D31: A | E31: IV | F31: =F30 -> 3 | G31: =G30 -> a | H31: 2 | J31: =$J$3&":"&$D31&"."&E31&"."&F31&"."&G31&"."&H31 -> Aktywa:A.IV.3.a.2 | K31: =H31 & ") " -> 2) | O31: =K31&teksty!$D427 -> 2) inne papiery wartościowe
A32: 18 | C32: 5 | D32: =D31 -> A | E32: =E31 -> IV | F32: =F31 -> 3 | G32: =G31 -> a | H32: 3 | J32: =$J$3&":"&$D32&"."&E32&"."&F32&"."&G32&"."&H32 -> Aktywa:A.IV.3.a.3 | K32: 3) | O32: =K32&teksty!$D428 -> 3) udzielone pożyczki
A33: 18 | C33: 5 | D33: A | E33: IV | F33: 3 | G33: a | H33: 4 | I33: =$N$5 & teksty!$D$266 & 1 -> Aktywa, koniec strony 1 | J33: =$J$3&":"&$D33&"."&E33&"."&F33&"."&G33&"."&H33 -> Aktywa:A.IV.3.a.4 | K33: 4) | O33: =K33&teksty!$D429 -> 4) inne długoterminowe aktywa finansowe
A34: 18 | B34: P | C34: 3 | D34: =D33 -> A | E34: =E33 -> IV | F34: =F33 -> 3 | N34: =teksty!D430 & O28 &teksty!$D$399 -> Aktywa (c.d. "Długoterminowe aktywa finansowe") | U34: =$U$5 -> Stan na: | V34: =$V$5 -> 2017-12-31 | W34: =$W$5 -> 2016-12-31 | X34: =teksty!$D$273 -> Przekszt. dane porów. za poprzedni okres
A35: 18 | C35: =COUNTA(D35:H35) -> 4 | D35: =D34 -> A | E35: IV | F35: 3 | G35: b | J35: =$J$3&":"&$D35&"."&E35&"."&F35&"."&G35 -> Aktywa:A.IV.3.b | K35: =G35 &")" -> b) | N35: =K35 -> b) | O35: =teksty!$D$431 -> w pozostałych jednostkach, w których jednostka posiada zaangażowanie w kapitale | V35: =V36+V37+V38+V39 -> 0 | W35: =W36+W37+W38+W39 -> 0 | Z35: =teksty!$D$267 -> ukryty wiersz powyżej zawiera nagłówek dla kolejnej strony
A36: 18 | C36: =COUNTA(D36:H36) -> 5 | D36: A | E36: IV | F36: 3 | G36: =G35 -> b | H36: 1 | J36: =$J$3&":"&$D36&"."&E36&"."&F36&"."&G36&"."&H36 -> Aktywa:A.IV.3.b.1 | K36: =H36 & ") " -> 1) | O36: =K36&teksty!$D432 -> 1) udziały lub akcje
A37: 18 | C37: 5 | D37: A | E37: IV | F37: 3 | G37: =G36 -> b | H37: 2 | J37: =$J$3&":"&$D37&"."&E37&"."&F37&"."&G37&"."&H37 -> Aktywa:A.IV.3.b.2 | K37: =H37 & ") " -> 2) | O37: =K37&teksty!$D433 -> 2) inne papiery wartościowe
A38: 18 | C38: 5 | D38: =D37 -> A | E38: =E37 -> IV | F38: =F37 -> 3 | G38: =G37 -> b | H38: 3 | J38: =$J$3&":"&$D38&"."&E38&"."&F38&"."&G38&"."&H38 -> Aktywa:A.IV.3.b.3 | K38: =H38 & ") " -> 3) | O38: =K38&teksty!$D434 -> 3) udzielone pożyczki
A39: 18 | C39: 5 | D39: A | E39: IV | F39: 3 | G39: b | H39: 4 | J39: =$J$3&":"&$D39&"."&E39&"."&F39&"."&G39&"."&H39 -> Aktywa:A.IV.3.b.4 | K39: 4) | O39: =K39&teksty!$D435 -> 4) inne długoterminowe aktywa finansowe
A40: 18 | C40: 4 | D40: =D39 -> A | E40: IV | F40: 3 | G40: c | J40: =$J$3&":"&$D40&"."&E40&"."&F40&"."&G40 -> Aktywa:A.IV.3.c | K40: =G40 &")" -> c) | N40: =K40 -> c) | O40: =teksty!$D$436 -> w pozostałych jednostkach | V40: =V41+V42+V43+V44 -> 0 | W40: =W41+W42+W43+W44 -> 0
A41: 18 | C41: 5 | D41: A | E41: IV | F41: 3 | G41: =G40 -> c | H41: 1 | J41: =$J$3&":"&$D41&"."&E41&"."&F41&"."&G41&"."&H41 -> Aktywa:A.IV.3.c.1 | K41: =H41 & ") " -> 1) | O41: =K41&teksty!$D437 -> 1) udziały lub akcje
A42: 18 | C42: 5 | D42: A | E42: IV | F42: 3 | G42: =G41 -> c | H42: 2 | J42: =$J$3&":"&$D42&"."&E42&"."&F42&"."&G42&"."&H42 -> Aktywa:A.IV.3.c.2 | K42: =H42 & ") " -> 2) | O42: =K42&teksty!$D438 -> 2) inne papiery wartościowe
A43: 18 | C43: 5 | D43: =D42 -> A | E43: =E42 -> IV | F43: =F42 -> 3 | G43: =G42 -> c | H43: 3 | J43: =$J$3&":"&$D43&"."&E43&"."&F43&"."&G43&"."&H43 -> Aktywa:A.IV.3.c.3 | K43: =H43 & ") " -> 3) | O43: =K43&teksty!$D439 -> 3) udzielone pożyczki
A44: 18 | C44: 5 | D44: A | E44: IV | F44: 3 | G44: c | H44: 4 | J44: =$J$3&":"&$D44&"."&E44&"."&F44&"."&G44&"."&H44 -> Aktywa:A.IV.3.c.4 | K44: 4) | O44: =K44&teksty!$D440 -> 4) inne długoterminowe aktywa finansowe
A45: 18 | C45: 3 | D45: =D44 -> A | E45: =E44 -> IV | F45: 4 | J45: =$J$3&":"&$D45&"."&E45&"."&F45 -> Aktywa:A.IV.4 | K45: =F45 -> 4 | N45: =K45 -> 4 | O45: =teksty!D441 -> Inne inwestycje długoterminowe
A46: 18 | C46: 2 | D46: =D45 -> A | E46: V | J46: =$J$3&":"&$D46&"."&E46 -> Aktywa:A.V | K46: =E46 -> V | N46: V | O46: =teksty!$D$442 -> Długoterminowe rozliczenia międzyokresowe | V46: =V47+V48 -> 97732 | W46: =W47+W48 -> 0
A47: 18 | C47: 3 | D47: =D46 -> A | E47: =E46 -> V | F47: 1 | J47: =$J$3&":"&$D47&"."&E47&"."&F47 -> Aktywa:A.V.1 | K47: =F47 -> 1 | N47: =K47 -> 1 | O47: =teksty!$D$443 -> Aktywa z tytułu odroczonego podatku dochodowego | V47: 97732 | W47: 0
A48: 18 | C48: 3 | D48: =D47 -> A | E48: =E47 -> V | F48: 2 | J48: =$J$3&":"&$D48&"."&E48&"."&F48 -> Aktywa:A.V.2 | K48: =F48 -> 2 | N48: =K48 -> 2 | O48: =teksty!$D$444 -> Inne rozliczenia międzyokresowe
A49: 18 | C49: 1 | D49: B | J49: =$J$3&":"&$D49 -> Aktywa:B | K49: =D49 -> B | N49: B | O49: =teksty!$D$445 -> Aktywa obrotowe | V49: =V50+V57+V76+V93 -> 13747395.93 | W49: =W50+W57+W76+W93 -> 14324988.37
A50: 18 | C50: 2 | D50: =D49 -> B | E50: I | J50: =$J$3&":"&$D50&"."&E50 -> Aktywa:B.I | K50: =E50 -> I | N50: I | O50: =teksty!$D$446 -> Zapasy | V50: =V51+V52+V54+V55+V56 -> 7640033.39 | W50: =W51+W52+W54+W55+W56 -> 7170694.86
A51: 18 | C51: 3 | D51: B | E51: =E50 -> I | F51: 1 | J51: =$J$3&":"&$D51&"."&E51&"."&F51 -> Aktywa:B.I.1 | K51: =F51 -> 1 | N51: 1 | O51: =teksty!$D$447 -> Materiały | V51: 313280.28 | W51: 263352.7
A52: 18 | C52: 3 | D52: B | E52: =E51 -> I | F52: 2 | J52: =$J$3&":"&$D52&"."&E52&"."&F52 -> Aktywa:B.I.2 | K52: =F52 -> 2 | N52: =K52 -> 2 | O52: =teksty!$D$448 -> Półprodukty i produkty w toku | V52: 1140584.31 | W52: 706251.16
A53: 18 | C53: =COUNTA(D53:H53) -> 4 | D53: B | E53: =E52 -> I | F53: =F52 -> 2 | G53: j | J53: =$J$3&":"&$D53&"."&E53&"."&F53&"."&G53&"."&H53 -> Aktywa:B.I.2.j. | O53: =teksty!$D$449 -> w tym: obiekty w zabudowie
A54: 18 | C54: 3 | D54: =D52 -> B | E54: =E52 -> I | F54: 3 | J54: =$J$3&":"&$D54&"."&E54&"."&F54 -> Aktywa:B.I.3 | K54: =F54 -> 3 | N54: 3 | O54: =teksty!$D$450 -> Produkty gotowe | V54: 368955.09 | W54: 216147.68
A55: 18 | C55: 3 | D55: B | E55: =E54 -> I | F55: 4 | J55: =$J$3&":"&$D55&"."&E55&"."&F55 -> Aktywa:B.I.4 | K55: =F55 -> 4 | N55: =K55 -> 4 | O55: =teksty!$D$451 -> Towary | V55: 5817213.71 | W55: 5984943.32
A56: 18 | C56: 3 | D56: B | E56: =E55 -> I | F56: 5 | J56: =$J$3&":"&$D56&"."&E56&"."&F56 -> Aktywa:B.I.5 | K56: =F56 -> 5 | N56: =K56 -> 5 | O56: =teksty!$D$452 -> Zaliczki na dostawy i usługi
A57: 18 | C57: 2 | D57: B | E57: II | J57: =$J$3&":"&$D57&"."&E57 -> Aktywa:B.II | K57: =E57 -> II | N57: II | O57: =teksty!$D$453 -> Należności krótkoterminowe | V57: =V58+V64+V69 -> 5814928.97 | W57: =W58+W64+W69 -> 4729409.01
A58: 18 | C58: 3 | D58: B | E58: =E57 -> II | F58: 1 | J58: =$J$3&":"&$D58&"."&E58&"."&F58 -> Aktywa:B.II.1 | K58: =F58 -> 1 | N58: 1 | O58: =teksty!$D$454 -> Należności od jednostek powiązanych | V58: =V59+V62 -> 0 | W58: =W59+W62 -> 0
A59: 18 | C59: 4 | D59: B | E59: =E58 -> II | F59: =F58 -> 1 | G59: a | J59: =$J$3&":"&$D59&"."&E59&"."&F59&"."&G59 -> Aktywa:B.II.1.a | K59: =G59 &")" -> a) | N59: a) | O59: =teksty!$D$455 -> z tytułu dostaw i usług, o okresie spłaty: | V59: =V60+V61 -> 0 | W59: =W60+W61 -> 0
A60: 18 | C60: 5 | D60: B | E60: =E59 -> II | F60: =F59 -> 1 | G60: =G59 -> a | H60: 1 | J60: =$J$3&":"&$D60&"."&E60&"."&F60&"."&G60&"."&H60 -> Aktywa:B.II.1.a.1 | K60: =H60 & ") " -> 1) | O60: =$K$60&teksty!$D$456 -> 1) do 12 miesięcy
A61: 18 | C61: 5 | D61: B | E61: =E60 -> II | F61: =F60 -> 1 | G61: =G60 -> a | H61: 2 | J61: =$J$3&":"&$D61&"."&E61&"."&F61&"."&G61&"."&H61 -> Aktywa:B.II.1.a.2 | K61: =H61 & ") " -> 2) | O61: =$K$61&teksty!$D$457 -> 2) powyżej 12 miesięcy
A62: 18 | C62: 4 | D62: B | E62: =E61 -> II | F62: =F61 -> 1 | G62: b | I62: =$N$5 & teksty!$D$266 & 2 -> Aktywa, koniec strony 2 | J62: =$J$3&":"&$D62&"."&E62&"."&F62&"."&G62 -> Aktywa:B.II.1.b | K62: =G62 &")" -> b) | N62: =K62 -> b) | O62: =teksty!$D$458 -> inne
A63: 18 | B63: P | C63: 3 | D63: =D62 -> B | E63: =E62 -> II | F63: =F62 -> 1 | N63: =teksty!D459 & O57 &teksty!$D$399 -> Aktywa (c.d. "Należności krótkoterminowe") | U63: =$U$5 -> Stan na: | V63: =$V$5 -> 2017-12-31 | W63: =$W$5 -> 2016-12-31 | X63: =teksty!$D$273 -> Przekszt. dane porów. za poprzedni okres
A64: 18 | C64: 3 | D64: =D62 -> B | E64: =E62 -> II | F64: 2 | J64: =$J$3&":"&$D64&"."&E64&"."&F64 -> Aktywa:B.II.2 | K64: =F64 -> 2 | N64: 2 | O64: =teksty!$D$460 -> Należności od pozostałych jednostek, w których jednostka posiada zaangażowanie w kapitale | V64: =V65+V68 -> 0 | W64: =W65+W68 -> 0 | Z64: =teksty!$D$267 -> ukryty wiersz powyżej zawiera nagłówek dla kolejnej strony
A65: 18 | C65: 4 | D65: =D64 -> B | E65: II | F65: 2 | G65: a | J65: =$J$3&":"&$D65&"."&E65&"."&F65&"."&G65 -> Aktywa:B.II.2.a | K65: =G65 &")" -> a) | N65: a) | O65: =teksty!$D$461 -> z tytułu dostaw i usług, o okresie spłaty: | V65: =V66+V67 -> 0 | W65: =W66+W67 -> 0
A66: 18 | C66: 5 | D66: B | E66: II | F66: 2 | G66: =G65 -> a | H66: 1 | J66: =$J$3&":"&$D66&"."&E66&"."&F66&"."&G66&"."&H66 -> Aktywa:B.II.2.a.1 | K66: =H66 & ") " -> 1) | O66: =$K$66&teksty!$D$462 -> 1) do 12 miesięcy
A67: 18 | C67: 5 | D67: B | E67: II | F67: 2 | G67: =G66 -> a | H67: 2 | J67: =$J$3&":"&$D67&"."&E67&"."&F67&"."&G67&"."&H67 -> Aktywa:B.II.2.a.2 | K67: =H67 & ") " -> 2) | O67: =$K$67&teksty!$D$463 -> 2) powyżej 12 miesięcy
A68: 18 | C68: 4 | D68: B | E68: II | F68: 2 | G68: b | J68: =$J$3&":"&$D68&"."&E68&"."&F68&"."&G68 -> Aktywa:B.II.2.b | K68: =G68 &")" -> b) | N68: =K68 -> b) | O68: =teksty!$D$464 -> inne
A69: 18 | C69: 3 | D69: =D68 -> B | E69: II | F69: 3 | J69: =$J$3&":"&$D69&"."&E69&"."&F69 -> Aktywa:B.II.3 | K69: =F69 -> 3 | N69: 3 | O69: =teksty!$D$465 -> Należności od pozostałych jednostek | V69: =V70+V73+V74+V75 -> 5814928.97 | W69: =W70+W73+W74+W75 -> 4729409.01
A70: =(2+16) -> 18 | C70: 4 | D70: B | E70: II | F70: =F69 -> 3 | G70: a | J70: =$J$3&":"&$D70&"."&E70&"."&F70&"."&G70 -> Aktywa:B.II.3.a | K70: =G70 &")" -> a) | N70: a) | O70: =teksty!$D$466 -> z tytułu dostaw i usług, o okresie spłaty: | V70: =V71+V72 -> 5782326.84 | W70: =W71+W72 -> 4626353.03
A71: 18 | C71: 5 | D71: B | E71: II | F71: 3 | G71: =G70 -> a | H71: 1 | J71: =$J$3&":"&$D71&"."&E71&"."&F71&"."&G71&"."&H71 -> Aktywa:B.II.3.a.1 | K71: =H71 & ") " -> 1) | O71: =$K$71&teksty!$D$467 -> 1) do 12 miesięcy | V71: 5782326.84 | W71: 4626353.03
A72: 18 | C72: 5 | D72: B | E72: II | F72: 3 | G72: =G71 -> a | H72: 2 | J72: =$J$3&":"&$D72&"."&E72&"."&F72&"."&G72&"."&H72 -> Aktywa:B.II.3.a.2 | K72: =H72 & ") " -> 2) | O72: =$K$72&teksty!$D$468 -> 2) powyżej 12 miesięcy
A73: 18 | C73: 4 | D73: B | E73: II | F73: 3 | G73: b | J73: =$J$3&":"&$D73&"."&E73&"."&F73&"."&G73 -> Aktywa:B.II.3.b | K73: =G73 &")" -> b) | N73: =K73 -> b) | O73: =teksty!$D$469 -> z tytułu podatków, dotacji, ceł, ubezpieczeń społecznych i zdrowotnych oraz innych tytułów publicznoprawnych | V73: 13263.09 | W73: 85621.1
A74: 18 | C74: 4 | D74: B | E74: II | F74: 3 | G74: c | J74: =$J$3&":"&$D74&"."&E74&"."&F74&"."&G74 -> Aktywa:B.II.3.c | K74: =G74 &")" -> c) | N74: =K74 -> c) | O74: =teksty!$D$470 -> inne | V74: 19339.04 | W74: 17434.88
A75: 18 | C75: 4 | D75: B | E75: II | F75: 3 | G75: d | J75: =$J$3&":"&$D75&"."&E75&"."&F75&"."&G75 -> Aktywa:B.II.3.d | K75: =G75 &")" -> d) | N75: =K75 -> d) | O75: =teksty!$D$471 -> dochodzone na drodze sądowej
A76: 18 | C76: 2 | D76: =D75 -> B | E76: III | J76: =$J$3&":"&$D76&"."&E76 -> Aktywa:B.III | K76: =E76 -> III | N76: III | O76: =teksty!$D$472 -> Inwestycje krótkoterminowe | V76: =V77+V92 -> 207932.84 | W76: =W77+W92 -> 2376434.33
A77: 18 | C77: 3 | D77: B | E77: =E76 -> III | F77: 1 | J77: =$J$3&":"&$D77&"."&E77&"."&F77 -> Aktywa:B.III.1 | K77: =F77 -> 1 | N77: 1 | O77: =teksty!$D$473 -> Krótkoterminowe aktywa finansowe | V77: =V78+V83+V88 -> 207932.84 | W77: =W78+W83+W88 -> 2376434.33
A78: 18 | C78: 4 | D78: B | E78: III | F78: =F77 -> 1 | G78: a | J78: =$J$3&":"&$D78&"."&E78&"."&F78&"."&G78 -> Aktywa:B.III.1.a | K78: =G78 &")" -> a) | N78: a) | O78: =teksty!$D$474 -> w jednostkach powiązanych | V78: =V79+V80+V81+V82 -> 0 | W78: =W79+W80+W81+W82 -> 0
A79: 18 | C79: 5 | D79: B | E79: III | F79: 1 | G79: =G78 -> a | H79: 1 | J79: =$J$3&":"&$D79&"."&E79&"."&F79&"."&G79&"."&H79 -> Aktywa:B.III.1.a.1 | K79: =H79 & ") " -> 1) | O79: =K79&teksty!$D475 -> 1) udziały lub akcje
A80: 18 | C80: 5 | D80: B | E80: III | F80: 1 | G80: =G79 -> a | H80: 2 | J80: =$J$3&":"&$D80&"."&E80&"."&F80&"."&G80&"."&H80 -> Aktywa:B.III.1.a.2 | K80: =H80 & ") " -> 2) | O80: =K80&teksty!$D476 -> 2) inne papiery wartościowe
A81: 18 | C81: 5 | D81: B | E81: III | F81: 1 | G81: =G80 -> a | H81: 3 | J81: =$J$3&":"&$D81&"."&E81&"."&F81&"."&G81&"."&H81 -> Aktywa:B.III.1.a.3 | K81: =H81 & ") " -> 3) | O81: =K81&teksty!$D477 -> 3) udzielone pożyczki
A82: 18 | C82: 5 | D82: B | E82: III | F82: 1 | G82: =G81 -> a | H82: 4 | J82: =$J$3&":"&$D82&"."&E82&"."&F82&"."&G82&"."&H82 -> Aktywa:B.III.1.a.4 | K82: =H82 & ") " -> 4) | O82: =K82&teksty!$D478 -> 4) inne krótkoterminowe aktywa finansowe
A83: 18 | C83: 4 | D83: B | E83: III | F83: 1 | G83: b | J83: =$J$3&":"&$D83&"."&E83&"."&F83&"."&G83 -> Aktywa:B.III.1.b | K83: =G83 &")" -> b) | N83: =K83 -> b) | O83: =teksty!$D$479 -> w pozostałych jednostkach | V83: =V84+V85+V86+V87 -> 0 | W83: =W84+W85+W86+W87 -> 0
A84: 18 | C84: 5 | D84: B | E84: III | F84: 1 | G84: =G83 -> b | H84: 1 | J84: =$J$3&":"&$D84&"."&E84&"."&F84&"."&G84&"."&H84 -> Aktywa:B.III.1.b.1 | K84: =H84 & ") " -> 1) | O84: =K84&teksty!$D480 -> 1) udziały lub akcje
A85: 18 | C85: 5 | D85: =D84 -> B | E85: =E84 -> III | F85: =F84 -> 1 | G85: =G84 -> b | H85: 2 | J85: =$J$3&":"&$D85&"."&E85&"."&F85&"."&G85&"."&H85 -> Aktywa:B.III.1.b.2 | K85: =H85 & ") " -> 2) | O85: =K85&teksty!$D481 -> 2) inne papiery wartościowe
A86: 18 | C86: 5 | D86: B | E86: III | F86: 1 | G86: b | H86: 3 | J86: =$J$3&":"&$D86&"."&E86&"."&F86&"."&G86&"."&H86 -> Aktywa:B.III.1.b.3 | K86: 3) | O86: =K86&teksty!$D482 -> 3) udzielone pożyczki
A87: 18 | C87: 5 | D87: B | E87: III | F87: 1 | G87: b | H87: 4 | J87: =$J$3&":"&$D87&"."&E87&"."&F87&"."&G87&"."&H87 -> Aktywa:B.III.1.b.4 | K87: 4) | O87: =K87&teksty!$D483 -> 4) inne krótkoterminowe aktywa finansowe
A88: 18 | C88: 4 | D88: =D87 -> B | E88: III | F88: 1 | G88: c | J88: =$J$3&":"&$D88&"."&E88&"."&F88&"."&G88 -> Aktywa:B.III.1.c | K88: =G88 &")" -> c) | N88: =K88 -> c) | O88: =teksty!$D$484 -> środki pieniężne i inne aktywa pieniężne | V88: =V89+V90+V91 -> 207932.84 | W88: =W89+W90+W91 -> 2376434.33
A89: 18 | C89: 5 | D89: B | E89: III | F89: 1 | G89: =G88 -> c | H89: 1 | J89: =$J$3&":"&$D89&"."&E89&"."&F89&"."&G89&"."&H89 -> Aktywa:B.III.1.c.1 | K89: =H89 & ") " -> 1) | O89: =K89&teksty!$D485 -> 1) środki pieniężne w kasie i na rachunkach | V89: 207932.84 | W89: 2376434.33
A90: 18 | C90: 5 | D90: =D89 -> B | E90: =E89 -> III | F90: =F89 -> 1 | G90: =G89 -> c | H90: 2 | J90: =$J$3&":"&$D90&"."&E90&"."&F90&"."&G90&"."&H90 -> Aktywa:B.III.1.c.2 | K90: =H90 & ") " -> 2) | O90: =K90&teksty!$D486 -> 2) inne środki pieniężne
A91: 18 | C91: 5 | D91: B | E91: III | F91: 1 | G91: c | H91: 3 | J91: =$J$3&":"&$D91&"."&E91&"."&F91&"."&G91&"."&H91 -> Aktywa:B.III.1.c.3 | K91: 3) | O91: =K91&teksty!$D487 -> 3) inne aktywa pieniężne
A92: 18 | C92: 3 | D92: =D91 -> B | E92: =E91 -> III | F92: 2 | J92: =$J$3&":"&$D92&"."&E92&"."&F92 -> Aktywa:B.III.2 | K92: =F92 -> 2 | N92: =K92 -> 2 | O92: =teksty!$D$488 -> Inne inwestycje krótkoterminowe
A93: 18 | C93: 2 | D93: =D92 -> B | E93: IV | J93: =$J$3&":"&$D93&"."&E93 -> Aktywa:B.IV | K93: =E93 -> IV | N93: IV | O93: =teksty!$D$489 -> Krótkoterminowe rozliczenia międzyokresowe | V93: 84500.73 | W93: 48450.17
A94: 18 | C94: 3 | D94: =D93 -> B | E94: =E93 -> IV | F94: j | J94: =$J$3&":"&$D94&"."&E94&"."&F94 -> Aktywa:B.IV.j | O94: =teksty!$D$490 -> w tym: aktywa z tytułu niezakończonych umów budowlanych
A95: 18 | C95: 1 | D95: C | J95: =$J$3&":"&$D95 -> Aktywa:C | K95: =D95 -> C | N95: C | O95: =teksty!$D$491 -> Należne wpłaty na kapitał (fundusz) podstawowy
A96: 18 | C96: 1 | D96: D | J96: =$J$3&":"&$D96 -> Aktywa:D | K96: =D96 -> D | N96: =K96 -> D | O96: =teksty!$D$492 -> Udziały (akcje) własne
A97: 18 | C97: 0 | O97: =teksty!$D$493 -> Aktywa razem (suma pozycji A, B, C i D) | V97: =V96+V95+V49+V6 -> 26684332.66 | W97: =W96+W95+W49+W6 -> 17205155.83 | AA97: =teksty!$D$495 & ":" -> Pasywa: | AB97: =V163 -> 26684332.66 | AC97: =W163 -> 17205155.83 | AD97: =X163 -> 0
A98: 18 | C98: 0
A99: 18 | C99: 0
A100: 18 | B100: P | C100: 0
A101: 18 | C101: 0 | J101: Pasywa | N101: =teksty!$D$495 -> Pasywa | U101: =$U$5 -> Stan na: | V101: =$V$5 -> 2017-12-31 | W101: =$W$5 -> 2016-12-31 | X101: =teksty!$D$273 -> Przekszt. dane porów. za poprzedni okres
A102: 18 | C102: =COUNTA(D102:H102) -> 1 | D102: A | J102: =$J$101&":"&$D102 -> Pasywa:A | K102: =D102 -> A | N102: =K102 -> A | O102: =teksty!$D$496 -> Kapitał (fundusz) własny | V102: =V103+V104+V106+V108+V111+V112+V113 -> 14338499.55 | W102: =W103+W104+W106+W108+W111+W112+W113 -> 11376420.26
A103: 18 | C103: 2 | D103: =D102 -> A | E103: I | J103: =$J$101&":"&$D103&"."&E103 -> Pasywa:A.I | K103: =E103 -> I | N103: I | O103: =teksty!$D$497 -> Kapitał (fundusz) podstawowy | V103: 102000 | W103: 102000
A104: 18 | C104: 2 | D104: A | E104: II | J104: =$J$101&":"&$D104&"."&E104 -> Pasywa:A.II | K104: =E104 -> II | N104: =K104 -> II | O104: =teksty!$D$498 -> Kapitał (fundusz) zapasowy, w tym: | V104: 11114420.26 | W104: 8242348.81
A105: 18 | C105: 4 | D105: A | E105: =E104 -> II | F105: 1 | G105: X | J105: =$J$101&":"&$D105&"."&E105&"."&F105 -> Pasywa:A.II.1 | K105: =F105 -> 1 | O105: =" – " & teksty!$D$499 -> – nadwyżka wartości sprzedaży (wartości emisyjnej) nad wartością nominalną udziałów (akcji)
A106: 18 | C106: 2 | D106: A | E106: III | J106: =$J$101&":"&$D106&"."&E106 -> Pasywa:A.III | K106: =E106 -> III | N106: =K106 -> III | O106: =teksty!$D$500 -> Kapitał (fundusz) z aktualizacji wyceny, w tym:
A107: 18 | C107: 4 | D107: A | E107: =E106 -> III | F107: 1 | G107: X | J107: =$J$101&":"&$D107&"."&E107&"."&F107 -> Pasywa:A.III.1 | K107: =F107 -> 1 | O107: =" – " & teksty!$D$501 -> – z tytułu aktualizacji wartości godziwej
A108: 18 | C108: 2 | D108: A | E108: IV | J108: =$J$101&":"&$D108&"."&E108 -> Pasywa:A.IV | K108: =E108 -> IV | N108: =K108 -> IV | O108: =teksty!$D$502 -> Pozostałe kapitały (fundusze) rezerwowe, w tym:
A109: 18 | C109: 4 | D109: A | E109: =E108 -> IV | F109: 1 | G109: X | J109: =$J$101&":"&$D109&"."&E109&"."&F109 -> Pasywa:A.IV.1 | K109: =F109 -> 1 | O109: =" – " & teksty!$D$503 -> – tworzone zgodnie z umową (statutem) spółki
A110: 18 | C110: 4 | D110: A | E110: =E109 -> IV | F110: 2 | G110: X | J110: =$J$101&":"&$D110&"."&E110&"."&F110 -> Pasywa:A.IV.2 | K110: =F110 -> 2 | O110: =" – " & teksty!$D$504 -> – na udziały (akcje) własne
A111: 18 | C111: 2 | D111: A | E111: V | J111: =$J$101&":"&$D111&"."&E111 -> Pasywa:A.V | K111: =E111 -> V | N111: =K111 -> V | O111: =teksty!$D$505 -> Zysk (strata) z lat ubiegłych
A112: 18 | C112: 2 | D112: A | E112: VI | J112: =$J$101&":"&$D112&"."&E112 -> Pasywa:A.VI | K112: =E112 -> VI | N112: =K112 -> VI | O112: =teksty!$D$506 -> Zysk (strata) netto | V112: 3322079.29 | W112: 3272071.45
A113: 18 | C113: 2 | D113: A | E113: VII | J113: =$J$101&":"&$D113&"."&E113 -> Pasywa:A.VII | K113: =E113 -> VII | N113: =K113 -> VII | O113: =teksty!$D$507 -> Odpisy z zysku netto w ciągu roku obrotowego (wielkość ujemna) | V113: -200000 | W113: -240000
A114: 18 | C114: 1 | D114: B | J114: =$J$101&":"&$D114 -> Pasywa:B | K114: =D114 -> B | N114: B | O114: =teksty!$D$508 -> Zobowiązania i rezerwy na zobowiązania | V114: =V115+V123+V133+V157 -> 12345833.11 | W114: =W115+W123+W133+W157 -> 5828735.57
A115: 18 | C115: 2 | D115: =D114 -> B | E115: I | J115: =$J$101&":"&$D115&"."&E115 -> Pasywa:B.I | K115: =E115 -> I | N115: I | O115: =teksty!$D$509 -> Rezerwy na zobowiązania | V115: =V116+V117+V120 -> 10052 | W115: =W116+W117+W120 -> 0
A116: 18 | C116: 3 | D116: B | E116: =E115 -> I | F116: 1 | J116: =$J$101&":"&$D116&"."&E116&"."&F116 -> Pasywa:B.I.1 | K116: =F116 -> 1 | N116: =K116 -> 1 | O116: =teksty!$D$510 -> Rezerwa z tytułu odroczonego podatku dochodowego | V116: 10052 | W116: 0
A117: 18 | C117: 3 | D117: B | E117: I | F117: 2 | J117: =$J$101&":"&$D117&"."&E117&"."&F117 -> Pasywa:B.I.2 | K117: 2 | N117: =K117 -> 2 | O117: =teksty!$D$511 -> Rezerwa na świadczenia emerytalne i podobne | V117: =V118+V119 -> 0 | W117: =W118+W119 -> 0
A118: 18 | C118: 4 | D118: B | E118: I | F118: =F117 -> 2 | G118: 1 | J118: =$J$101&":"&$D118&"."&E118&"."&F118&"."&G118 -> Pasywa:B.I.2.1 | K118: 2 | O118: =" – " & teksty!$D$512 -> – długoterminowa
A119: 18 | C119: 4 | D119: B | E119: I | F119: =F118 -> 2 | G119: 2 | J119: =$J$101&":"&$D119&"."&E119&"."&F119&"."&G119 -> Pasywa:B.I.2.2 | K119: 2 | O119: =" – " & teksty!$D$513 -> – krótkoterminowa
A120: 18 | C120: 3 | D120: B | E120: I | F120: 3 | J120: =$J$101&":"&$D120&"."&E120&"."&F120 -> Pasywa:B.I.3 | K120: 3 | N120: =K120 -> 3 | O120: =teksty!$D$514 -> Pozostałe rezerwy | V120: =V121+V122 -> 0 | W120: =W121+W122 -> 0
A121: 18 | C121: 4 | D121: B | E121: I | F121: =F120 -> 3 | G121: 1 | J121: =$J$101&":"&$D121&"."&E121&"."&F121&"."&G121 -> Pasywa:B.I.3.1 | K121: 3 | O121: =" – " & teksty!$D$515 -> – długoterminowe
A122: 18 | C122: 4 | D122: B | E122: I | F122: =F121 -> 3 | G122: 2 | J122: =$J$101&":"&$D122&"."&E122&"."&F122&"."&G122 -> Pasywa:B.I.3.2 | K122: 3 | O122: =" – " & teksty!$D$516 -> – krótkoterminowe
A123: 18 | C123: 2 | D123: B | E123: II | J123: =$J$101&":"&$D123&"."&E123 -> Pasywa:B.II | K123: =E123 -> II | N123: =K123 -> II | O123: =teksty!$D$517 -> Zobowiązania długoterminowe | V123: =V124+V125+V126 -> 6320413.07 | W123: =W124+W125+W126 -> 57939.64
A124: 18 | C124: 3 | D124: B | E124: =E123 -> II | F124: 1 | J124: =$J$101&":"&$D124&"."&E124&"."&F124 -> Pasywa:B.II.1 | K124: =F124 -> 1 | N124: =K124 -> 1 | O124: =teksty!$D$518 -> Wobec jednostek powiązanych
A125: 18 | C125: 3 | D125: =D124 -> B | E125: =E124 -> II | F125: 2 | J125: =$J$101&":"&$D125&"."&E125&"."&F125 -> Pasywa:B.II.2 | K125: =F125 -> 2 | N125: =K125 -> 2 | O125: =teksty!$D$519 -> Wobec pozostałych jednostek, w których jednostka posiada zaangażowanie w kapitale
A126: 18 | C126: 3 | D126: B | E126: II | F126: 3 | J126: =$J$101&":"&$D126&"."&E126&"."&F126 -> Pasywa:B.II.3 | K126: 3 | N126: 3 | O126: =teksty!$D$520 -> Wobec pozostałych jednostek | V126: =V127+V128+V129+V130+V131 -> 6320413.07 | W126: =W127+W128+W129+W130+W131 -> 57939.64
A127: 18 | C127: 4 | D127: =D126 -> B | E127: II | F127: 3 | G127: a | J127: =$J$101&":"&$D127&"."&E127&"."&F127&"."&G127 -> Pasywa:B.II.3.a | K127: =G127 &")" -> a) | N127: a) | O127: =teksty!$D$521 -> kredyty i pożyczki | V127: 5990974 | W127: 0
A128: 18 | C128: 4 | D128: B | E128: II | F128: 3 | G128: b | J128: =$J$101&":"&$D128&"."&E128&"."&F128&"."&G128 -> Pasywa:B.II.3.b | K128: =G128 &")" -> b) | N128: =K128 -> b) | O128: =teksty!$D$522 -> z tytułu emisji dłużnych papierów wartościowych
A129: 18 | C129: 4 | D129: B | E129: II | F129: 3 | G129: c | J129: =$J$101&":"&$D129&"."&E129&"."&F129&"."&G129 -> Pasywa:B.II.3.c | K129: =G129 &")" -> c) | N129: =K129 -> c) | O129: =teksty!$D$523 -> inne zobowiązania finansowe | V129: 329439.07 | W129: 57939.64
A130: 18 | C130: 4 | D130: =D129 -> B | E130: =E129 -> II | F130: =F129 -> 3 | G130: d | J130: =$J$101&":"&$D130&"."&E130&"."&F130&"."&G130 -> Pasywa:B.II.3.d | K130: =G130 &")" -> d) | N130: =K130 -> d) | O130: =teksty!$D$524 -> zobowiązania wekslowe
A131: 18 | C131: 4 | D131: B | E131: II | F131: 3 | G131: e | I131: =$N$101 & teksty!$D$266 & 1 -> Pasywa, koniec strony 1 | J131: =$J$101&":"&$D131&"."&E131&"."&F131&"."&G131 -> Pasywa:B.II.3.e | K131: e) | N131: e) | O131: =teksty!$D$525 -> inne
A132: 18 | B132: P | C132: 3 | D132: B | E132: II | F132: 3 | N132: =teksty!D526 & O114 &teksty!$D$399 -> Pasywa (c.d. "Zobowiązania i rezerwy na zobowiązania") | U132: =$U$5 -> Stan na: | V132: =$V$5 -> 2017-12-31 | W132: =$W$5 -> 2016-12-31 | X132: =teksty!$D$273 -> Przekszt. dane porów. za poprzedni okres
A133: 18 | C133: 2 | D133: =D132 -> B | E133: III | J133: =$J$101&":"&$D133&"."&E133 -> Pasywa:B.III | K133: =E133 -> III | N133: =K133 -> III | O133: =teksty!$D$527 -> Zobowiązania krótkoterminowe | V133: =V134+V139+V144+V156 -> 5993405.21 | W133: =W134+W139+W144+W156 -> 5755587.78 | Z133: =teksty!$D$267 -> ukryty wiersz powyżej zawiera nagłówek dla kolejnej strony
A134: 18 | C134: 3 | D134: =D133 -> B | E134: =E133 -> III | F134: 1 | J134: =$J$101&":"&$D134&"."&E134&"."&F134 -> Pasywa:B.III.1 | K134: =F134 -> 1 | N134: 1 | O134: =teksty!$D$528 -> Zobowiązania wobec jednostek powiązanych | V134: =V135+V138 -> 0 | W134: =W135+W138 -> 0
A135: =(2+16) -> 18 | C135: 4 | D135: =D134 -> B | E135: III | F135: 1 | G135: a | J135: =$J$101&":"&$D135&"."&E135&"."&F135&"."&G135 -> Pasywa:B.III.1.a | K135: =G135 &")" -> a) | N135: a) | O135: =teksty!$D$529 -> z tytułu dostaw i usług, o okresie wymagalności: | V135: =V136+V137 -> 0 | W135: =W136+W137 -> 0
A136: 18 | C136: 5 | D136: B | E136: III | F136: 1 | G136: =G135 -> a | H136: 1 | J136: =$J$101&":"&$D136&"."&E136&"."&F136&"."&G136&"."&H136 -> Pasywa:B.III.1.a.1 | K136: =H136 & ") " -> 1) | O136: =$K$136&teksty!$D$530 -> 1) do 12 miesięcy
A137: 18 | C137: 5 | D137: B | E137: III | F137: 1 | G137: =G136 -> a | H137: 2 | J137: =$J$101&":"&$D137&"."&E137&"."&F137&"."&G137&"."&H137 -> Pasywa:B.III.1.a.2 | K137: =H137 & ") " -> 2) | O137: =$K$137&teksty!$D$531 -> 2) powyżej 12 miesięcy
A138: 18 | C138: 4 | D138: B | E138: III | F138: 1 | G138: b | J138: =$J$101&":"&$D138&"."&E138&"."&F138&"."&G138 -> Pasywa:B.III.1.b | K138: =G138 &")" -> b) | N138: =K138 -> b) | O138: =teksty!$D$532 -> inne
A139: 18 | C139: 3 | D139: =D138 -> B | E139: =E138 -> III | F139: 2 | J139: =$J$101&":"&$D139&"."&E139&"."&F139 -> Pasywa:B.III.2 | K139: =F139 -> 2 | N139: 2 | O139: =teksty!$D$533 -> Zobowiązania wobec pozostałych jednostek, w których jednostka posiada zaangażowanie w kapitale | V139: =V140+V143 -> 0 | W139: =W140+W143 -> 0
A140: 18 | C140: 4 | D140: =D139 -> B | E140: III | F140: 2 | G140: a | J140: =$J$101&":"&$D140&"."&E140&"."&F140&"."&G140 -> Pasywa:B.III.2.a | K140: =G140 &")" -> a) | N140: a) | O140: =teksty!$D$534 -> z tytułu dostaw i usług, o okresie wymagalności: | V140: =V141+V142 -> 0 | W140: =W141+W142 -> 0
A141: 18 | C141: 5 | D141: B | E141: III | F141: 2 | G141: =G140 -> a | H141: 1 | J141: =$J$101&":"&$D141&"."&E141&"."&F141&"."&G141&"."&H141 -> Pasywa:B.III.2.a.1 | K141: =H141 & ") " -> 1) | O141: =$K$141&teksty!$D$535 -> 1) do 12 miesięcy
A142: 18 | C142: 5 | D142: B | E142: III | F142: 2 | G142: =G141 -> a | H142: 2 | J142: =$J$101&":"&$D142&"."&E142&"."&F142&"."&G142&"."&H142 -> Pasywa:B.III.2.a.2 | K142: =H142 & ") " -> 2) | O142: =$K$142&teksty!$D$536 -> 2) powyżej 12 miesięcy
A143: 18 | C143: 4 | D143: B | E143: III | F143: 2 | G143: b | J143: =$J$101&":"&$D143&"."&E143&"."&F143&"."&G143 -> Pasywa:B.III.2.b | K143: =G143 &")" -> b) | N143: =K143 -> b) | O143: =teksty!$D$537 -> inne
A144: 18 | C144: 3 | D144: =D143 -> B | E144: =E143 -> III | F144: 3 | J144: =$J$101&":"&$D144&"."&E144&"."&F144 -> Pasywa:B.III.3 | K144: =F144 -> 3 | N144: 3 | O144: =teksty!$D$538 -> Zobowiązania wobec pozostałych jednostek | V144: =V145+V146+V147+V148+V151+V152+V153+V154+V155 -> 5931446.17 | W144: =W145+W146+W147+W148+W151+W152+W153+W154+W155 -> 5727427
A145: 18 | C145: 4 | D145: =D144 -> B | E145: III | F145: 3 | G145: a | J145: =$J$101&":"&$D145&"."&E145&"."&F145&"."&G145 -> Pasywa:B.III.3.a | K145: =G145 &")" -> a) | N145: =K145 -> a) | O145: =teksty!$D$539 -> kredyty i pożyczki | V145: 1727542.14 | W145: 0
A146: 18 | C146: 4 | D146: B | E146: III | F146: 3 | G146: b | J146: =$J$101&":"&$D146&"."&E146&"."&F146&"."&G146 -> Pasywa:B.III.3.b | K146: =G146 &")" -> b) | N146: =K146 -> b) | O146: =teksty!$D$540 -> z tytułu emisji dłużnych papierów wartościowych
A147: 18 | C147: 4 | D147: B | E147: III | F147: 3 | G147: c | J147: =$J$101&":"&$D147&"."&E147&"."&F147&"."&G147 -> Pasywa:B.III.3.c | K147: =G147 &")" -> c) | N147: =K147 -> c) | O147: =teksty!$D$541 -> inne zobowiązania finansowe | V147: 293240.67 | W147: 55391.16
A148: 18 | C148: 4 | D148: B | E148: III | F148: 3 | G148: d | J148: =$J$101&":"&$D148&"."&E148&"."&F148&"."&G148 -> Pasywa:B.III.3.d | K148: =G148 &")" -> d) | N148: =K148 -> d) | O148: =teksty!$D$542 -> z tytułu dostaw i usług, o okresie wymagalności: | V148: =V149+V150 -> 2828859.23 | W148: =W149+W150 -> 4734869.95
A149: 18 | C149: 5 | D149: B | E149: III | F149: 3 | G149: =G148 -> d | H149: 1 | J149: =$J$101&":"&$D149&"."&E149&"."&F149&"."&G149&"."&H149 -> Pasywa:B.III.3.d.1 | K149: =H149 & ") " -> 1) | O149: =$K$149&teksty!$D$543 -> 1) do 12 miesięcy | V149: 2828859.23 | W149: 4734869.95
A150: 18 | C150: 5 | D150: B | E150: III | F150: 3 | G150: =G149 -> d | H150: 2 | J150: =$J$101&":"&$D150&"."&E150&"."&F150&"."&G150&"."&H150 -> Pasywa:B.III.3.d.2 | K150: =H150 & ") " -> 2) | O150: =$K$150&teksty!$D$544 -> 2) powyżej 12 miesięcy
A151: 18 | C151: 4 | D151: B | E151: III | F151: 3 | G151: e | J151: =$J$101&":"&$D151&"."&E151&"."&F151&"."&G151 -> Pasywa:B.III.3.e | K151: =G151 &")" -> e) | N151: =K151 -> e) | O151: =teksty!$D$545 -> zaliczki otrzymane na dostawy i usługi | V151: 0 | W151: 75672.1
A152: 18 | C152: 4 | D152: B | E152: III | F152: 3 | G152: f | J152: =$J$101&":"&$D152&"."&E152&"."&F152&"."&G152 -> Pasywa:B.III.3.f | K152: =G152 &")" -> f) | N152: =K152 -> f) | O152: =teksty!$D$546 -> zobowiązania wekslowe
A153: 18 | C153: 4 | D153: =D152 -> B | E153: =E152 -> III | F153: =F152 -> 3 | G153: g | J153: =$J$101&":"&$D153&"."&E153&"."&F153&"."&G153 -> Pasywa:B.III.3.g | K153: =G153 &")" -> g) | N153: =K153 -> g) | O153: =teksty!$D$547 -> z tytułu podatków, ceł, ubezpieczeń społecznych i zdrowotnych oraz innych tytułów publicznoprawnych | V153: 811159.15 | W153: 634993.03
A154: 18 | C154: 4 | D154: B | E154: III | F154: 3 | G154: h | J154: =$J$101&":"&$D154&"."&E154&"."&F154&"."&G154 -> Pasywa:B.III.3.h | K154: h) | N154: h) | O154: =teksty!$D$548 -> z tytułu wynagrodzeń | V154: 270644.98 | W154: 225111.57
A155: 18 | C155: 4 | D155: =D154 -> B | E155: =E154 -> III | F155: =F154 -> 3 | G155: i | J155: =$J$101&":"&$D155&"."&E155&"."&F155&"."&G155 -> Pasywa:B.III.3.i | K155: =G155 &")" -> i) | N155: =K155 -> i) | O155: =teksty!$D$549 -> inne | V155: 0 | W155: 1389.19
A156: 18 | C156: 3 | D156: B | E156: III | F156: 4 | J156: =$J$101&":"&$D156&"."&E156&"."&F156 -> Pasywa:B.III.4 | K156: =F156 -> 4 | N156: 4 | O156: =teksty!$D$550 -> Fundusze specjalne | V156: 61959.04 | W156: 28160.78
A157: 18 | C157: 2 | D157: =D156 -> B | E157: IV | J157: =$J$101&":"&$D157&"."&E157 -> Pasywa:B.IV | K157: =E157 -> IV | N157: IV | O157: =teksty!$D$551 -> Rozliczenia międzyokresowe | V157: =V158+V159 -> 21962.83 | W157: =W158+W159 -> 15208.15
A158: 18 | C158: 3 | D158: =D157 -> B | E158: =E157 -> IV | F158: 1 | J158: =$J$101&":"&$D158&"."&E158&"."&F158 -> Pasywa:B.IV.1 | K158: =F158 -> 1 | N158: =K158 -> 1 | O158: =teksty!$D$552 -> Ujemna wartość firmy
A159: 18 | C159: 3 | D159: =D158 -> B | E159: =E158 -> IV | F159: 2 | J159: =$J$101&":"&$D159&"."&E159&"."&F159 -> Pasywa:B.IV.2 | K159: =F159 -> 2 | N159: =K159 -> 2 | O159: =teksty!$D$553 -> Inne rozliczenia międzyokresowe | V159: =V160+V161+V162 -> 21962.83 | W159: =W160+W161+W162 -> 15208.15
A160: 18 | C160: 4 | D160: =D159 -> B | E160: IV | F160: 2 | G160: 1 | J160: =$J$101&":"&$D160&"."&E160&"."&F160&"."&G160 -> Pasywa:B.IV.2.1 | K160: =F160 -> 2 | O160: =" – " & teksty!$D$554 -> – długoterminowe
A161: 18 | C161: 4 | D161: B | E161: IV | F161: 2 | G161: 2 | J161: =$J$101&":"&$D161&"."&E161&"."&F161&"."&G161 -> Pasywa:B.IV.2.2 | K161: =F161 -> 2 | O161: =" – " & teksty!$D$555 -> – krótkoterminowe | V161: 21962.83 | W161: 15208.15
A162: 18 | C162: 4 | D162: B | E162: IV | F162: 2 | G162: 3 | J162: =$J$101&":"&$D162&"."&E162&"."&F162&"."&G162 -> Pasywa:B.IV.2.3 | K162: =F162 -> 2 | O162: =" – " & teksty!$D$556 -> – rozliczenia międzyokresowe umów budowlanych
A163: 18 | C163: 0 | O163: =teksty!$D$557 -> Pasywa razem (suma pozycji A i B) | V163: =V114+V102 -> 26684332.66 | W163: =W114+W102 -> 17205155.83 | AA163: =teksty!$D$401 & ":" -> Aktywa: | AB163: =V97 -> 26684332.66 | AC163: =W97 -> 17205155.83 | AD163: =X97 -> 0
A164: 18 | C164: 0
A165: 18 | C165: 0
A166: =4 -> 4 | C166: 0 | J166: JednostkaMala | N166: =teksty!$D$401 -> Aktywa | U166: =$U$5 -> Stan na: | V166: =$V$5 -> 2017-12-31 | W166: =$W$5 -> 2016-12-31 | X166: =teksty!$D$273 -> Przekszt. dane porów. za poprzedni okres
A167: =4 -> 4 | C167: =COUNTA(D167:H167) -> 1 | D167: A | J167: =$J$3&":"&$D167 -> Aktywa:A | K167: =D167 -> A | N167: =K167 -> A | O167: =teksty!$D$402 -> Aktywa trwałe
A168: =4 -> 4 | C168: =COUNTA(D168:H168) -> 2 | D168: =D167 -> A | E168: I | J168: =$J$3&":"&$D168&"."&E168 -> Aktywa:A.I | K168: =E168 -> I | N168: =K168 -> I | O168: =teksty!$D$403 -> Wartości niematerialne i prawne
A169: =4 -> 4 | C169: 2 | D169: A | E169: II | J169: =$J$3&":"&$D169&"."&E169 -> Aktywa:A.II | K169: =E169 -> II | N169: =K169 -> II | O169: =teksty!$D$408 & inc -> Rzeczowe aktywa trwałe, w tym:
A170: =4 -> 4 | C170: 3 | D170: A | E170: =E169 -> II | F170: 1 | J170: =$J$3&":"&$D170&"."&E170&"."&F170 -> Aktywa:A.II.1 | K170: =F170 -> 1 | O170: =" – " & LOWER(teksty!$D$409) -> – środki trwałe
A171: =4 -> 4 | C171: =COUNTA(D171:H171) -> 3 | D171: A | E171: II | F171: 2 | J171: =$J$3&":"&$D171&"."&E171&"."&F171 -> Aktywa:A.II.2 | K171: =F171 -> 2 | O171: =" – " & LOWER(teksty!$D$415) -> – środki trwałe w budowie
A172: =4 -> 4 | C172: 2 | D172: A | E172: III | J172: =$J$3&":"&$D172&"."&E172 -> Aktywa:A.III | K172: =E172 -> III | N172: III | O172: =teksty!$D$417 -> Należności długoterminowe
A173: =4 -> 4 | C173: =COUNTA(D173:H173) -> 2 | D173: A | E173: IV | J173: =$J$3&":"&$D173&"."&E173 -> Aktywa:A.IV | K173: =E173 -> IV | N173: IV | O173: =teksty!$D$421 & inc -> Inwestycje długoterminowe, w tym:
A174: =4 -> 4 | C174: 3 | D174: =D173 -> A | E174: IV | F174: 1 | J174: =$J$3&":"&$D174&"."&E174&"."&F174 -> Aktywa:A.IV.1 | K174: =F174 -> 1 | O174: =" – " & LOWER(teksty!$D$422) -> – nieruchomości
A175: =4 -> 4 | C175: 3 | D175: A | E175: IV | F175: 2 | J175: =$J$3&":"&$D175&"."&E175&"."&F175 -> Aktywa:A.IV.2 | K175: =F175 -> 2 | O175: =" – " & LOWER(teksty!$D$424) -> – długoterminowe aktywa finansowe
A176: =4 -> 4 | C176: 2 | D176: =D175 -> A | E176: V | J176: =$J$3&":"&$D176&"."&E176 -> Aktywa:A.V | K176: =E176 -> V | N176: =K176 -> V | O176: =teksty!$D$442 -> Długoterminowe rozliczenia międzyokresowe
A177: =4 -> 4 | C177: 1 | D177: B | J177: =$J$3&":"&$D177 -> Aktywa:B | K177: =D177 -> B | N177: B | O177: =teksty!$D$445 -> Aktywa obrotowe
A178: =4 -> 4 | C178: 2 | D178: =D177 -> B | E178: I | J178: =$J$3&":"&$D178&"."&E178 -> Aktywa:B.I | K178: =E178 -> I | N178: I | O178: =teksty!$D$446 -> Zapasy
A179: =4 -> 4 | C179: 2 | D179: B | E179: II | J179: =$J$3&":"&$D179&"."&E179 -> Aktywa:B.II | K179: =E179 -> II | N179: II | O179: =teksty!$D$453 & inc -> Należności krótkoterminowe, w tym:
A180: =4 -> 4 | C180: =COUNTA(D180:G180) -> 3 | D180: B | E180: II | F180: a | J180: =$J$3&":"&$D180&"."&E180&"."&F180 -> Aktywa:B.II.a | K180: =F180 &")" -> a) | N180: a) | O180: =teksty!$D$455 -> z tytułu dostaw i usług, o okresie spłaty:
A181: =4 -> 4 | C181: =COUNTA(D181:G181) -> 4 | D181: B | E181: =E180 -> II | F181: =F180 -> a | G181: 1 | J181: =$J$3&":"&$D181&"."&E181&"."&F181&"."&G181 -> Aktywa:B.II.a.1 | K181: =G181 & ") " -> 1) | O181: =" – " & teksty!$D$456 -> – do 12 miesięcy
A182: =4 -> 4 | C182: =COUNTA(D182:G182) -> 4 | D182: B | E182: =E181 -> II | F182: =F181 -> a | G182: 2 | J182: =$J$3&":"&$D182&"."&E182&"."&F182&"."&G182 -> Aktywa:B.II.a.2 | K182: =G182 & ") " -> 2) | O182: =" – " & teksty!$D$457 -> – powyżej 12 miesięcy
A183: =4 -> 4 | C183: 2 | D183: B | E183: III | J183: =$J$3&":"&$D183&"."&E183 -> Aktywa:B.III | K183: =E183 -> III | N183: =K183 -> III | O183: =teksty!$D$472 & inc -> Inwestycje krótkoterminowe, w tym:
A184: =4 -> 4 | C184: 3 | D184: =D183 -> B | E184: III | F184: a | J184: =$J$3&":"&$D184&"."&E184&"."&F184 -> Aktywa:B.III.a | K184: =F184 &")" -> a) | N184: a) | O184: =teksty!$D$473 & inc -> Krótkoterminowe aktywa finansowe, w tym:
A185: =4 -> 4 | C185: 4 | D185: B | E185: III | F185: a | G185: 1 | J185: =$J$3&":"&$D185&"."&E185&"."&F185&"."&G185 -> Aktywa:B.III.a.1 | K185: =G185 &")" -> 1) | O185: =" – " &teksty!$D$485 -> – środki pieniężne w kasie i na rachunkach
A186: =4 -> 4 | C186: 2 | D186: B | E186: IV | J186: =$J$3&":"&$D186&"."&E186 -> Aktywa:B.IV | K186: =E186 -> IV | N186: =K186 -> IV | O186: =teksty!$D$489 -> Krótkoterminowe rozliczenia międzyokresowe
A187: =4 -> 4 | C187: 1 | D187: C | J187: =$J$3&":"&$D187 -> Aktywa:C | K187: =D187 -> C | N187: C | O187: =teksty!$D$491 -> Należne wpłaty na kapitał (fundusz) podstawowy
A188: =4 -> 4 | C188: 1 | D188: D | J188: =$J$3&":"&$D188 -> Aktywa:D | K188: =D188 -> D | N188: D | O188: =teksty!$D$492 -> Udziały (akcje) własne
A189: =4 -> 4 | C189: 0 | O189: =teksty!$D$493 -> Aktywa razem (suma pozycji A, B, C i D) | AA189: =teksty!$D$495 & ":" -> Pasywa: | AB189: =V216 -> 0 | AC189: =W216 -> 0 | AD189: =X216 -> 0
A190: =4 -> 4 | C190: 0
A191: =4 -> 4 | C191: 0 | I191: =M2 & teksty!$D$266 & 1 -> Bilans, koniec strony 1
A192: =4 -> 4 | B192: P | C192: 0
A193: =4 -> 4 | C193: 0 | N193: =teksty!$D$495 -> Pasywa | U193: =$U$5 -> Stan na: | V193: =$V$5 -> 2017-12-31 | W193: =$W$5 -> 2016-12-31 | X193: =teksty!$D$273 -> Przekszt. dane porów. za poprzedni okres
A194: =4 -> 4 | C194: 1 | D194: A | J194: =$J$101&":"&$D194 -> Pasywa:A | K194: =D194 -> A | N194: =K194 -> A | O194: =teksty!$D$496 -> Kapitał (fundusz) własny
A195: =4 -> 4 | C195: =COUNTA(D195:H195) -> 2 | D195: =D194 -> A | E195: I | J195: =$J$101&":"&$D195&"."&E195 -> Pasywa:A.I | K195: =E195 -> I | N195: I | O195: =teksty!$D$497 -> Kapitał (fundusz) podstawowy
A196: =4 -> 4 | C196: 2 | D196: A | E196: II | J196: =$J$101&":"&$D196&"."&E196 -> Pasywa:A.II | K196: =E196 -> II | N196: II | O196: =teksty!$D$498 -> Kapitał (fundusz) zapasowy, w tym:
A197: =4 -> 4 | C197: 3 | D197: A | E197: =E196 -> II | F197: 1 | J197: =$J$101&":"&$D197&"."&E197&"."&F197 -> Pasywa:A.II.1 | K197: =F197 -> 1 | O197: =" – " & teksty!$D$499 -> – nadwyżka wartości sprzedaży (wartości emisyjnej) nad wartością nominalną udziałów (akcji)
A198: =4 -> 4 | C198: 2 | D198: A | E198: III | J198: =$J$101&":"&$D198&"."&E198 -> Pasywa:A.III | K198: =E198 -> III | N198: =K198 -> III | O198: =teksty!$D$500 -> Kapitał (fundusz) z aktualizacji wyceny, w tym:
A199: =4 -> 4 | C199: 3 | D199: A | E199: =E198 -> III | F199: 1 | J199: =$J$101&":"&$D199&"."&E199&"."&F199 -> Pasywa:A.III.1 | K199: =F199 -> 1 | O199: =" – " & teksty!$D$501 -> – z tytułu aktualizacji wartości godziwej
A200: =4 -> 4 | C200: 2 | D200: A | E200: IV | J200: =$J$101&":"&$D200&"."&E200 -> Pasywa:A.IV | K200: =E200 -> IV | N200: =K200 -> IV | O200: =SUBSTITUTE(teksty!$D$502,inc,"") -> Pozostałe kapitały (fundusze) rezerwowe
A201: =4 -> 4 | C201: 2 | D201: A | E201: V | J201: =$J$101&":"&$D201&"."&E201 -> Pasywa:A.V | K201: =E201 -> V | N201: =K201 -> V | O201: =teksty!$D$505 -> Zysk (strata) z lat ubiegłych
... 70 more rows

Sheet RZiS
A1: RZiS | C1: Poziom | F1: Składniki | J1: (pełen symbol) | K1: (wyświetlana etykieta) | R1: 1 | S1: =VLOOKUP(WybranaPozycja,teksty!B123:F128,2) -> JednostkaInna | U1: 2 | V1: =VLOOKUP(WybranaPodpozycja,teksty!B132:F133,2) -> Porownawczy
M2: =teksty!D590 -> Rachunek zysków i strat
N3: =Wprowadzenie!$I$4 & " " & IF(NumerWariantuRaportu = 5, teksty!$D$270, "") -> Przedsiębiorstwo "Test" Sp. z o.o. | X3: =teksty!D265 & VLOOKUP(NumerBazyRaportu,BazyKwot,3) -> wszystkie kwoty w złotych
A5: =6*65536 + (2+4+16+64) -> 393302 | N5: =VLOOKUP(WybranaPodpozycja,teksty!$B$132:$F$133,3) -> wariant porównawczy | U5: =IF(BezDat,"",teksty!$D$592) -> za rok: | V5: =IF(BezDat,teksty!$D$930,YEAR(DataDo)) -> 2017 | W5: =IF(BezDat,teksty!$D$931,V5-1) -> 2016 | X5: =teksty!$D$273 -> Przekszt. dane porów. za poprzedni okres | AA5: =IF(OR(_xlfn.ISFORMULA($V$6),_xlfn.ISFORMULA($W$6)),teksty!$D$927,"") -> W niektórych polach są pomocnicze formuły. Jeżeli to potrzebne, możesz je zmienić, lub wpisać w te pola odpowiednie kwoty.
A6: =(4*65536)+(2+16) -> 262162 | C6: =COUNTA(D6:H6) -> 1 | D6: A | J6: =$D6 -> A | K6: =D6 -> A | N6: =K6 -> A | O6: =teksty!$D$595 -> Przychody netto ze sprzedaży i zrównane z nimi, w tym: | V6: =V8+V9+V11+V12 -> 33131865.54 | W6: =W8+W9+W11+W12 -> 29351755.41
A7: =(4*65536)+(2+16) -> 262162 | C7: 2 | D7: =D6 -> A | E7: j | J7: =D7&"."&E7 -> A.j | O7: =IF($N$7=""," – ") & teksty!$D$596 -> – od jednostek powiązanych
A8: 262162 | C8: 2 | D8: =D6 -> A | E8: I | J8: =D8&"."&E8 -> A.I | K8: =E8 -> I | N8: =K8 -> I | O8: =teksty!$D$597 -> Przychody netto ze sprzedaży produktów | V8: 11382717.88 | W8: 9704616.16
A9: 262162 | C9: 2 | D9: =D8 -> A | E9: II | J9: A.II | K9: =E9 -> II | N9: =K9 -> II | O9: =teksty!$D$598 -> Zmiana stanu produktów (zwiększenie – wartość dodatnia, zmniejszenie – wartość ujemna) | V9: 747489.28 | W9: 217111.23
A10: 262162 | C10: =COUNTA(D10:H10) -> 2 | D10: =D9 -> A | E10: j | J10: =D10&"."&E10 -> A.j | O10: =IF($N$7=""," – ") & teksty!$D$599 -> – w tym: obiekty w zabudowie
A11: 262162 | C11: 2 | D11: =D9 -> A | E11: III | J11: A.III | K11: III | N11: =K11 -> III | O11: =teksty!$D$600 -> Koszt wytworzenia produktów na własne potrzeby jednostki | V11: 106818.87 | W11: 63816.09
A12: 262162 | C12: 2 | D12: A | E12: IV | J12: A.IV | K12: IV | N12: =K12 -> IV | O12: =teksty!$D$601 -> Przychody netto ze sprzedaży towarów i materiałów | V12: 20894839.51 | W12: 19366211.93
A13: 262162 | C13: 1 | D13: B | J13: =$D13 -> B | K13: =D13 -> B | N13: =K13 -> B | O13: =teksty!$D$602 -> Koszty działalności operacyjnej | V13: =V14+V15+V16+V17+V19+V20+V22+V23 -> 28967057.92 | W13: =W14+W15+W16+W17+W19+W20+W22+W23 -> 25158658.03
A14: 262162 | C14: 2 | D14: =D13 -> B | E14: I | J14: B.I | K14: =E14 -> I | N14: =K14 -> I | O14: =teksty!$D$603 -> Amortyzacja | V14: 535710.72 | W14: 410343.48
A15: 262162 | C15: 2 | D15: B | E15: II | J15: =D15&"."&E15 -> B.II | K15: =E15 -> II | N15: =K15 -> II | O15: =teksty!$D$604 -> Zużycie materiałów i energii | V15: 6034984.55 | W15: 4695228.85
A16: 262162 | C16: 2 | D16: B | E16: III | J16: B.III | K16: III | N16: III | O16: =teksty!$D$605 -> Usługi obce | V16: 1822610.69 | W16: 1673646.77
A17: 262162 | C17: 2 | D17: B | E17: IV | J17: B.IV | K17: IV | N17: IV | O17: =teksty!$D$606 -> Podatki i opłaty, w tym: | V17: 260672.87 | W17: 133033.55
A18: 262162 | C18: 3 | D18: B | E18: IV | F18: 1 | J18: =D18&"."&E18&"."&F18 -> B.IV.1 | O18: =IF($N$18=""," – ") & teksty!$D$607 -> – podatek akcyzowy
A19: 262162 | C19: 2 | D19: =D17 -> B | E19: V | J19: B.V | K19: V | N19: =K19 -> V | O19: =teksty!$D$608 -> Wynagrodzenia | V19: 4220089.44 | W19: 3835903.64
A20: 262162 | C20: 2 | D20: B | E20: VI | J20: B.VI | K20: VI | N20: =K20 -> VI | O20: =teksty!$D$609 -> Ubezpieczenia społeczne i inne świadczenia, w tym: | V20: 877589.51 | W20: 793591.1
A21: 262162 | C21: 3 | D21: B | E21: VI | F21: 1 | J21: =D21&"."&E21&"."&F21 -> B.VI.1 | O21: =IF($N$21=""," – ") & teksty!$D$610 -> – emerytalne
A22: 262162 | C22: 2 | D22: =D21 -> B | E22: VII | J22: B.VII | K22: VII | N22: =K22 -> VII | O22: =teksty!$D$611 -> Pozostałe koszty rodzajowe | V22: 527259.28 | W22: 509196.85
A23: 262162 | C23: 2 | D23: =D22 -> B | E23: VIII | J23: B.VIII | K23: VIII | N23: VIII | O23: =teksty!$D$612 -> Wartość sprzedanych towarów i materiałów | V23: 14688140.86 | W23: 13107713.79
A24: 262162 | C24: 1 | D24: C | J24: =$D24 -> C | K24: =D24 -> C | N24: =K24 -> C | O24: =teksty!$D$613 -> Zysk (strata) ze sprzedaży (A–B) | V24: =V6-V13 -> 4164807.62 | W24: =W6-W13 -> 4193097.38
A25: 262162 | C25: 1 | D25: D | J25: =$D25 -> D | K25: =D25 -> D | N25: =K25 -> D | O25: =teksty!$D$614 -> Pozostałe przychody operacyjne | V25: =V26+V27+V28+V29 -> 63030.15 | W25: =W26+W27+W28+W29 -> 49497.37
A26: 262162 | C26: 2 | D26: =D25 -> D | E26: I | J26: =D26&"."&E26 -> D.I | K26: =E26 -> I | N26: =K26 -> I | O26: =teksty!$D$615 -> Zysk z tytułu rozchodu niefinansowych aktywów trwałych | V26: 17622.95 | W26: 29874.13
A27: 262162 | C27: 2 | D27: =D26 -> D | E27: II | J27: =D27&"."&E27 -> D.II | K27: =E27 -> II | N27: =K27 -> II | O27: =teksty!$D$616 -> Dotacje
A28: 262162 | C28: 2 | D28: =D27 -> D | E28: III | J28: =D28&"."&E28 -> D.III | K28: =E28 -> III | N28: =K28 -> III | O28: =teksty!$D$617 -> Aktualizacja wartości aktywów niefinansowych
A29: 262162 | C29: 2 | D29: =D28 -> D | E29: IV | J29: =D29&"."&E29 -> D.IV | K29: =E29 -> IV | N29: =K29 -> IV | O29: =teksty!$D$618 -> Inne przychody operacyjne | V29: 45407.2 | W29: 19623.24
A30: 262162 | C30: 1 | D30: E | J30: =$D30 -> E | K30: =D30 -> E | N30: =K30 -> E | O30: =teksty!$D$619 -> Pozostałe koszty operacyjne | V30: =V31+V32+V33 -> 150101.67 | W30: =W31+W32+W33 -> 68562.14
A31: 262162 | C31: 2 | D31: =D30 -> E | E31: I | J31: =D31&"."&E31 -> E.I | K31: =E31 -> I | N31: =K31 -> I | O31: =teksty!$D$620 -> Strata z tytułu rozchodu niefinansowych aktywów trwałych
A32: 262162 | C32: 2 | D32: =D31 -> E | E32: II | J32: =D32&"."&E32 -> E.II | K32: =E32 -> II | N32: =K32 -> II | O32: =teksty!$D$621 -> Aktualizacja wartości aktywów niefinansowych | V32: 66538.7 | W32: 49188.6
A33: 262162 | C33: 2 | D33: =D32 -> E | E33: III | J33: =D33&"."&E33 -> E.III | K33: =E33 -> III | N33: =K33 -> III | O33: =teksty!$D$622 -> Inne koszty operacyjne | V33: 83562.97 | W33: 19373.54
A34: 262162 | C34: 1 | D34: F | J34: =$D34 -> F | K34: =D34 -> F | N34: =K34 -> F | O34: =teksty!$D$623 -> Zysk (strata) z działalności operacyjnej (C+D–E) | V34: =V24+V25-V30 -> 4077736.1 | W34: =W24+W25-W30 -> 4174032.61
A35: 262162 | C35: 1 | D35: G | I35: =teksty!$D$591 & teksty!$D$266 & 1 -> RZiS, koniec strony 1 | J35: =$D35 -> G | K35: =D35 -> G | N35: =K35 -> G | O35: =teksty!$D$624 -> Przychody finansowe | V35: =V37+V42+V44+V46+V47 -> 135518.46 | W35: =W37+W42+W44+W46+W47 -> 15290.7
A36: 262162 | B36: P | C36: 0 | N36: =teksty!$D$133 & teksty!$D$694 -> wariant porównawczy, c.d. poprzedniej strony | U36: =$U$5 -> za rok: | V36: =$V$5 -> 2017 | W36: =$W$5 -> 2016 | X36: =teksty!$D$273 -> Przekszt. dane porów. za poprzedni okres
A37: 262162 | C37: 2 | D37: =D35 -> G | E37: I | J37: =D37&"."&E37 -> G.I | K37: =E37 -> I | N37: =K37 -> I | O37: =teksty!$D$625 -> Dywidendy i udziały w zyskach, w tym: | Z37: =teksty!$D$267 -> ukryty wiersz powyżej zawiera nagłówek dla kolejnej strony
A38: 262162 | C38: 3 | D38: =D37 -> G | E38: I | F38: a | J38: =$D38&"."&E38&"."&F38 -> G.I.a | K38: =F38 -> a | N38: =K38 & ")" -> a) | O38: =teksty!$D$626 -> od jednostek powiązanych, w tym:
A39: 262162 | C39: 4 | D39: G | E39: I | F39: a | G39: 1 | J39: =D39&"."&E39&"."&F39&"."&G39 -> G.I.a.1 | O39: =IF($N$39=""," – ") & teksty!$D$627 -> – w których jednostka posiada zaangażowanie w kapitale
A40: 262162 | C40: 3 | D40: =D39 -> G | E40: I | F40: b | J40: =$D40&"."&E40&"."&F40 -> G.I.b | K40: =F40 -> b | N40: =K40 & ")" -> b) | O40: =teksty!$D$628 -> od jednostek pozostałych, w tym:
A41: 262162 | C41: 4 | D41: =D40 -> G | E41: I | F41: b | G41: 1 | J41: =D41&"."&E41&"."&F41&"."&G41 -> G.I.b.1 | O41: =IF($N$41=""," – ") & teksty!$D$629 -> – w których jednostka posiada zaangażowanie w kapitale
A42: 262162 | C42: 2 | D42: =D41 -> G | E42: II | J42: =D42&"."&E42 -> G.II | K42: =E42 -> II | N42: =K42 -> II | O42: =teksty!$D$630 -> Odsetki, w tym: | V42: 32025.21 | W42: 12701.83
A43: 262162 | C43: 3 | D43: =D42 -> G | E43: II | F43: j | J43: =D43&"."&E43&"."&F43 -> G.II.j | O43: =IF($N$43=""," – ") & teksty!$D$631 -> – od jednostek powiązanych
A44: 262162 | C44: 2 | D44: =D43 -> G | E44: III | J44: =D44&"."&E44 -> G.III | K44: =E44 -> III | N44: =K44 -> III | O44: =teksty!$D$632 -> Zysk z tytułu rozchodu aktywów finansowych, w tym:
A45: 262162 | C45: 3 | D45: =D44 -> G | E45: III | F45: j | J45: =D45&"."&E45&"."&F45 -> G.III.j | O45: =IF($N$45=""," – ") & teksty!$D$633 -> – w jednostkach powiązanych
A46: 262162 | C46: 2 | D46: =D45 -> G | E46: IV | J46: =D46&"."&E46 -> G.IV | K46: =E46 -> IV | N46: =K46 -> IV | O46: =teksty!$D$634 -> Aktualizacja wartości aktywów finansowych
A47: 262162 | C47: 2 | D47: =D46 -> G | E47: V | J47: =D47&"."&E47 -> G.V | K47: =E47 -> V | N47: =K47 -> V | O47: =teksty!$D$635 -> Inne | V47: 103493.25 | W47: 2588.87
A48: 262162 | C48: 1 | D48: H | J48: =$D48 -> H | K48: =D48 -> H | N48: =K48 -> H | O48: =teksty!$D$636 -> Koszty finansowe | V48: =V49+V51+V53+V54 -> 119065.27 | W48: =W49+W51+W53+W54 -> 101933.86
A49: 262162 | C49: 2 | D49: =D48 -> H | E49: I | J49: =D49&"."&E49 -> H.I | K49: =E49 -> I | N49: =K49 -> I | O49: =teksty!$D$637 -> Odsetki, w tym: | V49: 119065.27 | W49: 25133.12
A50: 262162 | C50: 3 | D50: =D49 -> H | E50: I | F50: j | J50: =D50&"."&E50&"."&F50 -> H.I.j | O50: =IF($N$50=""," – ") & teksty!$D$638 -> – dla jednostek powiązanych
A51: 262162 | C51: 2 | D51: =D50 -> H | E51: II | J51: =D51&"."&E51 -> H.II | K51: =E51 -> II | N51: =K51 -> II | O51: =teksty!$D$639 -> Strata z tytułu rozchodu aktywów finansowych, w tym:
A52: 262162 | C52: 3 | D52: H | E52: II | F52: j | J52: =D52&"."&E52&"."&F52 -> H.II.j | O52: =IF($N$52=""," – ") & teksty!$D$640 -> – w jednostkach powiązanych
A53: 262162 | C53: 2 | D53: =D52 -> H | E53: III | J53: =D53&"."&E53 -> H.III | K53: =E53 -> III | N53: =K53 -> III | O53: =teksty!$D$641 -> Aktualizacja wartości aktywów finansowych
A54: 262162 | C54: 2 | D54: =D53 -> H | E54: IV | J54: =D54&"."&E54 -> H.IV | K54: =E54 -> IV | N54: =K54 -> IV | O54: =teksty!$D$642 -> Inne | V54: 0 | W54: 76800.74
A55: 262162 | C55: 1 | D55: I | J55: =$D55 -> I | K55: =D55 -> I | N55: =K55 -> I | O55: =teksty!$D$643 -> Zysk (strata) brutto (F+G–H) | V55: =V34+V35-V48 -> 4094189.29 | W55: =W34+W35-W48 -> 4087389.45
A56: 262162 | C56: 1 | D56: J | J56: =$D56 -> J | K56: =D56 -> J | N56: =K56 -> J | O56: =teksty!$D$644 -> Podatek dochodowy | V56: 772110 | W56: 815318
A57: 262162 | C57: 1 | D57: K | J57: =$D57 -> K | K57: =D57 -> K | N57: =K57 -> K | O57: =teksty!$D$645 -> Pozostałe obowiązkowe zmniejszenia zysku (zwiększenia straty)
A58: 262162 | C58: =COUNTA(D58:H58) -> 1 | D58: L | J58: =$D58 -> L | K58: =D58 -> L | N58: =K58 -> L | O58: =teksty!$D$646 -> Zysk (strata) netto (I–J–K) | V58: =V55-V56-V57 -> 3322079.29 | W58: =W55-W56-W57 -> 3272071.45
A59: 0 | I59: Jednostka Inna | J59: kalkulacyjny
A60: =(2*65536)+(2+16) -> 131090 | C60: =COUNTA(D60:H60) -> 1 | D60: A | J60: =$D60 -> A | K60: =D60 -> A | N60: =K60 -> A | O60: =teksty!$D$648 -> Przychody netto ze sprzedaży produktów, towarów i materiałów, w tym:
A61: =(2*65536)+(2+16) -> 131090 | C61: =COUNTA(D61:H61) -> 2 | D61: =D60 -> A | E61: j | J61: =D61&"."&E61 -> A.j | O61: =IF($N$61=""," – ") &teksty!$D$649 -> – od jednostek powiązanych
A62: 131090 | C62: 2 | D62: =D60 -> A | E62: I | J62: =D62&"."&E62 -> A.I | K62: =E62 -> I | N62: =K62 -> I | O62: =teksty!$D$650 -> Przychody netto ze sprzedaży produktów
A63: 131090 | C63: 2 | D63: =D62 -> A | E63: II | J63: A.II | K63: =E63 -> II | N63: =K63 -> II | O63: =teksty!$D$651 -> Przychody netto ze sprzedaży towarów i materiałów
A64: 131090 | C64: 1 | D64: B | J64: =$D64 -> B | K64: =D64 -> B | N64: =K64 -> B | O64: =teksty!$D$652 -> Koszty sprzedanych produktów, towarów i materiałów, w tym:
A65: 131090 | C65: 2 | D65: =D64 -> B | E65: j | J65: =D65&"."&E65 -> B.j | O65: =IF($N$65=""," – ") &teksty!$D$653 -> – jednostkom powiązanym
A66: 131090 | C66: 2 | D66: =D64 -> B | E66: I | J66: =D66&"."&E66 -> B.I | K66: =E66 -> I | N66: =K66 -> I | O66: =teksty!$D$654 -> Koszt wytworzenia sprzedanych produktów
A67: 131090 | C67: 2 | D67: =D65 -> B | E67: II | J67: =D67&"."&E67 -> B.II | K67: =E67 -> II | N67: II | O67: =teksty!$D$655 -> Wartość sprzedanych towarów i materiałów
A68: 131090 | C68: 1 | D68: C | J68: =$D68 -> C | K68: =D68 -> C | N68: C | O68: =teksty!$D$656 -> Zysk (strata) brutto ze sprzedaży (A–B)
A69: 131090 | C69: 1 | D69: D | J69: =$D69 -> D | K69: =D69 -> D | N69: D | O69: =teksty!$D$657 -> Koszty sprzedaży
A70: 131090 | C70: 1 | D70: E | J70: =$D70 -> E | K70: =D70 -> E | N70: E | O70: =teksty!$D$658 -> Koszty ogólnego zarządu
A71: 131090 | C71: 1 | D71: F | J71: =$D71 -> F | K71: =D71 -> F | N71: F | O71: =teksty!$D$659 -> Zysk (strata) ze sprzedaży (C–D–E)
A72: 131090 | C72: 1 | D72: G | J72: =$D72 -> G | K72: =D72 -> G | N72: G | O72: =teksty!$D$660 -> Pozostałe przychody operacyjne
A73: 131090 | C73: 2 | D73: =D72 -> G | E73: I | J73: =D73&"."&E73 -> G.I | K73: =E73 -> I | N73: I | O73: =teksty!$D$661 -> Zysk z tytułu rozchodu niefinansowych aktywów trwałych
A74: 131090 | C74: 2 | D74: =D73 -> G | E74: II | J74: =D74&"."&E74 -> G.II | K74: =E74 -> II | N74: II | O74: =teksty!$D$662 -> Dotacje
A75: 131090 | C75: 2 | D75: =D74 -> G | E75: III | J75: =D75&"."&E75 -> G.III | K75: =E75 -> III | N75: III | O75: =teksty!$D$663 -> Aktualizacja wartości aktywów niefinansowych
A76: 131090 | C76: 2 | D76: =D75 -> G | E76: IV | J76: =D76&"."&E76 -> G.IV | K76: =E76 -> IV | N76: IV | O76: =teksty!$D$664 -> Inne przychody operacyjne
A77: 131090 | C77: 1 | D77: H | J77: =$D77 -> H | K77: =D77 -> H | N77: H | O77: =teksty!$D$665 -> Pozostałe koszty operacyjne
A78: 131090 | C78: 2 | D78: =D77 -> H | E78: I | J78: =D78&"."&E78 -> H.I | K78: =E78 -> I | N78: I | O78: =teksty!$D$666 -> Strata z tytułu rozchodu niefinansowych aktywów trwałych
A79: 131090 | C79: 2 | D79: =D78 -> H | E79: II | J79: H.II | K79: =E79 -> II | N79: II | O79: =teksty!$D$667 -> Aktualizacja wartości aktywów niefinansowych
A80: 131090 | C80: 2 | D80: =D79 -> H | E80: III | J80: H.III | K80: =E80 -> III | N80: III | O80: =teksty!$D$668 -> Inne koszty operacyjne
A81: 131090 | C81: 1 | D81: I | J81: =$D81 -> I | K81: =D81 -> I | N81: I | O81: =teksty!$D$669 -> Zysk (strata) z działalności operacyjnej (F+G–H)
A82: 131090 | C82: 1 | D82: J | J82: =$D82 -> J | K82: =D82 -> J | N82: J | O82: =teksty!$D$670 -> Przychody finansowe
A83: 131090 | C83: 2 | D83: =D82 -> J | E83: I | J83: =D83&"."&E83 -> J.I | K83: =E83 -> I | N83: I | O83: =teksty!$D$671 -> Dywidendy i udziały w zyskach, w tym:
A84: 131090 | C84: 3 | D84: =D83 -> J | E84: I | F84: a | J84: =$D84&"."&E84&"."&F84 -> J.I.a | K84: =F84 -> a | N84: =K84 & ")" -> a) | O84: =teksty!$D$672 -> od jednostek powiązanych, w tym:
A85: 131090 | C85: 4 | D85: =D84 -> J | E85: I | F85: a | G85: 1 | J85: =D85&"."&E85&"."&F85&"."&G85 -> J.I.a.1 | O85: =IF($N$85=""," – ") & teksty!$D$673 -> – w których jednostka posiada zaangażowanie w kapitale
A86: 131090 | C86: 3 | D86: =D85 -> J | E86: I | F86: b | J86: =$D86&"."&E86&"."&F86 -> J.I.b | K86: =F86 -> b | N86: =K86 & ")" -> b) | O86: =teksty!$D$674 -> od jednostek pozostałych, w tym:
A87: 131090 | C87: 4 | D87: =D86 -> J | E87: I | F87: b | G87: 1 | J87: =D87&"."&E87&"."&F87&"."&G87 -> J.I.b.1 | O87: =IF($N$87=""," – ") & teksty!$D$675 -> – w których jednostka posiada zaangażowanie w kapitale
A88: 131090 | C88: 2 | D88: =D87 -> J | E88: II | J88: =D88&"."&E88 -> J.II | K88: =E88 -> II | N88: =K88 -> II | O88: =teksty!$D$676 -> Odsetki, w tym:
A89: 131090 | C89: 3 | D89: =D88 -> J | E89: II | F89: j | I89: =teksty!$D$591 & teksty!$D$266 & 1 -> RZiS, koniec strony 1 | J89: =D89&"."&E89&"."&F89 -> J.II.j | O89: =IF($N$89=""," – ") & teksty!$D$677 -> – od jednostek powiązanych
A90: 131090 | B90: P | C90: 0 | N90: =teksty!$D$132 & teksty!$D$694 -> wariant kalkulacyjny, c.d. poprzedniej strony | U90: =$U$5 -> za rok: | V90: =$V$5 -> 2017 | W90: =$W$5 -> 2016 | X90: =teksty!$D$273 -> Przekszt. dane porów. za poprzedni okres
A91: 131090 | C91: 2 | D91: =D89 -> J | E91: III | J91: =D91&"."&E91 -> J.III | K91: =E91 -> III | N91: =K91 -> III | O91: =teksty!$D$678 -> Zysk z tytułu rozchodu aktywów finansowych, w tym: | Z91: =teksty!$D$267 -> ukryty wiersz powyżej zawiera nagłówek dla kolejnej strony
A92: 131090 | C92: 3 | D92: J | E92: III | F92: j | J92: =D92&"."&E92&"."&F92 -> J.III.j | O92: =IF($N$92=""," – ") & teksty!$D$679 -> – w jednostkach powiązanych
A93: 131090 | C93: 2 | D93: =D92 -> J | E93: IV | J93: =D93&"."&E93 -> J.IV | K93: =E93 -> IV | N93: =K93 -> IV | O93: =teksty!$D$680 -> Aktualizacja wartości aktywów finansowych
A94: 131090 | C94: 2 | D94: =D93 -> J | E94: V | J94: =D94&"."&E94 -> J.V | K94: =E94 -> V | N94: =K94 -> V | O94: =teksty!$D$681 -> Inne
A95: 131090 | C95: 1 | D95: K | J95: =$D95 -> K | K95: =D95 -> K | N95: =K95 -> K | O95: =teksty!$D$682 -> Koszty finansowe
A96: 131090 | C96: 2 | D96: =D95 -> K | E96: I | J96: =D96&"."&E96 -> K.I | K96: =E96 -> I | N96: =K96 -> I | O96: =teksty!$D$683 -> Odsetki, w tym:
A97: 131090 | C97: 3 | D97: =D96 -> K | E97: I | F97: j | J97: =D97&"."&E97&"."&F97 -> K.I.j | O97: =IF($N$97=""," – ") & teksty!$D$684 -> – dla jednostek powiązanych
A98: 131090 | C98: 2 | D98: =D97 -> K | E98: II | J98: =D98&"."&E98 -> K.II | K98: =E98 -> II | N98: =K98 -> II | O98: =teksty!$D$685 -> Strata z tytułu rozchodu aktywów finansowych, w tym:
A99: 131090 | C99: 3 | D99: =D98 -> K | E99: II | F99: j | J99: =D99&"."&E99&"."&F99 -> K.II.j | O99: =IF($N$99=""," – ") & teksty!$D$686 -> – w jednostkach powiązanych
A100: 131090 | C100: 2 | D100: =D99 -> K | E100: III | J100: =D100&"."&E100 -> K.III | K100: =E100 -> III | N100: =K100 -> III | O100: =teksty!$D$687 -> Aktualizacja wartości aktywów finansowych
A101: 131090 | C101: 2 | D101: =D100 -> K | E101: IV | J101: K.IV | K101: =E101 -> IV | N101: IV | O101: =teksty!$D$688 -> Inne
A102: 131090 | C102: 1 | D102: L | J102: =$D102 -> L | K102: =D102 -> L | N102: L | O102: =teksty!$D$689 -> Zysk (strata) brutto (I+J–K)
A103: 131090 | C103: 1 | D103: M | J103: =$D103 -> M | K103: =D103 -> M | N103: M | O103: =teksty!$D$690 -> Podatek dochodowy
A104: 131090 | C104: 1 | D104: N | J104: =$D104 -> N | K104: =D104 -> N | N104: N | O104: =teksty!$D$691 -> Pozostałe obowiązkowe zmniejszenia zysku (zwiększenia straty)
A105: 131090 | C105: 1 | D105: O | J105: =$D105 -> O | K105: =D105 -> O | N105: O | O105: =teksty!$D$692 -> Zysk (strata) netto (L–M–N)
A106: 0 | C106: 0 | I106: Jednostka Mala | J106: kalkulacyjny
A107: =(2*65536)+(4) -> 131076 | C107: =COUNTA(D107:H107) -> 1 | D107: A | J107: =$D107 -> A | K107: =D107 -> A | N107: =K107 -> A | O107: =SUBSTITUTE(teksty!$D$648,inc,"") -> Przychody netto ze sprzedaży produktów, towarów i materiałów
A108: =(2*65536)+(4) -> 131076 | C108: =COUNTA(D108:H108) -> 1 | D108: B | J108: B | K108: B | N108: =K108 -> B | O108: =SUBSTITUTE(teksty!$D$652,inc,"") -> Koszty sprzedanych produktów, towarów i materiałów
A109: 131076 | C109: 1 | D109: C | J109: C | K109: C | N109: =K109 -> C | O109: =teksty!$D$657 -> Koszty sprzedaży
A110: 131076 | C110: 1 | D110: D | J110: D | K110: D | N110: D | O110: =teksty!$D$658 -> Koszty ogólnego zarządu
A111: 131076 | C111: 1 | D111: E | J111: E | K111: E | N111: E | O111: =teksty!$D$698 -> Zysk (strata) ze sprzedaży (A - B - C - D)
A112: 131076 | C112: 1 | D112: F | J112: F | K112: F | N112: F | O112: =teksty!$D$660 & inc -> Pozostałe przychody operacyjne, w tym:
A113: 131076 | C113: 2 | D113: =D112 -> F | E113: 1 | J113: =D113&"."&E113 -> F.1 | K113: =E113 -> 1 | O113: =" – " & LOWER(teksty!$D$663) -> – aktualizacja wartości aktywów niefinansowych
A114: 131076 | C114: 1 | D114: G | J114: =$D114 -> G | K114: =D114 -> G | N114: G | O114: =teksty!$D$665 & inc -> Pozostałe koszty operacyjne, w tym:
A115: 131076 | C115: 2 | D115: =D114 -> G | E115: 1 | J115: =D115&"."&E115 -> G.1 | K115: =E115 -> 1 | O115: =" – " & LOWER(teksty!$D$667) -> – aktualizacja wartości aktywów niefinansowych
A116: 131076 | C116: 1 | D116: H | J116: =$D116 -> H | K116: =D116 -> H | N116: H | O116: =teksty!$D$670 & inc -> Przychody finansowe, w tym:
A117: 131076 | C117: 2 | D117: =D116 -> H | E117: I | J117: =D117&"."&E117 -> H.I | K117: =E117 -> I | N117: I | O117: =teksty!$D$696 -> Dywidendy i udziały w zyskach od jednostek, w których jednostka posiada zaangażowanie w kapitale, w tym:
A118: 131076 | C118: 3 | D118: =D117 -> H | E118: I | F118: 1 | J118: =$D118&"."&E118&"."&F118 -> H.I.1 | K118: =F118 -> 1 | O118: =" – " & SUBSTITUTE(teksty!$D$672,inc,"") & "," & teksty!$D$673 -> – od jednostek powiązanych,w których jednostka posiada zaangażowanie w kapitale
A119: 131076 | C119: 2 | D119: H | E119: II | J119: =D119&"."&E119 -> H.II | K119: =E119 -> II | N119: =K119 -> II | O119: =teksty!$D$676 -> Odsetki, w tym:
A120: 131076 | C120: 3 | D120: =D119 -> H | E120: II | F120: 1 | J120: =D120&"."&E120&"."&F120 -> H.II.1 | O120: =IF($N$89=""," – ") & teksty!$D$677 -> – od jednostek powiązanych
A121: 131076 | C121: 2 | D121: =D120 -> H | E121: III | J121: =D121&"."&E121 -> H.III | K121: =E121 -> III | N121: =K121 -> III | O121: =teksty!$D$678 -> Zysk z tytułu rozchodu aktywów finansowych, w tym:
A122: 131076 | C122: 3 | D122: =D121 -> H | E122: III | F122: 1 | J122: =D122&"."&E122&"."&F122 -> H.III.1 | O122: =IF($N$92=""," – ") & teksty!$D$679 -> – w jednostkach powiązanych
A123: 131076 | C123: 2 | D123: =D122 -> H | E123: IV | J123: =D123&"."&E123 -> H.IV | K123: =E123 -> IV | N123: =K123 -> IV | O123: =teksty!$D$680 -> Aktualizacja wartości aktywów finansowych
A124: 131076 | C124: 1 | D124: I | J124: =$D124 -> I | K124: =D124 -> I | N124: =K124 -> I | O124: =teksty!$D$682 & inc -> Koszty finansowe, w tym:
A125: 131076 | C125: 2 | D125: =D124 -> I | E125: I | J125: =D125&"."&E125 -> I.I | K125: =E125 -> I | N125: =K125 -> I | O125: =teksty!$D$683 -> Odsetki, w tym:
A126: 131076 | C126: 3 | D126: =D125 -> I | E126: I | F126: 1 | J126: =D126&"."&E126&"."&F126 -> I.I.1 | O126: =IF($N$97=""," – ") & teksty!$D$684 -> – dla jednostek powiązanych
A127: 131076 | C127: 2 | D127: =D126 -> I | E127: II | J127: =D127&"."&E127 -> I.II | K127: =E127 -> II | N127: =K127 -> II | O127: =teksty!$D$685 -> Strata z tytułu rozchodu aktywów finansowych, w tym:
A128: 131076 | C128: 3 | D128: =D127 -> I | E128: II | F128: 1 | J128: =D128&"."&E128&"."&F128 -> I.II.1 | O128: =IF($N$99=""," – ") & teksty!$D$686 -> – w jednostkach powiązanych
A129: 131076 | C129: 2 | D129: =D128 -> I | E129: III | J129: =D129&"."&E129 -> I.III | K129: =E129 -> III | N129: =K129 -> III | O129: =teksty!$D$687 -> Aktualizacja wartości aktywów finansowych
A130: 131076 | C130: 1 | D130: J | J130: =$D130 -> J | K130: =D130 -> J | N130: J | O130: =teksty!$D$699 -> Zysk (strata) brutto (E + F - G + H - I)
A131: 131076 | C131: 1 | D131: K | J131: =$D131 -> K | K131: =D131 -> K | N131: K | O131: =teksty!$D$690 -> Podatek dochodowy
A132: 131076 | C132: 1 | D132: L | J132: =$D132 -> L | K132: =D132 -> L | N132: L | O132: =teksty!$D$700 -> Zysk (strata) netto (J - K)
A133: 0 | C133: 0 | I133: Jednostka Mala | J133: porównawczy
A134: =(4*65536)+(4) -> 262148 | C134: 1 | D134: A | J134: =$D134 -> A | K134: =D134 -> A | N134: =K134 -> A | O134: =SUBSTITUTE(teksty!$D$595,inc,"") -> Przychody netto ze sprzedaży i zrównane z nimi
A135: =(4*65536)+(4) -> 262148 | C135: 2 | D135: =D134 -> A | E135: I | J135: =D135&"."&E135 -> A.I | K135: =E135 -> I | N135: =K135 -> I | O135: =teksty!$D$702 -> Przychody netto ze sprzedaży
A136: 262148 | C136: 2 | D136: =D135 -> A | E136: II | J136: A.II | K136: =E136 -> II | N136: =K136 -> II | O136: =teksty!$D$598 -> Zmiana stanu produktów (zwiększenie – wartość dodatnia, zmniejszenie – wartość ujemna)
A137: 262148 | C137: 2 | D137: =D136 -> A | E137: III | J137: A.III | K137: III | N137: =K137 -> III | O137: =teksty!$D$600 -> Koszt wytworzenia produktów na własne potrzeby jednostki
A138: 262148 | C138: 1 | D138: B | J138: =$D138 -> B | K138: =D138 -> B | N138: =K138 -> B | O138: =teksty!$D$602 -> Koszty działalności operacyjnej
A139: 262148 | C139: 2 | D139: =D138 -> B | E139: I | J139: =D139&"."&E139 -> B.I | K139: =E139 -> I | N139: =K139 -> I | O139: =teksty!$D$603 -> Amortyzacja
A140: 262148 | C140: 2 | D140: =D139 -> B | E140: II | J140: B.II | K140: =E140 -> II | N140: II | O140: =teksty!$D$604 -> Zużycie materiałów i energii
A141: 262148 | C141: 2 | D141: =D140 -> B | E141: III | J141: B.III | K141: III | N141: III | O141: =teksty!$D$605 -> Usługi obce
A142: 262148 | C142: 2 | D142: B | E142: IV | J142: =D142&"."&E142 -> B.IV | K142: =E142 -> IV | N142: =K142 -> IV | O142: =teksty!$D$608 -> Wynagrodzenia
A143: 262148 | C143: 2 | D143: =D142 -> B | E143: V | J143: B.V | K143: V | N143: V | O143: =teksty!$D$609 -> Ubezpieczenia społeczne i inne świadczenia, w tym:
A144: 262148 | C144: 3 | D144: =D143 -> B | E144: V | F144: 1 | J144: =D144&"."&E144&"."&F144 -> B.V.1 | O144: =" – " & teksty!$D$610 -> – emerytalne
A145: 262148 | C145: 2 | D145: =D144 -> B | E145: VI | J145: =D145&"."&E145 -> B.VI | K145: =E145 -> VI | N145: =K145 -> VI | O145: =teksty!$D$703 -> Pozostałe koszty, w tym:
A146: 262148 | C146: =COUNTA(D146:H146) -> 3 | D146: B | E146: VI | F146: 1 | J146: =D146&"."&E146&"."&F146 -> B.VI.1 | O146: =" – " & LOWER(teksty!$D$612) -> – wartość sprzedanych towarów i materiałów
A147: =(4*65536)+(4) -> 262148 | C147: =COUNTA(D147:H147) -> 1 | D147: C | J147: =$D147 -> C | K147: =D147 -> C | N147: =K147 -> C | O147: =teksty!$D$704 -> Zysk (strata) ze sprzedaży (A - B)
A148: 262148 | C148: 1 | D148: D | J148: =$D148 -> D | K148: =D148 -> D | N148: D | O148: =teksty!$D$660 & inc -> Pozostałe przychody operacyjne, w tym:
A149: 262148 | C149: 2 | D149: =D148 -> D | E149: 1 | J149: =D149&"."&E149 -> D.1 | K149: =E149 -> 1 | O149: =" – " & LOWER(teksty!$D$663) -> – aktualizacja wartości aktywów niefinansowych
A150: 262148 | C150: 1 | D150: E | J150: =$D150 -> E | K150: =D150 -> E | N150: =K150 -> E | O150: =teksty!$D$665 & inc -> Pozostałe koszty operacyjne, w tym:
A151: 262148 | C151: 2 | D151: =D150 -> E | E151: 1 | J151: =D151&"."&E151 -> E.1 | K151: =E151 -> 1 | O151: =" – " & LOWER(teksty!$D$667) -> – aktualizacja wartości aktywów niefinansowych
A152: 262148 | C152: 1 | D152: F | J152: =$D152 -> F | K152: =D152 -> F | N152: =K152 -> F | O152: =teksty!$D$670 & inc -> Przychody finansowe, w tym:
A153: 262148 | C153: 2 | D153: =D152 -> F | E153: I | J153: =D153&"."&E153 -> F.I | K153: =E153 -> I | N153: I | O153: =teksty!$D$696 -> Dywidendy i udziały w zyskach od jednostek, w których jednostka posiada zaangażowanie w kapitale, w tym:
A154: 262148 | C154: 3 | D154: =D153 -> F | E154: I | F154: 1 | J154: =$D154&"."&E154&"."&F154 -> F.I.1 | K154: =F154 -> 1 | O154: =" – " &SUBSTITUTE(teksty!$D$672,inc,"") & "," & teksty!$D$673 -> – od jednostek powiązanych,w których jednostka posiada zaangażowanie w kapitale
A155: 262148 | C155: 2 | D155: =D154 -> F | E155: II | J155: =D155&"."&E155 -> F.II | K155: =E155 -> II | N155: =K155 -> II | O155: =teksty!$D$676 -> Odsetki, w tym:
A156: 262148 | C156: 3 | D156: =D155 -> F | E156: II | F156: 1 | J156: =D156&"."&E156&"."&F156 -> F.II.1 | O156: =" – " & teksty!$D$677 -> – od jednostek powiązanych
A157: 262148 | C157: 2 | D157: =D156 -> F | E157: III | J157: =D157&"."&E157 -> F.III | K157: =E157 -> III | N157: =K157 -> III | O157: =teksty!$D$678 -> Zysk z tytułu rozchodu aktywów finansowych, w tym:
A158: 262148 | C158: 3 | D158: =D157 -> F | E158: III | F158: 1 | J158: =D158&"."&E158&"."&F158 -> F.III.1 | O158: =" – " &teksty!$D$679 -> – w jednostkach powiązanych
A159: 262148 | C159: 2 | D159: =D158 -> F | E159: IV | J159: =D159&"."&E159 -> F.IV | K159: =E159 -> IV | N159: =K159 -> IV | O159: =teksty!$D$680 -> Aktualizacja wartości aktywów finansowych
A160: 262148 | C160: 1 | D160: G | J160: =$D160 -> G | K160: =D160 -> G | N160: =K160 -> G | O160: =teksty!$D$682 & inc -> Koszty finansowe, w tym:
A161: 262148 | C161: 2 | D161: =D160 -> G | E161: I | J161: =D161&"."&E161 -> G.I | K161: =E161 -> I | N161: =K161 -> I | O161: =teksty!$D$683 -> Odsetki, w tym:
A162: 262148 | C162: 3 | D162: =D161 -> G | E162: I | F162: 1 | J162: =D162&"."&E162&"."&F162 -> G.I.1 | O162: =" – " &teksty!$D$684 -> – dla jednostek powiązanych
A163: 262148 | C163: 2 | D163: =D162 -> G | E163: II | J163: =D163&"."&E163 -> G.II | K163: =E163 -> II | N163: =K163 -> II | O163: =teksty!$D$685 -> Strata z tytułu rozchodu aktywów finansowych, w tym:
A164: 262148 | C164: 3 | D164: =D163 -> G | E164: II | F164: 1 | J164: =D164&"."&E164&"."&F164 -> G.II.1 | O164: =" – " & teksty!$D$686 -> – w jednostkach powiązanych
A165: 262148 | C165: 2 | D165: =D164 -> G | E165: III | I165: =teksty!$D$591 & teksty!$D$266 & 1 -> RZiS, koniec strony 1 | J165: =D165&"."&E165 -> G.III | K165: =E165 -> III | N165: =K165 -> III | O165: =teksty!$D$687 -> Aktualizacja wartości aktywów finansowych
A166: 262148 | B166: P | C166: 0 | N166: =teksty!$D$133 & teksty!$D$694 -> wariant porównawczy, c.d. poprzedniej strony | U166: =$U$5 -> za rok: | V166: =$V$5 -> 2017 | W166: =$W$5 -> 2016 | X166: =teksty!$D$273 -> Przekszt. dane porów. za poprzedni okres
A167: 262148 | C167: 1 | D167: H | J167: =$D167 -> H | K167: =D167 -> H | N167: H | O167: =teksty!$D$705 -> Zysk (strata) brutto (C + D - E + F - G) | Z167: =teksty!$D$267 -> ukryty wiersz powyżej zawiera nagłówek dla kolejnej strony
A168: 262148 | C168: 1 | D168: I | J168: =$D168 -> I | K168: =D168 -> I | N168: I | O168: =teksty!$D$690 -> Podatek dochodowy
A169: 262148 | C169: 1 | D169: J | J169: =$D169 -> J | K169: =D169 -> J | N169: J | O169: =teksty!$D$706 -> Zysk (strata) netto (H - I)
A170: 262148 | C170: =COUNTA(D170:H170) -> 0
A171: 0 | I171: Jednostka Op
A172: =(6*65536)+(32) -> 393248 | N172: =teksty!$D$861 -> wyszczególnienie | U172: =$U$5 -> za rok: | V172: =$V$5 -> 2017 | W172: =$W$5 -> 2016 | X172: =teksty!$D$273 -> Przekszt. dane porów. za poprzedni okres | AA172: =IF(OR(_xlfn.ISFORMULA($V$173),_xlfn.ISFORMULA($W$173)),teksty!$D$927,"") -> 
A173: =(6*65536)+(32) -> 393248 | C173: 1 | D173: A | J173: =$D173 -> A | K173: =D173 -> A | N173: =K173 -> A | O173: =teksty!$D$728 -> Przychody z działalności statutowej
A174: =(6*65536)+(32) -> 393248 | C174: 2 | D174: =D173 -> A | E174: I | J174: =D174&"."&E174 -> A.I | K174: =E174 -> I | N174: =K174 -> I | O174: =teksty!$D$729 -> Przychody z nieodpłatnej działalności pożytku publicznego
A175: 393248 | C175: 2 | D175: =D174 -> A | E175: II | J175: A.II | K175: =E175 -> II | N175: =K175 -> II | O175: =teksty!$D$730 -> Przychody z odpłatnej działalności pożytku publicznego
A176: 393248 | C176: 2 | D176: A | E176: III | J176: A.III | K176: III | N176: =K176 -> III | O176: =teksty!$D$731 -> Przychody z pozostałej działalności statutowej
A177: 393248 | C177: 1 | D177: B | J177: =$D177 -> B | K177: =D177 -> B | N177: =K177 -> B | O177: =teksty!$D$732 -> Koszty działalnosci statutowej
A178: 393248 | C178: 2 | D178: =D177 -> B | E178: I | J178: =D178&"."&E178 -> B.I | K178: =E178 -> I | N178: =K178 -> I | O178: =teksty!$D$733 -> Koszty nieodpłatnej działalności pożytku publicznego
A179: 393248 | C179: 2 | D179: =D178 -> B | E179: II | J179: B.II | K179: =E179 -> II | N179: II | O179: =teksty!$D$734 -> Koszty odpłatnej działalności pożytku publicznego
A180: 393248 | C180: 2 | D180: B | E180: III | J180: B.III | K180: III | N180: III | O180: =teksty!$D$735 -> Koszty pozostałej działalności statutowej
A181: 393248 | C181: 1 | D181: C | J181: =$D181 -> C | K181: =D181 -> C | N181: =K181 -> C | O181: =teksty!$D736 -> Zysk (strata) z działalności statutowej (A - B)
A182: 393248 | C182: 1 | D182: D | J182: D | K182: D | N182: D | O182: =teksty!$D737 -> Przychody z działalności gospodarczej
A183: 393248 | C183: 1 | D183: E | J183: E | K183: E | N183: =K183 -> E | O183: =teksty!$D738 -> Koszty działalności gospodarczej
A184: 393248 | C184: 1 | D184: F | J184: F | K184: F | N184: =K184 -> F | O184: =teksty!$D739 -> Zysk (strata) z działalności gospodarczej (D - E)
A185: 393248 | C185: 1 | D185: G | J185: G | K185: G | N185: =K185 -> G | O185: =teksty!$D740 -> Koszty ogólnego zarządu
A186: 393248 | C186: 1 | D186: H | J186: H | K186: H | N186: =K186 -> H | O186: =teksty!$D741 -> Zysk (strata) z działalności operacyjnej (C + F - G)
A187: 393248 | C187: 1 | D187: I | J187: I | K187: I | N187: I | O187: =teksty!$D742 -> Pozostałe przychody operacyjne
A188: 393248 | C188: 1 | D188: J | J188: J | K188: J | N188: J | O188: =teksty!$D743 -> Pozostałe koszty operacyjne
A189: 393248 | C189: =COUNTA(D189:H189) -> 1 | D189: K | J189: K | K189: K | N189: =K189 -> K | O189: =teksty!$D744 -> Przychody finansowe
A190: 393248 | C190: 1 | D190: L | J190: L | K190: L | N190: L | O190: =teksty!$D745 -> Koszty finansowe
A191: 393248 | C191: 1 | D191: M | J191: M | K191: M | N191: =K191 -> M | O191: =teksty!$D746 -> Zysk (strata) brutto (H + I - J + K - L)
A192: 393248 | C192: 1 | D192: N | J192: N | K192: N | N192: N | O192: =teksty!$D$747 -> Podatek dochodowy
A193: 393248 | C193: =COUNTA(D193:H193) -> 1 | D193: O | J193: O | K193: O | N193: =K193 -> O | O193: =teksty!$D748 -> Zysk (strata) netto (M - N)
A194: 0 | C194: =COUNTA(D194:H194) -> 0 | I194: Jednostka Mikro
A195: =(6*65536)+(8) -> 393224 | N195: =teksty!$D$861 -> wyszczególnienie | U195: =$U$5 -> za rok: | V195: =$V$5 -> 2017 | W195: =$W$5 -> 2016 | X195: =teksty!$D$273 -> Przekszt. dane porów. za poprzedni okres | AA195: =IF(OR(_xlfn.ISFORMULA($V$198),_xlfn.ISFORMULA($W$198)),teksty!$D$927,"") -> 
A196: =(6*65536)+(8) -> 393224 | C196: 1 | D196: A | J196: =$D196 -> A | K196: =D196 -> A | N196: =K196 -> A | O196: =teksty!D750 -> Przychody podstawowej działalności operacyjnej i zrównane z nimi, w tym:
A197: =(6*65536)+(8) -> 393224 | C197: 2 | D197: =D196 -> A | E197: 1 | J197: =D197&"."&E197 -> A.1 | O197: =" – " & LOWER(teksty!$D$598) -> – zmiana stanu produktów (zwiększenie – wartość dodatnia, zmniejszenie – wartość ujemna)
A198: 393224 | C198: 1 | D198: B | J198: =$D198 -> B | K198: =D198 -> B | N198: =K198 -> B | O198: =teksty!$D$751 -> Koszty podstawowej działalności operacyjnej
A199: 393224 | C199: 2 | D199: =D198 -> B | E199: I | J199: =D199&"."&E199 -> B.I | K199: =E199 -> I | N199: =K199 -> I | O199: =teksty!$D$603 -> Amortyzacja
A200: 393224 | C200: 2 | D200: =D199 -> B | E200: II | J200: B.II | K200: =E200 -> II | N200: II | O200: =teksty!$D$604 -> Zużycie materiałów i energii
A201: 393224 | C201: 2 | D201: B | E201: III | J201: B.III | K201: III | N201: III | O201: =teksty!$D$752 -> Wynagrodzenia, ubezpieczenia społeczne i inne świadczenia
... 14 more rows

Sheet Kapitał
A1: ZestZmianWKapitale | C1: Poziom | F1: Składniki | J1: (pełen symbol) | K1: (wyświetlana etykieta) | R1: 1 | S1: =VLOOKUP(WybranaPozycja,teksty!B115:F119,2) -> JednostkaInna
M2: =teksty!D860 -> Zestawienie zmian w kapitale (funduszu) własnym
I3: =teksty!$D$272 -> Opcjonalne. Aby nie włączać tego zestawienia do sprawozdania - ukryj ten arkusz | N3: =Wprowadzenie!$I$4 & " " & IF(NumerWariantuRaportu = 5, teksty!$D$270, "") -> Przedsiębiorstwo "Test" Sp. z o.o. | W3: =teksty!D265 & VLOOKUP(NumerBazyRaportu,BazyKwot,3) -> wszystkie kwoty w złotych
N5: =teksty!D861 -> wyszczególnienie | U5: =IF(BezDat,"",teksty!$D$592) -> za rok: | V5: =IF(BezDat,teksty!$D$930,YEAR(DataDo)) -> 2017 | W5: =IF(BezDat,teksty!$D$931,V5-1) -> 2016 | Z5: =IF(OR(_xlfn.ISFORMULA($V$9),_xlfn.ISFORMULA($W$9)),teksty!$D$927,"") -> W niektórych polach są pomocnicze formuły. Jeżeli to potrzebne, możesz je zmienić, lub wpisać w te pola odpowiednie kwoty.
A6: =2 -> 2 | C6: =COUNTA(D6:H6) -> 1 | D6: I | J6: =$D6 -> I | K6: =D6 -> I | N6: =K6 -> I | O6: =teksty!$D$864 -> Kapitał (fundusz) własny na początek okresu (BO) | V6: 11376420 | W6: 8594348.81
A7: =A6 -> 2 | C7: =COUNTA(D7:H7) -> 2 | D7: =D6 -> I | E7: 1 | J7: =D7&"."&E7 -> I.1 | O7: =IF($N$7=""," – ") &teksty!$D$865 -> – zmiany przyjętych zasad (polityki) rachunkowości
A8: =A7 -> 2 | C8: =COUNTA(D8:H8) -> 2 | D8: =D7 -> I | E8: 2 | J8: =D8&"."&E8 -> I.2 | O8: =IF($N$8=""," – ") &teksty!$D$866 -> – korekty błędów
A9: 2 | C9: 1 | D9: Ia | J9: =$D9 -> Ia | K9: =D9 -> Ia | N9: =K9 -> Ia | O9: =teksty!$D$867 -> Kapitał (fundusz) własny na początek okresu (BO), po korektach | V9: =V6+V7+V8 -> 11376420 | W9: =W6+W7+W8 -> 8594348.81
A10: 2 | C10: =COUNTA(D10:H10) -> 2 | D10: =D9 -> Ia | E10: 1 | J10: =D10&"."&E10 -> Ia.1 | K10: =E10 -> 1 | N10: =K10 -> 1 | O10: =teksty!$D$868 -> Kapitał (fundusz) podstawowy na początek okresu | V10: 102000 | W10: 102000
A11: 2 | C11: =COUNTA(D11:H11) -> 3 | D11: =D10 -> Ia | E11: 1 | F11: 1 | J11: =D11&"."&E11 & "." & F11 -> Ia.1.1 | K11: =E11&"."&F11 -> 1.1 | N11: =K11 -> 1.1 | O11: =teksty!$D$869 -> Zmiany kapitału (funduszu) podstawowego | V11: =V12-V17 -> 0 | W11: =W12-W17 -> 0
A12: 2 | C12: 4 | D12: Ia | E12: 1 | F12: =F11 -> 1 | G12: a | J12: =D12&"."&E12 & "." & F12& "." & G12 -> Ia.1.1.a | K12: =G12 &")" -> a) | N12: =K12 -> a) | O12: =teksty!$D$870 -> zwiększenie (z tytułu) | V12: =V13+V14+V15+V16 -> 0 | W12: =W13+W14+W15+W16 -> 0
A13: 2 | C13: 5 | D13: =D12 -> Ia | E13: =E12 -> 1 | F13: 1 | G13: =G12 -> a | H13: 1 | J13: =D13&"."&E13 & "." & F13& "." & G13 & "." & H13 -> Ia.1.1.a.1 | O13: =IF($N$13=""," – ") &teksty!$D$871 -> – wydania udziałów (emisji akcji)
A14: 2 | C14: 5 | D14: Ia | E14: =E13 -> 1 | F14: =F13 -> 1 | G14: =G13 -> a | H14: =H13+1 -> 2 | J14: =D14&"."&E14 & "." & F14& "." & G14 & "." & "p" & (H14-H13) -> Ia.1.1.a.p1
A15: 2 | C15: 5 | D15: Ia | E15: 1 | F15: 1 | G15: =G14 -> a | H15: =H14+1 -> 3 | J15: =D15&"."&E15 & "." & F15& "." & G15 & "." & "p" & (H15-H13) -> Ia.1.1.a.p2
A16: 2 | C16: 5 | D16: Ia | E16: 1 | F16: 1 | G16: =G15 -> a | H16: 4 | J16: =D16&"."&E16 & "." & F16& "." & G16 & "." & "p" & (H16-H13) -> Ia.1.1.a.p3
A17: 2 | C17: 4 | D17: Ia | E17: 1 | F17: 1 | G17: b | J17: =D17&"."&E17 & "." & F17& "." & G17 -> Ia.1.1.b | K17: =G17 &")" -> b) | N17: =K17 -> b) | O17: =teksty!$D$872 -> zmniejszenie (z tytułu) | V17: =V18+V19+V20+V21 -> 0 | W17: =W18+W19+W20+W21 -> 0
A18: 2 | C18: 5 | D18: Ia | E18: 1 | F18: =F17 -> 1 | G18: =G17 -> b | H18: 1 | J18: =D18&"."&E18 & "." & F18& "." & G18 & "." & H18 -> Ia.1.1.b.1 | O18: =IF($N$18=""," – ") &teksty!$D$873 -> – umorzenia udziałów (akcji)
A19: 2 | C19: =COUNTA(D19:H19) -> 5 | D19: Ia | E19: 1 | F19: 1 | G19: =G18 -> b | H19: =H18+1 -> 2 | J19: =D19&"."&E19 & "." & F19& "." & G19 & "." & "p" & (H19-H18) -> Ia.1.1.b.p1
A20: 2 | C20: 5 | D20: Ia | E20: 1 | F20: 1 | G20: =G19 -> b | H20: =H19+1 -> 3 | J20: =D20&"."&E20 & "." & F20& "." & G20 & "." & "p" & (H20-H18) -> Ia.1.1.b.p2
A21: 2 | C21: 5 | D21: Ia | E21: 1 | F21: 1 | G21: =G20 -> b | H21: 4 | J21: =D21&"."&E21 & "." & F21& "." & G21 & "." & "p" & (H21-H18) -> Ia.1.1.b.p3
A22: 2 | C22: 3 | D22: Ia | E22: =E18 -> 1 | F22: 2 | J22: =D22&"."&E22 & "." & F22 -> Ia.1.2 | K22: =E22&"."&F22 -> 1.2 | N22: =K22 -> 1.2 | O22: =teksty!$D$874 -> Kapitał (fundusz) podstawowy na koniec okresu | V22: =V10+V11 -> 102000 | W22: =W10+W11 -> 102000
A23: 2 | C23: 2 | D23: Ia | E23: 2 | J23: =D23&"."&E23 -> Ia.2 | K23: =E23 -> 2 | N23: =K23 -> 2 | O23: =teksty!$D$875 -> Kapitał (fundusz) zapasowy na początek okresu | V23: 8242348.81 | W23: 7042200.83
A24: 2 | C24: 3 | D24: Ia | E24: 2 | F24: 1 | J24: =D24&"."&E24 & "." & F24 -> Ia.2.1 | K24: =E24&"."&F24 -> 2.1 | N24: =K24 -> 2.1 | O24: =teksty!$D$876 -> Zmiany kapitału (funduszu) zapasowego | V24: =V25-V32 -> 2872071.45 | W24: =W25-W32 -> 1200147.98
A25: 2 | C25: 4 | D25: Ia | E25: 2 | F25: =F24 -> 1 | G25: a | J25: =D25&"."&E25 & "." & F25& "." & G25 -> Ia.2.1.a | K25: =G25 &")" -> a) | N25: =K25 -> a) | O25: =teksty!$D$877 -> zwiększenie (z tytułu) | V25: =V26+V27+V28+V29+V30+V31 -> 2872071.45 | W25: =W26+W27+W28+W29+W30+W31 -> 1200147.98
A26: 2 | C26: 5 | D26: =D25 -> Ia | E26: 2 | F26: =F25 -> 1 | G26: =G25 -> a | H26: 1 | J26: =D26&"."&E26 & "." & F26& "." & G26 & "." & H26 -> Ia.2.1.a.1 | O26: =IF($N$26=""," – ") &teksty!$D$878 -> – emisji akcji powyżej wartości nominalnej
A27: 2 | C27: 5 | D27: Ia | E27: 2 | F27: =F26 -> 1 | G27: a | H27: 2 | J27: =D27&"."&E27 & "." & F27& "." & G27 & "." & H27 -> Ia.2.1.a.2 | O27: =IF($N$27=""," – ") &teksty!$D$879 -> – podziału zysku (ustawowo) | V27: 2872071.45 | W27: 1200147.98
A28: 2 | C28: 5 | D28: Ia | E28: 2 | F28: 1 | G28: a | H28: 3 | J28: =D28&"."&E28 & "." & F28& "." & G28 & "." & H28 -> Ia.2.1.a.3 | O28: =IF($N$28=""," – ") &teksty!$D$880 -> – podziału zysku (ponad wymaganą ustawowo minimalną wartość)
A29: 2 | C29: 5 | D29: Ia | E29: 2 | F29: 1 | G29: a | H29: =H28+1 -> 4 | J29: =D29&"."&E29 & "." & F29& "." & G29 & "." & "p" & (H29-H28) -> Ia.2.1.a.p1
A30: 2 | C30: 5 | D30: Ia | E30: 2 | F30: 1 | G30: a | H30: =H29+1 -> 5 | J30: =D30&"."&E30 & "." & F30& "." & G30 & "." & "p" & (H30-H28) -> Ia.2.1.a.p2
A31: 2 | C31: 5 | D31: Ia | E31: 2 | F31: 1 | G31: a | H31: 6 | J31: =D31&"."&E31 & "." & F31& "." & G31 & "." & "p" & (H31-H28) -> Ia.2.1.a.p3
A32: 2 | C32: 4 | D32: =D31 -> Ia | E32: 2 | F32: 1 | G32: b | J32: =D32&"."&E32 & "." & F32& "." & G32 -> Ia.2.1.b | K32: =G32 &")" -> b) | N32: =K32 -> b) | O32: =teksty!$D$881 -> zmniejszenie (z tytułu) | V32: =V33+V34+V35+V36 -> 0 | W32: =W33+W34+W35+W36 -> 0
A33: 2 | C33: 5 | D33: =D32 -> Ia | E33: 2 | F33: =F32 -> 1 | G33: =G32 -> b | H33: 1 | J33: =D33&"."&E33 & "." & F33& "." & G33 & "." & H33 -> Ia.2.1.b.1 | O33: =IF($N$33=""," – ") &teksty!$D$882 -> – pokrycia straty
A34: 2 | C34: =COUNTA(D34:H34) -> 5 | D34: =D33 -> Ia | E34: 2 | F34: 1 | G34: =G33 -> b | H34: =H33+1 -> 2 | J34: =D34&"."&E34 & "." & F34& "." & G34 & "." & "p" & (H34-H33) -> Ia.2.1.b.p1
A35: 2 | C35: 5 | D35: =D34 -> Ia | E35: 2 | F35: 1 | G35: =G34 -> b | H35: =H34+1 -> 3 | J35: =D35&"."&E35 & "." & F35& "." & G35 & "." & "p" & (H35-H33) -> Ia.2.1.b.p2
A36: 2 | C36: 5 | D36: =D35 -> Ia | E36: 2 | F36: 1 | G36: =G35 -> b | H36: 4 | J36: =D36&"."&E36 & "." & F36& "." & G36 & "." & "p" & (H36-H33) -> Ia.2.1.b.p3
A37: 2 | C37: 3 | D37: =D36 -> Ia | E37: 2 | F37: 2 | I37: =teksty!$D$861 & teksty!$D$266 & 1 -> wyszczególnienie, koniec strony 1 | J37: =D37&"."&E37 & "." & F37 -> Ia.2.2 | K37: =E37&"."&F37 -> 2.2 | N37: =K37 -> 2.2 | O37: =teksty!$D$883 -> Stan kapitału (funduszu) zapasowego na koniec okresu | V37: =V23+V24 -> 11114420.26 | W37: =W23+W24 -> 8242348.81
A38: 2 | B38: P | C38: 3 | D38: =D37 -> Ia | E38: 2 | F38: 2 | N38: =teksty!$D$861 & teksty!$D$694 -> wyszczególnienie, c.d. poprzedniej strony | U38: =$U$5 -> za rok: | V38: =$V$5 -> 2017 | W38: =$W$5 -> 2016
A39: 2 | C39: 2 | D39: Ia | E39: 3 | J39: =D39&"."&E39 -> Ia.3 | K39: =E39 -> 3 | N39: =K39 -> 3 | O39: =teksty!$D$884 -> Kapitał (fundusz) z aktualizacji wyceny na początek okresu – zmiany przyjętych zasad (polityki) rachunkowości | V39: 0 | W39: 0 | Y39: =teksty!$D$267 -> ukryty wiersz powyżej zawiera nagłówek dla kolejnej strony
A40: 2 | C40: 3 | D40: Ia | E40: 3 | F40: 1 | J40: =D40&"."&E40 & "." & F40 -> Ia.3.1 | K40: =E40&"."&F40 -> 3.1 | N40: =K40 -> 3.1 | O40: =teksty!$D$885 -> Zmiany kapitału (funduszu) z aktualizacji wyceny | V40: =V41-V45 -> 0 | W40: =W41-W45 -> 0
A41: 2 | C41: 4 | D41: Ia | E41: 3 | F41: =F40 -> 1 | G41: a | J41: =D41&"."&E41 & "." & F41& "." & G41 -> Ia.3.1.a | K41: =G41 &")" -> a) | N41: =K41 -> a) | O41: =teksty!$D$886 -> zwiększenie (z tytułu) | V41: =V42+V43+V44 -> 0 | W41: =W42+W43+W44 -> 0
A42: 2 | C42: 5 | D42: =D41 -> Ia | E42: 3 | F42: =F41 -> 1 | G42: =G41 -> a | H42: =H41+1 -> 1 | J42: =D42&"."&E42 & "." & F42& "." & G42 & "." & "p" & (H42-H41) -> Ia.3.1.a.p1
A43: 2 | C43: 5 | D43: Ia | E43: 3 | F43: 1 | G43: =G42 -> a | H43: =H42+1 -> 2 | J43: =D43&"."&E43 & "." & F43& "." & G43 & "." & "p" & (H43-H41) -> Ia.3.1.a.p2
A44: 2 | C44: 5 | D44: Ia | E44: 3 | F44: 1 | G44: =G43 -> a | H44: 3 | J44: =D44&"."&E44 & "." & F44& "." & G44 & "." & "p" & (H44-H41) -> Ia.3.1.a.p3
A45: 2 | C45: 4 | D45: Ia | E45: 3 | F45: 1 | G45: b | J45: =D45&"."&E45 & "." & F45& "." & G45 -> Ia.3.1.b | K45: =G45 &")" -> b) | N45: =K45 -> b) | O45: =teksty!$D$887 -> zmniejszenie (z tytułu) | V45: =V46+V47+V48+V49 -> 0 | W45: =W46+W47+W48+W49 -> 0
A46: 2 | C46: 5 | D46: Ia | E46: 3 | F46: =F45 -> 1 | G46: =G45 -> b | H46: 1 | J46: =D46&"."&E46 & "." & F46& "." & G46 & "." & H46 -> Ia.3.1.b.1 | O46: =IF($N$46=""," – ") &teksty!$D$888 -> – zbycia środków trwałych
A47: 2 | C47: =COUNTA(D47:H47) -> 5 | D47: Ia | E47: 3 | F47: 1 | G47: =G46 -> b | H47: =H46+1 -> 2 | J47: =D47&"."&E47 & "." & F47& "." & G47 & "." & "p" & (H47-H46) -> Ia.3.1.b.p1
A48: 2 | C48: 5 | D48: Ia | E48: 3 | F48: 1 | G48: =G47 -> b | H48: =H47+1 -> 3 | J48: =D48&"."&E48 & "." & F48& "." & G48 & "." & "p" & (H48-H46) -> Ia.3.1.b.p2
A49: 2 | C49: 5 | D49: Ia | E49: 3 | F49: 1 | G49: =G48 -> b | H49: 4 | J49: =D49&"."&E49 & "." & F49& "." & G49 & "." & "p" & (H49-H46) -> Ia.3.1.b.p3
A50: 2 | C50: 3 | D50: Ia | E50: =E46 -> 3 | F50: 2 | J50: =D50&"."&E50 & "." & F50 -> Ia.3.2 | K50: =E50&"."&F50 -> 3.2 | N50: =K50 -> 3.2 | O50: =teksty!$D$889 -> Kapitał (fundusz) z aktualizacji wyceny na koniec okresu | V50: =V39+V40 -> 0 | W50: =W39+W40 -> 0
A51: 2 | C51: 2 | D51: Ia | E51: 4 | J51: =D51&"."&E51 -> Ia.4 | K51: =E51 -> 4 | N51: =K51 -> 4 | O51: =teksty!$D$890 -> Pozostałe kapitały (fundusze) rezerwowe na początek okresu | V51: 0 | W51: 0
A52: 2 | C52: 3 | D52: Ia | E52: 4 | F52: 1 | J52: =D52&"."&E52 & "." & F52 -> Ia.4.1 | K52: =E52&"."&F52 -> 4.1 | N52: =K52 -> 4.1 | O52: =teksty!$D$891 -> Zmiany pozostałych kapitałów (funduszy) rezerwowych | V52: =V53-V57 -> 0 | W52: =W53-W57 -> 0
A53: 2 | C53: 4 | D53: Ia | E53: 4 | F53: =F52 -> 1 | G53: a | J53: =D53&"."&E53 & "." & F53& "." & G53 -> Ia.4.1.a | K53: =G53 &")" -> a) | N53: =K53 -> a) | O53: =teksty!$D$892 -> zwiększenie (z tytułu) | V53: =V54+V55+V56 -> 0 | W53: =W54+W55+W56 -> 0
A54: 2 | C54: 5 | D54: =D53 -> Ia | E54: 4 | F54: =F53 -> 1 | G54: =G53 -> a | H54: =H53+1 -> 1 | J54: =D54&"."&E54 & "." & F54& "." & G54 & "." & "p" & (H54-H53) -> Ia.4.1.a.p1
A55: 2 | C55: 5 | D55: Ia | E55: 4 | F55: 1 | G55: =G54 -> a | H55: =H54+1 -> 2 | J55: =D55&"."&E55 & "." & F55& "." & G55 & "." & "p" & (H55-H53) -> Ia.4.1.a.p2
A56: 2 | C56: 5 | D56: Ia | E56: 4 | F56: 1 | G56: =G55 -> a | H56: 3 | J56: =D56&"."&E56 & "." & F56& "." & G56 & "." & "p" & (H56-H53) -> Ia.4.1.a.p3
A57: 2 | C57: 4 | D57: Ia | E57: 4 | F57: 1 | G57: b | J57: =D57&"."&E57 & "." & F57& "." & G57 -> Ia.4.1.b | K57: =G57 &")" -> b) | N57: b) | O57: =teksty!$D$893 -> zmniejszenie (z tytułu) | V57: =V58+V59+V60 -> 0 | W57: =W58+W59+W60 -> 0
A58: 2 | C58: =COUNTA(D58:H58) -> 5 | D58: Ia | E58: =E57 -> 4 | F58: =F57 -> 1 | G58: =G57 -> b | H58: =H57+1 -> 1 | J58: =D58&"."&E58 & "." & F58& "." & G58 & "." & "p" & (H58-H57) -> Ia.4.1.b.p1
A59: 2 | C59: 5 | D59: Ia | E59: 4 | F59: 1 | G59: =G58 -> b | H59: =H58+1 -> 2 | J59: =D59&"."&E59 & "." & F59& "." & G59 & "." & "p" & (H59-H57) -> Ia.4.1.b.p2
A60: 2 | C60: 5 | D60: Ia | E60: 4 | F60: 1 | G60: =G59 -> b | H60: 3 | J60: =D60&"."&E60 & "." & F60& "." & G60 & "." & "p" & (H60-H57) -> Ia.4.1.b.p3
A61: 2 | C61: 3 | D61: Ia | E61: =E57 -> 4 | F61: 2 | J61: =D61&"."&E61 & "." & F61 -> Ia.4.2 | K61: =E61&"."&F61 -> 4.2 | N61: =K61 -> 4.2 | O61: =teksty!$D$894 -> Pozostałe kapitały (fundusze) rezerwowe na koniec okresu | V61: =V51+V52 -> 0 | W61: =W51+W52 -> 0
A62: 2 | C62: 2 | D62: Ia | E62: 5 | J62: =D62&"."&E62 -> Ia.5 | K62: =E62 -> 5 | N62: =K62 -> 5 | O62: =teksty!$D$895 -> Zysk (strata) z lat ubiegłych na początek okresu | V62: 3272071.45 | W62: 1750147.98
A63: 2 | C63: 3 | D63: Ia | E63: 5 | F63: 1 | J63: =D63&"."&E63 & "." & F63 -> Ia.5.1 | K63: =E63&"."&F63 -> 5.1 | N63: =K63 -> 5.1 | O63: =teksty!$D$896 -> Zysk z lat ubiegłych na początek okresu | V63: =V62 -> 3272071.45 | W63: =W62 -> 1750147.98
A64: 2 | C64: 4 | D64: =D63 -> Ia | E64: 5 | F64: 1 | G64: 1 | J64: =D64&"."&E64 & "." & F64& "." & G64 -> Ia.5.1.1 | O64: =IF($N$64=""," – ") &teksty!$D$897 -> – zmiany przyjętych zasad (polityki) rachunkowości
A65: 2 | C65: 4 | D65: Ia | E65: 5 | F65: 1 | G65: 2 | I65: =teksty!$D$862& teksty!$D$266 & 2 -> Zmiany w kapitale, koniec strony 2 | J65: =D65&"."&E65 & "." & F65& "." & G65 -> Ia.5.1.2 | O65: =IF($N$65=""," – ") &teksty!$D$898 -> – korekty błędów
A66: 2 | B66: P | C66: =COUNTA(D66:H66) -> 3 | D66: Ia | E66: 5 | F66: 1 | N66: =teksty!$D$861 & teksty!$D$694 -> wyszczególnienie, c.d. poprzedniej strony | U66: =$U$5 -> za rok: | V66: =$V$5 -> 2017 | W66: =$W$5 -> 2016
A67: 2 | C67: 3 | D67: Ia | E67: 5 | F67: 2 | J67: =D67&"."&E67 & "." & F67 -> Ia.5.2 | K67: =E67&"."&F67 -> 5.2 | N67: =K67 -> 5.2 | O67: =teksty!$D$899 -> Zysk z lat ubiegłych na początek okresu, po korektach | V67: =V63+V64+V65 -> 3272071.45 | W67: =W63+W64+W65 -> 1750147.98 | Y67: =teksty!$D$267 -> ukryty wiersz powyżej zawiera nagłówek dla kolejnej strony
A68: 2 | C68: 4 | D68: Ia | E68: 5 | F68: =F67 -> 2 | G68: a | J68: =D68&"."&E68 & "." & F68& "." & G68 -> Ia.5.2.a | K68: =G68 &")" -> a) | N68: =K68 -> a) | O68: =teksty!$D$900 -> zwiększenie (z tytułu) | V68: =V69+V70+V71+V72 -> 0 | W68: =W69+W70+W71+W72 -> 0
A69: 2 | C69: 5 | D69: =D68 -> Ia | E69: 5 | F69: =F68 -> 2 | G69: =G68 -> a | H69: 1 | J69: =D69&"."&E69 & "." & F69& "." & G69 & "." & H69 -> Ia.5.2.a.1 | O69: =IF($N$69=""," – ") &teksty!$D$901 -> – podziału zysku z lat ubiegłych
A70: 2 | C70: 5 | D70: Ia | E70: 5 | F70: 2 | G70: =G69 -> a | H70: =H69+1 -> 2 | J70: =D70&"."&E70 & "." & F70& "." & G70 & "." & "p" & (H70-H69) -> Ia.5.2.a.p1
A71: 2 | C71: 5 | D71: Ia | E71: 5 | F71: 2 | G71: =G70 -> a | H71: =H70+1 -> 3 | J71: =D71&"."&E71 & "." & F71& "." & G71 & "." & "p" & (H71-H69) -> Ia.5.2.a.p2
A72: =A71 -> 2 | C72: 5 | D72: Ia | E72: 5 | F72: 2 | G72: =G71 -> a | H72: 4 | J72: =D72&"."&E72 & "." & F72& "." & G72 & "." & "p" & (H72-H69) -> Ia.5.2.a.p3
A73: 2 | C73: 4 | D73: Ia | E73: 5 | F73: 2 | G73: b | J73: =D73&"."&E73 & "." & F73& "." & G73 -> Ia.5.2.b | K73: =G73 &")" -> b) | N73: =K73 -> b) | O73: =teksty!$D$902 -> zmniejszenie (z tytułu) | V73: 400000 | W73: 550000
A74: 2 | C74: =COUNTA(D74:H74) -> 5 | D74: Ia | E74: =E73 -> 5 | F74: =F73 -> 2 | G74: =G73 -> b | H74: =H73+1 -> 1 | J74: =D74&"."&E74 & "." & F74& "." & G74 & "." & "p" & (H74-H73) -> Ia.5.2.b.p1
A75: 2 | C75: 5 | D75: Ia | E75: =E74 -> 5 | F75: 2 | G75: =G74 -> b | H75: =H74+1 -> 2 | J75: =D75&"."&E75 & "." & F75& "." & G75 & "." & "p" & (H75-H73) -> Ia.5.2.b.p2
A76: 2 | C76: 5 | D76: Ia | E76: =E75 -> 5 | F76: 2 | G76: =G75 -> b | H76: 3 | J76: =D76&"."&E76 & "." & F76& "." & G76 & "." & "p" & (H76-H73) -> Ia.5.2.b.p3
A77: 2 | C77: 3 | D77: Ia | E77: 5 | F77: 3 | J77: =D77&"."&E77 & "." & F77 -> Ia.5.3 | K77: =E77&"."&F77 -> 5.3 | N77: =K77 -> 5.3 | O77: =teksty!$D$903 -> Zysk z lat ubiegłych na koniec okresu | V77: =V67+V68-V73 -> 2872071.45 | W77: =W67+W68-W73 -> 1200147.98
A78: 2 | C78: 3 | D78: Ia | E78: 5 | F78: 4 | J78: =D78&"."&E78 & "." & F78 -> Ia.5.4 | K78: =E78&"."&F78 -> 5.4 | N78: =K78 -> 5.4 | O78: =teksty!$D$904 -> Strata z lat ubiegłych na początek okresu
A79: 2 | C79: 4 | D79: Ia | E79: 5 | F79: 4 | G79: 1 | J79: =D79&"."&E79 & "." & F79& "." & G79 -> Ia.5.4.1 | O79: =IF($N$79=""," – ") &teksty!$D$905 -> – zmiany przyjętych zasad (polityki) rachunkowości
A80: 2 | C80: 4 | D80: Ia | E80: 5 | F80: 4 | G80: 2 | J80: =D80&"."&E80 & "." & F80& "." & G80 -> Ia.5.4.2 | O80: =IF($N$80=""," – ") &teksty!$D$906 -> – korekty błędów
A81: 2 | C81: 3 | D81: Ia | E81: 5 | F81: 5 | J81: =D81&"."&E81 & "." & F81 -> Ia.5.5 | K81: =E81&"."&F81 -> 5.5 | N81: =K81 -> 5.5 | O81: =teksty!$D$907 -> Strata z lat ubiegłych na początek okresu, po korektach | V81: =V78+V79+V80 -> 0 | W81: =W78+W79+W80 -> 0
A82: 2 | C82: 4 | D82: Ia | E82: 5 | F82: =F81 -> 5 | G82: a | J82: =D82&"."&E82 & "." & F82& "." & G82 -> Ia.5.5.a | K82: =G82 &")" -> a) | N82: =K82 -> a) | O82: =teksty!$D$908 -> zwiększenie (z tytułu) | V82: =V83+V84+V85+V86 -> 0 | W82: =W83+W84+W85+W86 -> 0
A83: 2 | C83: 5 | D83: =D82 -> Ia | E83: 5 | F83: =F82 -> 5 | G83: =G82 -> a | H83: 1 | J83: =D83&"."&E83 & "." & F83& "." & G83 & "." & H83 -> Ia.5.5.a.1 | O83: =IF($N$83=""," – ") &teksty!$D$909 -> – przeniesienia straty z lat ubiegłych do pokrycia
A84: 2 | C84: 5 | D84: Ia | E84: =E83 -> 5 | F84: 5 | G84: =G83 -> a | H84: =H83+1 -> 2 | J84: =D84&"."&E84 & "." & F84& "." & G84 & "." & "p" & (H84-H83) -> Ia.5.5.a.p1
A85: 2 | C85: 5 | D85: Ia | E85: =E84 -> 5 | F85: 5 | G85: =G84 -> a | H85: =H84+1 -> 3 | J85: =D85&"."&E85 & "." & F85& "." & G85 & "." & "p" & (H85-H83) -> Ia.5.5.a.p2
A86: 2 | C86: 5 | D86: Ia | E86: =E85 -> 5 | F86: 5 | G86: =G85 -> a | H86: 4 | J86: =D86&"."&E86 & "." & F86& "." & G86 & "." & "p" & (H86-H83) -> Ia.5.5.a.p3
A87: 2 | C87: 4 | D87: Ia | E87: 5 | F87: 5 | G87: b | J87: =D87&"."&E87 & "." & F87& "." & G87 -> Ia.5.5.b | K87: =G87 &")" -> b) | N87: =K87 -> b) | O87: =teksty!$D$910 -> zmniejszenie (z tytułu) | V87: =V88+V89+V90 -> 0 | W87: =W88+W89+W90 -> 0
A88: 2 | C88: =COUNTA(D88:H88) -> 5 | D88: Ia | E88: =E87 -> 5 | F88: =F87 -> 5 | G88: =G87 -> b | H88: =H87+1 -> 1 | J88: =D88&"."&E88 & "." & F88& "." & G88 & "." & "p" & (H88-H87) -> Ia.5.5.b.p1
A89: 2 | C89: 5 | D89: Ia | E89: =E88 -> 5 | F89: 5 | G89: =G88 -> b | H89: =H88+1 -> 2 | J89: =D89&"."&E89 & "." & F89& "." & G89 & "." & "p" & (H89-H87) -> Ia.5.5.b.p2
A90: 2 | C90: 5 | D90: Ia | E90: =E89 -> 5 | F90: 5 | G90: =G89 -> b | H90: 3 | J90: =D90&"."&E90 & "." & F90& "." & G90 & "." & "p" & (H90-H87) -> Ia.5.5.b.p3
A91: 2 | C91: 3 | D91: Ia | E91: 5 | F91: 6 | J91: =D91&"."&E91 & "." & F91 -> Ia.5.6 | K91: =E91&"."&F91 -> 5.6 | N91: =K91 -> 5.6 | O91: =teksty!$D$911 -> Strata z lat ubiegłych na koniec okresu | V91: =V81+V82-V87 -> 0 | W91: =W81+W82-W87 -> 0
A92: 2 | C92: 3 | D92: Ia | E92: 5 | F92: 7 | J92: =D92&"."&E92 & "." & F92 -> Ia.5.7 | K92: =E92&"."&F92 -> 5.7 | N92: =K92 -> 5.7 | O92: =teksty!$D$912 -> Zysk (strata) z lat ubiegłych na koniec okresu | V92: =V77-V91 -> 2872071.45 | W92: =W77-W91 -> 1200147.98
A93: 2 | C93: 2 | D93: =D92 -> Ia | E93: 6 | J93: =D93&"."&E93 -> Ia.6 | K93: =E93 -> 6 | N93: =K93 -> 6 | O93: =teksty!$D$913 -> Wynik netto | V93: =V94-V95-V96 -> 3122079.29 | W93: =W94-W95-W96 -> 3032071.45
A94: 2 | C94: 3 | D94: Ia | E94: 6 | F94: a | J94: =D94&"."&E94 & "." & F94 -> Ia.6.a | K94: =F94 &")" -> a) | N94: =K94 -> a) | O94: =teksty!$D$914 -> zysk netto | V94: 3322079.29 | W94: 3272071.45
A95: 2 | C95: 3 | D95: Ia | E95: 6 | F95: b | J95: =D95&"."&E95 & "." & F95 -> Ia.6.b | K95: =F95 &")" -> b) | N95: =K95 -> b) | O95: =teksty!$D$915 -> strata netto
A96: 2 | C96: 3 | D96: Ia | E96: 6 | F96: c | J96: Ia.6.c | K96: =F96 &")" -> c) | N96: =K96 -> c) | O96: =teksty!$D$916 -> odpisy z zysku | V96: 200000 | W96: 240000
A97: 2 | C97: 1 | D97: II | J97: =$D97 -> II | K97: =D97 -> II | N97: =K97 -> II | O97: =teksty!$D$917 -> Kapitał (fundusz) własny na koniec okresu (BZ) | V97: =V22+V37+V50+V61-V91+V93 -> 14338499.55 | W97: =W22+W37+W50+W61-W91+W93 -> 11376420.26
A98: 2 | C98: 1 | D98: III | J98: =$D98 -> III | K98: =D98 -> III | N98: =K98 -> III | O98: =teksty!$D$918 -> Kapitał (fundusz) własny, po uwzględnieniu proponowanego podziału zysku (pokrycia straty) | V98: =V97 -> 14338499.55 | W98: =W97 -> 11376420.26
A99: 0 | I99: Skonsolidowana:
A100: =#REF! ->  | B100: P | C100: =COUNTA(D100:H100) -> 3 | D100: =#REF! ->  | E100: =#REF! ->  | F100: =#REF! ->  | N100: =teksty!$D$861 & teksty!$D$694 -> wyszczególnienie, c.d. poprzedniej strony | U100: =$U$5 -> za rok: | V100: =$V$5 -> 2017 | W100: =$W$5 -> 2016
A101: =#REF! ->  | B101: P | C101: 3 | D101: =#REF! ->  | E101: =#REF! ->  | F101: =#REF! ->  | N101: =teksty!$D$861 & teksty!$D$694 -> wyszczególnienie, c.d. poprzedniej strony | U101: =$U$5 -> za rok: | V101: =$V$5 -> 2017 | W101: =$W$5 -> 2016

Sheet Przepływy
A1: RachPrzeplywow | C1: Poziom | F1: Składniki | J1: (pełen symbol) | K1: (wyświetlana etykieta) | R1: 1 | S1: =VLOOKUP(WybranaPozycja,teksty!B142:F147,2) -> JednostkaInna | U1: 2 | V1: =VLOOKUP(WybranaPodpozycja,teksty!B151:F152,2) -> Posrednia
M2: =teksty!D763 -> Rachunek przepływów
I3: =teksty!$D$272 -> Opcjonalne. Aby nie włączać tego zestawienia do sprawozdania - ukryj ten arkusz | N3: =Wprowadzenie!$I$4 & " " & IF(NumerWariantuRaportu = 5, teksty!$D$270, "") -> Przedsiębiorstwo "Test" Sp. z o.o. | X3: =teksty!D265 & VLOOKUP(NumerBazyRaportu,BazyKwot,3) -> wszystkie kwoty w złotych
N5: =VLOOKUP(WybranaPodpozycja,teksty!$B$151:$F$152,3) -> metoda pośrednia | U5: =IF(BezDat,"",teksty!$D$592) -> za rok: | V5: =IF(BezDat,teksty!$D$930,YEAR(DataDo)) -> 2017 | W5: =IF(BezDat,teksty!$D$931,V5-1) -> 2016 | X5: =teksty!$D$273 -> Przekszt. dane porów. za poprzedni okres | AA5: =IF(OR(_xlfn.ISFORMULA($V$8),_xlfn.ISFORMULA($W$8)),teksty!$D$927,"") -> W niektórych polach są pomocnicze formuły. Jeżeli to potrzebne, możesz je zmienić, lub wpisać w te pola odpowiednie kwoty.
A6: =(4*65536)+(2+32) -> 262178 | C6: =COUNTA(D6:H6) -> 1 | D6: A | J6: =$D6 -> A | K6: =D6 -> A | N6: =K6 -> A | O6: =teksty!$D$827 -> Przepływy środków pieniężnych z działalności operacyjnej | V6: 0 | W6: 0
A7: =(4*65536)+(2+32) -> 262178 | C7: 2 | D7: =D6 -> A | E7: I | J7: =D7&"."&E7 -> A.I | K7: =E7 -> I | N7: I | O7: =teksty!$D$828 -> Zysk (strata) netto | V7: 3322079.29 | W7: 3272071.45
A8: 262178 | C8: 2 | D8: =D7 -> A | E8: II | J8: =D8&"."&E8 -> A.II | K8: =E8 -> II | N8: II | O8: =teksty!$D$829 -> Korekty razem | V8: =V9+V10+V11+V12+V13+V14+V15+V16+V17+V18 -> -2600682.74 | W8: =W9+W10+W11+W12+W13+W14+W15+W16+W17+W18 -> -905320.8
A9: 262178 | C9: 3 | D9: =D8 -> A | E9: II | F9: 1 | J9: =D9&"."&E9 & "." & F9 -> A.II.1 | K9: =F9 -> 1 | N9: 1 | O9: =teksty!$D$830 -> Amortyzacja | V9: 535710.72 | W9: 410343.48
A10: 262178 | C10: 3 | D10: A | E10: II | F10: 2 | J10: A.II.2 | K10: 2 | N10: 2 | O10: =teksty!$D$831 -> Zyski (straty) z tytułu różnic kursowych
A11: 262178 | C11: 3 | D11: A | E11: II | F11: 3 | J11: A.II.3 | K11: 3 | N11: 3 | O11: =teksty!$D$832 -> Odsetki i udziały w zyskach (dywidendy)
A12: 262178 | C12: 3 | D12: A | E12: II | F12: 4 | J12: A.II.4 | K12: 4 | N12: 4 | O12: =teksty!$D$833 -> Zysk (strata) z działalności inwestycyjnej | V12: 0 | W12: -29874.13
A13: 262178 | C13: 3 | D13: A | E13: II | F13: 5 | J13: A.II.5 | K13: 5 | N13: 5 | O13: =teksty!$D$834 -> Zmiana stanu rezerw | V13: 10052 | W13: 0
A14: 262178 | C14: 3 | D14: A | E14: II | F14: 6 | J14: A.II.6 | K14: 6 | N14: 6 | O14: =teksty!$D$835 -> Zmiana stanu zapasów | V14: -469338.53 | W14: -1554217.25
A15: 262178 | C15: 3 | D15: A | E15: II | F15: 7 | J15: A.II.7 | K15: 7 | N15: 7 | O15: =teksty!$D$836 -> Zmiana stanu należności | V15: -1331853.77 | W15: -2357364.36
A16: 262178 | C16: 3 | D16: A | E16: II | F16: 8 | J16: A.II.8 | K16: 8 | N16: 8 | O16: =teksty!$D$837 -> Zmiana stanu zobowiązań krótkoterminowych, z wyjątkiem pożyczek i kredytów | V16: -1727574.22 | W16: 2595593.37
A17: 262178 | C17: 3 | D17: A | E17: II | F17: 9 | J17: A.II.9 | K17: 9 | N17: 9 | O17: =teksty!$D$838 -> Zmiana stanu rozliczeń międzyokresowych | V17: -127027.88 | W17: 30198.09
A18: 262178 | C18: 3 | D18: A | E18: II | F18: 10 | J18: A.II.10 | K18: 10 | N18: 10 | O18: =teksty!$D$839 -> Inne korekty | V18: 509348.94 | W18: 0
A19: 262178 | C19: 2 | D19: =D18 -> A | E19: III | J19: =D19&"."&E19 -> A.III | K19: =E19 -> III | N19: =K19 -> III | O19: =teksty!$D$840 -> Przepływy pieniężne netto z działalności operacyjnej (I±II) | V19: =V7+V8 -> 721396.55 | W19: =W7+W8 -> 2366750.65
A20: 262178 | C20: 1 | D20: B | J20: =$D20 -> B | K20: =D20 -> B | N20: B | O20: =teksty!$D$778 -> Przepływy środków pieniężnych z działalności inwestycyjnej | V20: 0 | W20: 0
A21: 262178 | C21: 2 | D21: =D20 -> B | E21: I | J21: =D21&"."&E21 -> B.I | K21: =E21 -> I | N21: =K21 -> I | O21: =teksty!$D$779 -> Wpływy | V21: =V22+V23+V24+V32 -> 0 | W21: =W22+W23+W24+W32 -> 29874.13
A22: 262178 | C22: 3 | D22: =D21 -> B | E22: I | F22: 1 | J22: =D22&"."&E22 & "." & F22 -> B.I.1 | K22: =F22 -> 1 | N22: =K22 -> 1 | O22: =teksty!$D$780 -> Zbycie wartości niematerialnych i prawnych oraz rzeczowych aktywów trwałych | V22: 0 | W22: 29874.13
A23: 262178 | C23: 3 | D23: =D22 -> B | E23: I | F23: 2 | J23: =D23&"."&E23 & "." & F23 -> B.I.2 | K23: =F23 -> 2 | N23: =K23 -> 2 | O23: =teksty!$D$781 -> Zbycie inwestycji w nieruchomości oraz wartości niematerialne i prawne
A24: 262178 | C24: 3 | D24: =D23 -> B | E24: I | F24: 3 | J24: =D24&"."&E24 & "." & F24 -> B.I.3 | K24: =F24 -> 3 | N24: =K24 -> 3 | O24: =teksty!$D$782 -> Z aktywów finansowych, w tym: | V24: =V25+V26 -> 0 | W24: =W25+W26 -> 0
A25: 262178 | C25: 4 | D25: =D24 -> B | E25: I | F25: =F24 -> 3 | G25: a | J25: =D25&"."&E25 & "." & F25& "." & G25 -> B.I.3.a | K25: =G25 &")" -> a) | N25: =K25 -> a) | O25: =teksty!$D$783 -> w jednostkach powiązanych
A26: 262178 | C26: 4 | D26: =D25 -> B | E26: I | F26: =F25 -> 3 | G26: b | J26: =D26&"."&E26 & "." & F26& "." & G26 -> B.I.3.b | K26: =G26 &")" -> b) | N26: b) | O26: =teksty!$D$784 -> w pozostałych jednostkach | V26: =V27+V28+V29+V30+V31 -> 0 | W26: =W27+W28+W29+W30+W31 -> 0
A27: 262178 | C27: 5 | D27: =D26 -> B | E27: I | F27: 3 | G27: =G26 -> b | H27: 1 | J27: =$D27&"."&E27&"."&F27&"."&G27&"."&H27 -> B.I.3.b.1 | K27: =H27 & ") " -> 1) | O27: =$K$27&teksty!$D$785 -> 1) zbycie aktywów finansowych
A28: 262178 | C28: 5 | D28: =D27 -> B | E28: I | F28: 3 | G28: =G27 -> b | H28: 2 | J28: =$D28&"."&E28&"."&F28&"."&G28&"."&H28 -> B.I.3.b.2 | K28: =H28 & ") " -> 2) | O28: =$K$28&teksty!$D$786 -> 2) dywidendy i udziały w zyskach
A29: 262178 | C29: 5 | D29: =D28 -> B | E29: I | F29: 3 | G29: =G28 -> b | H29: 3 | J29: =$D29&"."&E29&"."&F29&"."&G29&"."&H29 -> B.I.3.b.3 | K29: =H29 & ") " -> 3) | O29: =$K$29&teksty!$D$787 -> 3) spłata udzielonych pożyczek długoterminowych
A30: 262178 | C30: 5 | D30: =D29 -> B | E30: I | F30: 3 | G30: =G29 -> b | H30: 4 | J30: =$D30&"."&E30&"."&F30&"."&G30&"."&H30 -> B.I.3.b.4 | K30: =H30 & ") " -> 4) | O30: =$K$30&teksty!$D$788 -> 4) odsetki
A31: 262178 | C31: 5 | D31: =D30 -> B | E31: I | F31: 3 | G31: =G30 -> b | H31: 5 | J31: =$D31&"."&E31&"."&F31&"."&G31&"."&H31 -> B.I.3.b.5 | K31: =H31 & ") " -> 5) | O31: =$K$31&teksty!$D$789 -> 5) inne wpływy z aktywów finansowych
A32: 262178 | C32: 3 | D32: =D31 -> B | E32: I | F32: 4 | J32: =D32&"."&E32 & "." & F32 -> B.I.4 | K32: =F32 -> 4 | N32: =K32 -> 4 | O32: =teksty!$D$790 -> Inne wpływy inwestycyjne
A33: 262178 | C33: 2 | D33: =D32 -> B | E33: II | J33: =D33&"."&E33 -> B.II | K33: =E33 -> II | N33: =K33 -> II | O33: =teksty!$D$791 -> Wydatki | V33: =V34+V36+V37+V42 -> 10405711.55 | W33: =W34+W36+W37+W42 -> 670321.53
A34: 262178 | C34: 3 | D34: =D33 -> B | E34: II | F34: 1 | I34: =teksty!$D$765 & teksty!$D$266 & 1 -> Rach. Przepływów, koniec strony 1 | J34: =D34&"."&E34 & "." & F34 -> B.II.1 | K34: =F34 -> 1 | N34: =K34 -> 1 | O34: =teksty!$D$792 -> Nabycie wartości niematerialnych i prawnych oraz rzeczowych aktywów trwałych | V34: 10405711.55 | W34: 670321.53
A35: 262178 | B35: P | C35: 2 | D35: B | E35: II | N35: =teksty!$D$152 & teksty!$D$694 -> metoda pośrednia, c.d. poprzedniej strony | U35: =$U$5 -> za rok: | V35: =$V$5 -> 2017 | W35: =$W$5 -> 2016 | X35: =teksty!$D$273 -> Przekszt. dane porów. za poprzedni okres
A36: 262178 | C36: 3 | D36: =D35 -> B | E36: II | F36: 2 | J36: =D36&"."&E36 & "." & F36 -> B.II.2 | K36: =F36 -> 2 | N36: =K36 -> 2 | O36: =teksty!$D$793 -> Inwestycje w nieruchomości oraz wartości niematerialne i prawne | Z36: =teksty!$D$267 -> ukryty wiersz powyżej zawiera nagłówek dla kolejnej strony
A37: 262178 | C37: 3 | D37: =D36 -> B | E37: II | F37: 3 | J37: =D37&"."&E37 & "." & F37 -> B.II.3 | K37: =F37 -> 3 | N37: =K37 -> 3 | O37: =teksty!$D$795 -> Na aktywa finansowe, w tym: | V37: =V38+V39 -> 0 | W37: =W38+W39 -> 0
A38: 262178 | C38: 4 | D38: =D37 -> B | E38: II | F38: =F37 -> 3 | G38: a | J38: =D38&"."&E38 & "." & F38& "." & G38 -> B.II.3.a | K38: =G38 &")" -> a) | N38: =K38 -> a) | O38: =teksty!$D$796 -> w jednostkach powiązanych
A39: 262178 | C39: 4 | D39: =D38 -> B | E39: II | F39: =F38 -> 3 | G39: b | J39: =D39&"."&E39 & "." & F39& "." & G39 -> B.II.3.b | K39: =G39 &")" -> b) | N39: b) | O39: =teksty!$D$797 -> w pozostałych jednostkach | V39: =V40+V41 -> 0 | W39: =W40+W41 -> 0
A40: 262178 | C40: 5 | D40: =D39 -> B | E40: II | F40: 3 | G40: =G39 -> b | H40: 1 | J40: =$D40&"."&E40&"."&F40&"."&G40&"."&H40 -> B.II.3.b.1 | K40: =H40 & ") " -> 1) | O40: =$K$40&teksty!$D$798 -> 1) nabycie aktywów finansowych
A41: 262178 | C41: 5 | D41: =D40 -> B | E41: II | F41: 3 | G41: =G40 -> b | H41: 2 | J41: =$D41&"."&E41&"."&F41&"."&G41&"."&H41 -> B.II.3.b.2 | K41: =H41 & ") " -> 2) | O41: =$K$41&teksty!$D$799 -> 2) udzielone pożyczki długoterminowe
A42: 262178 | C42: 3 | D42: =D41 -> B | E42: II | F42: 4 | J42: =D42&"."&E42 & "." & F42 -> B.II.4 | K42: =F42 -> 4 | N42: =K42 -> 4 | O42: =teksty!$D$800 -> Inne wydatki inwestycyjne
A43: 262178 | C43: 2 | D43: =D42 -> B | E43: III | J43: =D43&"."&E43 -> B.III | K43: =E43 -> III | N43: =K43 -> III | O43: =teksty!$D$801 -> Przepływy pieniężne netto z działalności inwestycyjnej (I–II) | V43: =V21-V33 -> -10405711.55 | W43: =W21-W33 -> -640447.4
A44: 262178 | C44: 1 | D44: C | J44: =$D44 -> C | K44: =D44 -> C | N44: =K44 -> C | O44: =teksty!$D$802 -> Przepływy środków pieniężnych z działalności finansowej | V44: 0 | W44: 0
A45: 262178 | C45: 2 | D45: =D44 -> C | E45: I | J45: =D45&"."&E45 -> C.I | K45: =E45 -> I | N45: =K45 -> I | O45: =teksty!$D$803 -> Wpływy | V45: =V46+V47+V48+V49 -> 7656327.1 | W45: =W46+W47+W48+W49 -> 113330.8
A46: 262178 | C46: 3 | D46: =D45 -> C | E46: I | F46: 1 | J46: =D46&"."&E46 & "." & F46 -> C.I.1 | K46: =F46 -> 1 | N46: 1 | O46: =teksty!$D$804 -> Wpływy netto z wydania udziałów (emisji akcji) i innych instrumentów kapitałowych oraz dopłat do kapitału
A47: 262178 | C47: 3 | D47: =D46 -> C | E47: I | F47: 2 | J47: =D47&"."&E47 & "." & F47 -> C.I.2 | K47: =F47 -> 2 | N47: 2 | O47: =teksty!$D$805 -> Kredyty i pożyczki | V47: 7656327.1 | W47: 0
A48: 262178 | C48: 3 | D48: =D47 -> C | E48: I | F48: 3 | J48: =D48&"."&E48 & "." & F48 -> C.I.3 | K48: =F48 -> 3 | N48: 3 | O48: =teksty!$D$806 -> Emisja dłużnych papierów wartościowych
A49: 262178 | C49: 3 | D49: =D48 -> C | E49: I | F49: 4 | J49: =D49&"."&E49 & "." & F49 -> C.I.4 | K49: =F49 -> 4 | N49: 4 | O49: =teksty!$D$807 -> Inne wpływy finansowe | V49: 0 | W49: 113330.8
A50: 262178 | C50: 2 | D50: =D49 -> C | E50: II | J50: =D50&"."&E50 -> C.II | K50: =E50 -> II | N50: II | O50: =teksty!$D$808 -> Wydatki | V50: =V51+V52+V53+V54+V55+V56+V57+V58+V59 -> 360000 | W50: =W51+W52+W53+W54+W55+W56+W57+W58+W59 -> 490000
A51: 262178 | C51: 3 | D51: =D50 -> C | E51: II | F51: 1 | J51: =D51&"."&E51 & "." & F51 -> C.II.1 | K51: =F51 -> 1 | N51: 1 | O51: =teksty!$D$809 -> Nabycie udziałów (akcji) własnych
A52: 262178 | C52: 3 | D52: =D51 -> C | E52: II | F52: 2 | J52: C.II.2 | K52: 2 | N52: 2 | O52: =teksty!$D$810 -> Dywidendy i inne wypłaty na rzecz właścicieli | V52: 360000 | W52: 490000
A53: 262178 | C53: 3 | D53: =D52 -> C | E53: II | F53: 3 | J53: C.II.3 | K53: 3 | N53: 3 | O53: =teksty!$D$811 -> Inne, niż wypłaty na rzecz właścicieli, wydatki z tytułu podziału zysku
A54: 262178 | C54: 3 | D54: =D53 -> C | E54: II | F54: 4 | J54: C.II.4 | K54: 4 | N54: 4 | O54: =teksty!$D$812 -> Spłaty kredytów i pożyczek
A55: 262178 | C55: 3 | D55: =D54 -> C | E55: II | F55: 5 | J55: C.II.5 | K55: 5 | N55: 5 | O55: =teksty!$D$813 -> Wykup dłużnych papierów wartościowych
A56: 262178 | C56: 3 | D56: =D55 -> C | E56: II | F56: 6 | J56: C.II.6 | K56: 6 | N56: 6 | O56: =teksty!$D$814 -> Z tytułu innych zobowiązań finansowych
A57: 262178 | C57: 3 | D57: =D56 -> C | E57: II | F57: 7 | J57: C.II.7 | K57: 7 | N57: 7 | O57: =teksty!$D$815 -> Płatności zobowiązań z tytułu umów leasingu finansowego
A58: 262178 | C58: 3 | D58: =D57 -> C | E58: II | F58: 8 | J58: C.II.8 | K58: 8 | N58: 8 | O58: =teksty!$D$816 -> Odsetki
A59: 262178 | C59: 3 | D59: =D58 -> C | E59: II | F59: 9 | J59: C.II.9 | K59: 9 | N59: 9 | O59: =teksty!$D$817 -> Inne wydatki finansowe
A60: 262178 | C60: 2 | D60: =D59 -> C | E60: III | J60: =D60&"."&E60 -> C.III | K60: =E60 -> III | N60: III | O60: =teksty!$D$818 -> Przepływy pieniężne netto z działalności finansowej (I–II) | V60: =V45-V50 -> 7296327.1 | W60: =W45-W50 -> -376669.2
A61: 262178 | C61: 1 | D61: D | J61: =$D61 -> D | K61: =D61 -> D | N61: =K61 -> D | O61: =teksty!$D$819 -> Przepływy pieniężne netto, razem (A.III±B.III±C.III) | V61: =V19+V43+V60 -> -2387987.9 | W61: =W19+W43+W60 -> 1349634.05
A62: 262178 | C62: 1 | D62: E | J62: =$D62 -> E | K62: =D62 -> E | N62: E | O62: =teksty!$D$820 -> Bilansowa zmiana stanu środków pieniężnych, w tym: | V62: -2168501.49 | W62: 1349634.05
A63: 262178 | C63: 2 | D63: =D62 -> E | E63: 1 | J63: =D63&"."&E63 -> E.1 | O63: =IF($N$63=""," – ") &teksty!$D$821 -> – zmiana stanu środków pieniężnych z tytułu różnic kursowych
A64: 262178 | C64: 1 | D64: F | J64: =$D64 -> F | K64: =D64 -> F | N64: =K64 -> F | O64: =teksty!$D$822 -> Środki pieniężne na początek okresu | V64: 2376434.33 | W64: 1026800.28
A65: 262178 | C65: =COUNTA(D65:H65) -> 1 | D65: G | J65: =$D65 -> G | K65: =D65 -> G | N65: G | O65: =teksty!$D$823 -> Środki pieniężne na koniec okresu (F±D), w tym: | V65: 207932.84 | W65: =W64+W61 -> 2376434.33
A66: 262178 | C66: =COUNTA(D66:H66) -> 2 | D66: =D65 -> G | E66: 1 | J66: =D66&"."&E66 -> G.1 | O66: =IF($N$66=""," – ") &teksty!$D$824 -> – o ograniczonej możliwości dysponowania
A67: 0
A68: =(2*65536)+(2+32) -> 131106 | C68: =COUNTA(D68:H68) -> 1 | D68: A | J68: =$D68 -> A | K68: =D68 -> A | N68: =K68 -> A | O68: =teksty!$D$767 -> Przepływy środków pieniężnych z działalności operacyjnej
A69: =A68 -> 131106 | C69: =COUNTA(D69:H69) -> 2 | D69: =D68 -> A | E69: I | J69: =D69&"."&E69 -> A.I | K69: =E69 -> I | N69: I | O69: =teksty!$D$768 -> Wpływy
A70: =A69 -> 131106 | C70: 3 | D70: =D69 -> A | E70: I | F70: 1 | J70: =D70&"."&E70 & "." & F70 -> A.I.1 | K70: =F70 -> 1 | N70: 1 | O70: =teksty!$D$769 -> Sprzedaż
A71: 131106 | C71: =COUNTA(D71:H71) -> 3 | D71: A | E71: I | F71: 2 | J71: =D71&"."&E71 & "." & F71 -> A.I.2 | K71: =F71 -> 2 | N71: 2 | O71: =teksty!$D$770 -> Inne wpływy z działalności operacyjnej
A72: 131106 | C72: 2 | D72: =D71 -> A | E72: II | J72: =D72&"."&E72 -> A.II | K72: =E72 -> II | N72: II | O72: =teksty!$D$771 -> Wydatki
A73: 131106 | C73: 3 | D73: A | E73: II | F73: 1 | J73: =D73&"."&E73 & "." & F73 -> A.II.1 | K73: =F73 -> 1 | N73: 1 | O73: =teksty!$D$772 -> Dostawy i usługi
A74: 131106 | C74: =COUNTA(D74:H74) -> 3 | D74: A | E74: II | F74: 2 | J74: =D74&"."&E74 & "." & F74 -> A.II.2 | K74: =F74 -> 2 | N74: 2 | O74: =teksty!$D$773 -> Wynagrodzenia netto
A75: 131106 | C75: 3 | D75: A | E75: II | F75: 3 | J75: =D75&"."&E75 & "." & F75 -> A.II.3 | K75: =F75 -> 3 | N75: 3 | O75: =teksty!$D$774 -> Ubezpieczenia społeczne i zdrowotne oraz inne świadczenia
A76: 131106 | C76: 3 | D76: A | E76: II | F76: 4 | J76: =D76&"."&E76 & "." & F76 -> A.II.4 | K76: =F76 -> 4 | N76: 4 | O76: =teksty!$D$775 -> Podatki i opłaty o charakterze publicznoprawnym
A77: 131106 | C77: 3 | D77: A | E77: II | F77: 5 | J77: =D77&"."&E77 & "." & F77 -> A.II.5 | K77: =F77 -> 5 | N77: 5 | O77: =teksty!$D$776 -> Inne wydatki operacyjne
A78: 131106 | C78: 2 | D78: =D77 -> A | E78: III | J78: =D78&"."&E78 -> A.III | K78: =E78 -> III | N78: III | O78: =teksty!$D$777 -> Przepływy pieniężne netto z działalności operacyjnej (I–II)
A79: 131106 | C79: 1 | D79: B | J79: =$D79 -> B | K79: =D79 -> B | N79: =K79 -> B | O79: =teksty!$D$778 -> Przepływy środków pieniężnych z działalności inwestycyjnej
A80: 131106 | C80: 2 | D80: =D79 -> B | E80: I | J80: =D80&"."&E80 -> B.I | K80: =E80 -> I | N80: =K80 -> I | O80: =teksty!$D$779 -> Wpływy
A81: 131106 | C81: 3 | D81: =D80 -> B | E81: I | F81: 1 | J81: =D81&"."&E81 & "." & F81 -> B.I.1 | K81: =F81 -> 1 | N81: =K81 -> 1 | O81: =teksty!$D$780 -> Zbycie wartości niematerialnych i prawnych oraz rzeczowych aktywów trwałych
A82: 131106 | C82: 3 | D82: B | E82: I | F82: 2 | J82: =D82&"."&E82 & "." & F82 -> B.I.2 | K82: =F82 -> 2 | N82: =K82 -> 2 | O82: =teksty!$D$781 -> Zbycie inwestycji w nieruchomości oraz wartości niematerialne i prawne
A83: 131106 | C83: 3 | D83: B | E83: I | F83: 3 | J83: =D83&"."&E83 & "." & F83 -> B.I.3 | K83: =F83 -> 3 | N83: =K83 -> 3 | O83: =teksty!$D$782 -> Z aktywów finansowych, w tym:
A84: 131106 | C84: 4 | D84: B | E84: I | F84: =F83 -> 3 | G84: a | J84: =D84&"."&E84 & "." & F84& "." & G84 -> B.I.3.a | K84: =G84 &")" -> a) | N84: =K84 -> a) | O84: =teksty!$D$783 -> w jednostkach powiązanych
A85: 131106 | C85: 4 | D85: B | E85: I | F85: =F84 -> 3 | G85: b | J85: =D85&"."&E85 & "." & F85& "." & G85 -> B.I.3.b | K85: =G85 &")" -> b) | N85: =K85 -> b) | O85: =teksty!$D$784 -> w pozostałych jednostkach
A86: 131106 | C86: 5 | D86: B | E86: I | F86: 3 | G86: =G85 -> b | H86: 1 | J86: =$D86&"."&E86&"."&F86&"."&G86&"."&H86 -> B.I.3.b.1 | K86: =H86 & ") " -> 1) | O86: =$K$86&teksty!$D$785 -> 1) zbycie aktywów finansowych
A87: 131106 | C87: 5 | D87: B | E87: I | F87: 3 | G87: =G86 -> b | H87: 2 | J87: =$D87&"."&E87&"."&F87&"."&G87&"."&H87 -> B.I.3.b.2 | K87: =H87 & ") " -> 2) | O87: =$K$87&teksty!$D$786 -> 2) dywidendy i udziały w zyskach
A88: 131106 | C88: 5 | D88: B | E88: I | F88: 3 | G88: =G87 -> b | H88: 3 | J88: =$D88&"."&E88&"."&F88&"."&G88&"."&H88 -> B.I.3.b.3 | K88: =H88 & ") " -> 3) | O88: =$K$88&teksty!$D$787 -> 3) spłata udzielonych pożyczek długoterminowych
A89: 131106 | C89: 5 | D89: B | E89: I | F89: 3 | G89: =G88 -> b | H89: 4 | J89: =$D89&"."&E89&"."&F89&"."&G89&"."&H89 -> B.I.3.b.4 | K89: =H89 & ") " -> 4) | O89: =$K$89&teksty!$D$788 -> 4) odsetki
A90: 131106 | C90: 5 | D90: B | E90: I | F90: 3 | G90: =G89 -> b | H90: 5 | J90: =$D90&"."&E90&"."&F90&"."&G90&"."&H90 -> B.I.3.b.5 | K90: =H90 & ") " -> 5) | O90: =$K$90&teksty!$D$789 -> 5) inne wpływy z aktywów finansowych
A91: 131106 | C91: 3 | D91: B | E91: I | F91: 4 | J91: =D91&"."&E91 & "." & F91 -> B.I.4 | K91: =F91 -> 4 | N91: =K91 -> 4 | O91: =teksty!$D$790 -> Inne wpływy inwestycyjne
A92: 131106 | C92: 2 | D92: =D91 -> B | E92: II | J92: =D92&"."&E92 -> B.II | K92: =E92 -> II | N92: =K92 -> II | O92: =teksty!$D$791 -> Wydatki
A93: 131106 | C93: 3 | D93: B | E93: II | F93: 1 | J93: =D93&"."&E93 & "." & F93 -> B.II.1 | K93: =F93 -> 1 | N93: =K93 -> 1 | O93: =teksty!$D$792 -> Nabycie wartości niematerialnych i prawnych oraz rzeczowych aktywów trwałych
A94: 131106 | C94: 3 | D94: B | E94: II | F94: 2 | I94: =teksty!$D$765 & teksty!$D$266 & 1 -> Rach. Przepływów, koniec strony 1 | J94: =D94&"."&E94 & "." & F94 -> B.II.2 | K94: =F94 -> 2 | N94: =K94 -> 2 | O94: =teksty!$D$793 -> Inwestycje w nieruchomości oraz wartości niematerialne i prawne
A95: 131106 | B95: P | C95: 2 | D95: B | E95: II | N95: =teksty!$D$151 & teksty!$D$694 -> metoda bezpośrednia, c.d. poprzedniej strony | U95: =$U$5 -> za rok: | V95: =$V$5 -> 2017 | W95: =$W$5 -> 2016 | X95: =teksty!$D$273 -> Przekszt. dane porów. za poprzedni okres
A96: 131106 | C96: 3 | D96: B | E96: II | F96: 3 | J96: =D96&"."&E96 & "." & F96 -> B.II.3 | K96: =F96 -> 3 | N96: =K96 -> 3 | O96: =teksty!$D$795 -> Na aktywa finansowe, w tym: | Z96: =teksty!$D$267 -> ukryty wiersz powyżej zawiera nagłówek dla kolejnej strony
A97: 131106 | C97: 4 | D97: B | E97: II | F97: =F96 -> 3 | G97: a | J97: =D97&"."&E97 & "." & F97& "." & G97 -> B.II.3.a | K97: =G97 &")" -> a) | N97: =K97 -> a) | O97: =teksty!$D$796 -> w jednostkach powiązanych
A98: 131106 | C98: 4 | D98: B | E98: II | F98: =F97 -> 3 | G98: b | J98: =D98&"."&E98 & "." & F98& "." & G98 -> B.II.3.b | K98: =G98 &")" -> b) | N98: b) | O98: =teksty!$D$797 -> w pozostałych jednostkach
A99: 131106 | C99: 5 | D99: =D98 -> B | E99: II | F99: 3 | G99: =G98 -> b | H99: 1 | J99: =$D99&"."&E99&"."&F99&"."&G99&"."&H99 -> B.II.3.b.1 | K99: =H99 & ") " -> 1) | O99: =$K$99&teksty!$D$798 -> 1) nabycie aktywów finansowych
A100: 131106 | C100: 5 | D100: =D99 -> B | E100: II | F100: 3 | G100: =G99 -> b | H100: 2 | J100: =$D100&"."&E100&"."&F100&"."&G100&"."&H100 -> B.II.3.b.2 | K100: =H100 & ") " -> 2) | O100: =$K$100&teksty!$D$799 -> 2) udzielone pożyczki długoterminowe
A101: 131106 | C101: 3 | D101: B | E101: II | F101: 4 | J101: =D101&"."&E101 & "." & F101 -> B.II.4 | K101: =F101 -> 4 | N101: =K101 -> 4 | O101: =teksty!$D$800 -> Inne wydatki inwestycyjne
A102: 131106 | C102: 2 | D102: =D101 -> B | E102: III | J102: =D102&"."&E102 -> B.III | K102: =E102 -> III | N102: =K102 -> III | O102: =teksty!$D$801 -> Przepływy pieniężne netto z działalności inwestycyjnej (I–II)
A103: 131106 | C103: 1 | D103: C | J103: =$D103 -> C | K103: =D103 -> C | N103: =K103 -> C | O103: =teksty!$D$802 -> Przepływy środków pieniężnych z działalności finansowej
A104: 131106 | C104: 2 | D104: =D103 -> C | E104: I | J104: =D104&"."&E104 -> C.I | K104: =E104 -> I | N104: =K104 -> I | O104: =teksty!$D$803 -> Wpływy
A105: 131106 | C105: 3 | D105: =D104 -> C | E105: I | F105: 1 | J105: =D105&"."&E105 & "." & F105 -> C.I.1 | K105: =F105 -> 1 | N105: 1 | O105: =teksty!$D$804 -> Wpływy netto z wydania udziałów (emisji akcji) i innych instrumentów kapitałowych oraz dopłat do kapitału
A106: 131106 | C106: 3 | D106: C | E106: I | F106: 2 | J106: =D106&"."&E106 & "." & F106 -> C.I.2 | K106: =F106 -> 2 | N106: 2 | O106: =teksty!$D$805 -> Kredyty i pożyczki
A107: 131106 | C107: 3 | D107: C | E107: I | F107: 3 | J107: =D107&"."&E107 & "." & F107 -> C.I.3 | K107: =F107 -> 3 | N107: 3 | O107: =teksty!$D$806 -> Emisja dłużnych papierów wartościowych
A108: 131106 | C108: =COUNTA(D108:H108) -> 3 | D108: C | E108: I | F108: 4 | J108: =D108&"."&E108 & "." & F108 -> C.I.4 | K108: =F108 -> 4 | N108: 4 | O108: =teksty!$D$807 -> Inne wpływy finansowe
A109: 131106 | C109: 2 | D109: =D108 -> C | E109: II | J109: =D109&"."&E109 -> C.II | K109: =E109 -> II | N109: II | O109: =teksty!$D$808 -> Wydatki
A110: 131106 | C110: 3 | D110: C | E110: II | F110: 1 | J110: =D110&"."&E110 & "." & F110 -> C.II.1 | K110: =F110 -> 1 | N110: 1 | O110: =teksty!$D$809 -> Nabycie udziałów (akcji) własnych
A111: 131106 | C111: =COUNTA(D111:H111) -> 3 | D111: C | E111: II | F111: 2 | J111: C.II.2 | K111: 2 | N111: 2 | O111: =teksty!$D$810 -> Dywidendy i inne wypłaty na rzecz właścicieli
A112: 131106 | C112: =COUNTA(D112:H112) -> 3 | D112: C | E112: II | F112: 3 | J112: C.II.3 | K112: 3 | N112: 3 | O112: =teksty!$D$811 -> Inne, niż wypłaty na rzecz właścicieli, wydatki z tytułu podziału zysku
A113: 131106 | C113: 3 | D113: C | E113: II | F113: 4 | J113: C.II.4 | K113: 4 | N113: 4 | O113: =teksty!$D$812 -> Spłaty kredytów i pożyczek
A114: 131106 | C114: 3 | D114: C | E114: II | F114: 5 | J114: C.II.5 | K114: 5 | N114: 5 | O114: =teksty!$D$813 -> Wykup dłużnych papierów wartościowych
A115: 131106 | C115: 3 | D115: C | E115: II | F115: 6 | J115: C.II.6 | K115: 6 | N115: 6 | O115: =teksty!$D$814 -> Z tytułu innych zobowiązań finansowych
A116: 131106 | C116: 3 | D116: C | E116: II | F116: 7 | J116: C.II.7 | K116: 7 | N116: 7 | O116: =teksty!$D$815 -> Płatności zobowiązań z tytułu umów leasingu finansowego
A117: 131106 | C117: =COUNTA(D117:H117) -> 3 | D117: C | E117: II | F117: 8 | J117: C.II.8 | K117: 8 | N117: 8 | O117: =teksty!$D$816 -> Odsetki
A118: 131106 | C118: 3 | D118: C | E118: II | F118: 9 | J118: C.II.9 | K118: 9 | N118: 9 | O118: =teksty!$D$817 -> Inne wydatki finansowe
A119: 131106 | C119: =COUNTA(D119:H119) -> 2 | D119: =D118 -> C | E119: III | J119: =D119&"."&E119 -> C.III | K119: =E119 -> III | N119: III | O119: =teksty!$D$818 -> Przepływy pieniężne netto z działalności finansowej (I–II)
A120: 131106 | C120: 1 | D120: D | J120: =$D120 -> D | K120: =D120 -> D | N120: =K120 -> D | O120: =teksty!$D$819 -> Przepływy pieniężne netto, razem (A.III±B.III±C.III)
A121: 131106 | C121: =COUNTA(D121:H121) -> 1 | D121: E | J121: =$D121 -> E | K121: =D121 -> E | N121: =K121 -> E | O121: =teksty!$D$820 -> Bilansowa zmiana stanu środków pieniężnych, w tym:
A122: 131106 | C122: 2 | D122: =D121 -> E | E122: 1 | J122: =D122&"."&E122 -> E.1 | O122: =IF($N$122=""," – ") &teksty!$D$821 -> – zmiana stanu środków pieniężnych z tytułu różnic kursowych
A123: 131106 | C123: =COUNTA(D123:H123) -> 1 | D123: F | J123: =$D123 -> F | K123: =D123 -> F | N123: =K123 -> F | O123: =teksty!$D$822 -> Środki pieniężne na początek okresu
A124: 131106 | C124: 1 | D124: G | J124: =$D124 -> G | K124: =D124 -> G | N124: =K124 -> G | O124: =teksty!$D$823 -> Środki pieniężne na koniec okresu (F±D), w tym:
A125: 131106 | C125: 2 | D125: =D124 -> G | E125: 1 | J125: =D125&"."&E125 -> G.1 | O125: =IF($N$125=""," – ") &teksty!$D$824 -> – o ograniczonej możliwości dysponowania
A126: 131106
A127: 0 | I127: Skonsolidowana:
A128: =#REF! ->  | B128: P | C128: =COUNTA(D128:H128) -> 2 | D128: =#REF! ->  | E128: =#REF! ->  | N128: =teksty!$D$152 & teksty!$D$694 -> metoda pośrednia, c.d. poprzedniej strony | U128: =$U$5 -> za rok: | V128: =$V$5 -> 2017 | W128: =$W$5 -> 2016 | X128: =teksty!$D$273 -> Przekszt. dane porów. za poprzedni okres
A129: =#REF! ->  | B129: P | C129: =COUNTA(D129:H129) -> 0 | N129: =teksty!$D$152 & teksty!$D$694 -> metoda pośrednia, c.d. poprzedniej strony | U129: =$U$5 -> za rok: | V129: =$V$5 -> 2017 | W129: =$W$5 -> 2016 | X129: =teksty!$D$273 -> Przekszt. dane porów. za poprzedni okres
A130: =#REF! ->  | B130: P | C130: =COUNTA(D130:H130) -> 2 | D130: =#REF! ->  | E130: =#REF! ->  | N130: =teksty!$D$151 & teksty!$D$694 -> metoda bezpośrednia, c.d. poprzedniej strony | U130: =$U$5 -> za rok: | V130: =$V$5 -> 2017 | W130: =$W$5 -> 2016 | X130: =teksty!$D$273 -> Przekszt. dane porów. za poprzedni okres

Sheet Dodatkowe
A1: Dodatkowe | D1: (wyświetlana etykieta) | H1: 1 | I1: =VLOOKUP(WybranaPozycja,teksty!B156:F161,2) -> JednostkaInna | M1: =OR(WybranaPozycja=2, WybranaPozycja=4) -> FALSE
E2: =teksty!D926 -> Dodatkowe informacje i objaśnienia
F3: =Wprowadzenie!$I$4 & " " & IF(NumerWariantuRaportu = 5, teksty!$D$270, "") -> Przedsiębiorstwo "Test" Sp. z o.o. | P3: =teksty!D265 & VLOOKUP(NumerBazyRaportu,BazyKwot,3) -> wszystkie kwoty w złotych
E4: =teksty!$D$928 -> Rozliczenie różnicy pomiędzy podstawą opodatkowania a wynikiem finansowym:
F6: =teksty!$D$929 -> Rozliczenie różnicy pomiędzy podstawą opodatkowania podatkiem dochodowym a wynikiem finansowym (zyskiem, stratą) brutto | L6: =SUBSTITUTE(teksty!$D$930, CHAR(10)," ") -> Okres bieżący | O6: =SUBSTITUTE(teksty!$D$931, CHAR(10)," ") -> Okres poprzedni
L7: =teksty!$D$932 -> Ogółem: | M7: =teksty!$D$933 -> w tym z zysków kapitałowych: | O7: =teksty!$D$932 -> Ogółem: | P7: =teksty!$D$933 -> w tym z zysków kapitałowych:
C8: P_ID 1 | D8: A | F8: =D8 & "." -> A. | G8: =teksty!D942 -> Zysk (strata) brutto za dany rok | L8: 4094189.29 | M8: ___ | O8: 4087389.45 | P8: ___
C10: P_ID 2 | D10: B | F10: B. | G10: =teksty!D943&" *" & IF(G12<> "", inc,"") -> Przychody zwolnione z opodatkowania * | L10: 0 | O10: 0
A11: =127*B11 -> 0 | B11: =B12 -> 0 | G11: =teksty!$D$935 -> pdst. prawna: | H11: =teksty!$D$936 -> Art. | I11: =teksty!$D$937 -> poz. | J11: =teksty!$D$938 -> pkt. | K11: =teksty!$D$939 -> lit. | L11: =teksty!$D$934 -> (informacja uszczegóławiająca, wynikająca z potrzeb lub specyfiki jednostki) | Q11: 0
A12: =127*B12 -> 0 | B12: =IF(G12<>"",1,0) -> 0 | D12: =D11+1 -> 1 | F12: =D12 -> 1 | Q12: 1
A13: 0 | B13: 0 | D13: =D12+1 -> 2 | F13: 2 | Q13: 1
A14: 0 | B14: 0 | D14: =D13+1 -> 3 | F14: 3 | Q14: 1
A15: 0 | B15: 0 | D15: 4 | F15: 4 | Q15: 1
A16: 0 | B16: 0 | D16: =D15+1 -> 5 | F16: 5 | Q16: 1
A17: 0 | B17: 0 | D17: =D16+1 -> 6 | F17: 6 | Q17: 1
A18: 0 | B18: 0 | D18: 7 | F18: 7 | Q18: 1
A19: 0 | B19: 0 | D19: =D18+1 -> 8 | F19: 8 | Q19: 1
A20: 0 | B20: 0 | D20: =D19+1 -> 9 | F20: 9 | Q20: 1
A21: 0 | B21: 0 | D21: 10 | F21: 10 | Q21: 1
A22: 0 | B22: =B11 -> 0 | G22: =teksty!$D$940 -> pozostałe (mniej niż 20 tys. zł): | L22: =IF(L12="","",L10-SUM(L12:L21)) ->  | M22: =IF(M12="","",M10-SUM(M12:M21)) ->  | O22: =IF(O12="","",O10-SUM(O12:O21)) ->  | P22: =IF(P12="","",P10-SUM(P12:P21)) ->  | Q22: 0
C24: P_ID 3 | D24: C | F24: C. | G24: =teksty!D944& IF(G26<> "", inc,"") -> Przychody niepodlegające opodatkowania w roku bieżącym | L24: 0 | O24: 0
A25: =127*B25 -> 0 | B25: =B26 -> 0 | G25: =teksty!$D$935 -> pdst. prawna: | H25: =teksty!$D$936 -> Art. | I25: =teksty!$D$937 -> poz. | J25: =teksty!$D$938 -> pkt. | K25: =teksty!$D$939 -> lit. | L25: =teksty!$D$934 -> (informacja uszczegóławiająca, wynikająca z potrzeb lub specyfiki jednostki) | Q25: 0
A26: =127*B26 -> 0 | B26: =IF(G26<>"",1,0) -> 0 | D26: =D25+1 -> 1 | F26: =D26 -> 1 | Q26: 1
A27: 0 | B27: 0 | D27: =D26+1 -> 2 | F27: 2 | Q27: 1
A28: 0 | B28: 0 | D28: =D27+1 -> 3 | F28: 3 | Q28: 1
A29: 0 | B29: 0 | D29: 4 | F29: 4 | Q29: 1
A30: 0 | B30: 0 | D30: =D29+1 -> 5 | F30: 5 | Q30: 1
A31: 0 | B31: 0 | D31: =D30+1 -> 6 | F31: 6 | Q31: 1
A32: 0 | B32: 0 | D32: 7 | F32: 7 | Q32: 1
A33: 0 | B33: 0 | D33: 8 | F33: 8 | Q33: 1
A34: 0 | B34: 0 | D34: =D33+1 -> 9 | F34: 9 | Q34: 1
A35: 0 | B35: 0 | D35: =D34+1 -> 10 | F35: 10 | Q35: 1
A36: 0 | B36: =B25 -> 0 | G36: =teksty!$D$940 -> pozostałe (mniej niż 20 tys. zł): | L36: =IF(L26="","",L24-SUM(L26:L35)) ->  | M36: =IF(M26="","",M24-SUM(M26:M35)) ->  | O36: =IF(O26="","",O24-SUM(O26:O35)) ->  | P36: =IF(P26="","",P24-SUM(P26:P35)) ->  | Q36: 0
C38: P_ID 4 | D38: D | F38: D. | G38: =teksty!D945& IF(G40<> "", inc,"") -> Przychody podlegające opodatkowania w roku bieżącym, ujęte w księgach rachunkowych lat ubiegłych | L38: 0 | O38: 0
A39: =127*B39 -> 0 | B39: =B40 -> 0 | G39: =teksty!$D$935 -> pdst. prawna: | H39: =teksty!$D$936 -> Art. | I39: =teksty!$D$937 -> poz. | J39: =teksty!$D$938 -> pkt. | K39: =teksty!$D$939 -> lit. | L39: =teksty!$D$934 -> (informacja uszczegóławiająca, wynikająca z potrzeb lub specyfiki jednostki) | Q39: 0
A40: =127*B40 -> 0 | B40: =IF(G40<>"",1,0) -> 0 | D40: =D39+1 -> 1 | F40: =D40 -> 1 | Q40: 1
A41: 0 | B41: 0 | D41: =D40+1 -> 2 | F41: 2 | Q41: 1
A42: 0 | B42: 0 | D42: =D41+1 -> 3 | F42: 3 | Q42: 1
A43: 0 | B43: 0 | D43: 4 | F43: 4 | Q43: 1
A44: 0 | B44: 0 | D44: 5 | F44: 5 | Q44: 1
A45: 0 | B45: 0 | D45: =D44+1 -> 6 | F45: 6 | Q45: 1
A46: 0 | B46: 0 | D46: =D45+1 -> 7 | F46: 7 | Q46: 1
A47: 0 | B47: 0 | D47: =D46+1 -> 8 | F47: 8 | Q47: 1
A48: 0 | B48: 0 | D48: 9 | F48: 9 | Q48: 1
A49: 0 | B49: 0 | D49: 10 | F49: 10 | Q49: 1
A50: 0 | B50: =B39 -> 0 | G50: =teksty!$D$940 -> pozostałe (mniej niż 20 tys. zł): | L50: =IF(L40="","",L38-SUM(L40:L49)) ->  | M50: =IF(M40="","",M38-SUM(M40:M49)) ->  | O50: =IF(O40="","",O38-SUM(O40:O49)) ->  | P50: =IF(P40="","",P38-SUM(P40:P49)) ->  | Q50: 0
C52: P_ID 5 | D52: E | F52: E. | G52: =teksty!D946 & "*" & IF(G54<> "", inc,"") -> Koszty niestanowiące kosztów uzyskania przychodów * | L52: 0 | O52: 0
A53: =127*B53 -> 0 | B53: =B54 -> 0 | G53: =teksty!$D$935 -> pdst. prawna: | H53: =teksty!$D$936 -> Art. | I53: =teksty!$D$937 -> poz. | J53: =teksty!$D$938 -> pkt. | K53: =teksty!$D$939 -> lit. | L53: =teksty!$D$934 -> (informacja uszczegóławiająca, wynikająca z potrzeb lub specyfiki jednostki) | Q53: 0
A54: =127*B54 -> 0 | B54: =IF(G54<>"",1,0) -> 0 | D54: =D53+1 -> 1 | F54: =D54 -> 1 | Q54: 1
A55: 0 | B55: 0 | D55: =D54+1 -> 2 | F55: 2 | Q55: 1
A56: 0 | B56: 0 | D56: =D55+1 -> 3 | F56: 3 | Q56: 1
A57: 0 | B57: 0 | D57: 4 | F57: 4 | Q57: 1
A58: 0 | B58: 0 | D58: 5 | F58: 5 | Q58: 1
A59: =127*B59 -> 0 | B59: =IF(G59<>"",1,0) -> 0 | D59: =D58+1 -> 6 | F59: =D59 -> 6 | Q59: 1
A60: 0 | B60: 0 | D60: =D59+1 -> 7 | F60: 7 | Q60: 1
A61: 0 | B61: 0 | D61: =D60+1 -> 8 | F61: 8 | Q61: 1
A62: 0 | B62: 0 | D62: 9 | F62: 9 | Q62: 1
A63: 0 | B63: 0 | D63: 10 | F63: 10 | Q63: 1
A64: =127*B64 -> 0 | B64: =IF(G64<>"",1,0) -> 0 | D64: =D63+1 -> 11 | F64: =D64 -> 11 | Q64: 1
A65: 0 | B65: 0 | D65: =D64+1 -> 12 | F65: 12 | Q65: 1
A66: 0 | B66: 0 | D66: =D65+1 -> 13 | F66: 13 | Q66: 1
A67: 0 | B67: 0 | D67: 14 | F67: 14 | Q67: 1
A68: 0 | B68: 0 | D68: 15 | F68: 15 | Q68: 1
A69: =127*B69 -> 0 | B69: =IF(G69<>"",1,0) -> 0 | D69: =D68+1 -> 16 | F69: =D69 -> 16 | Q69: 1
A70: 0 | B70: 0 | D70: =D69+1 -> 17 | F70: 17 | Q70: 1
A71: 0 | B71: 0 | D71: =D70+1 -> 18 | F71: 18 | Q71: 1
A72: 0 | B72: 0 | D72: 19 | F72: 19 | Q72: 1
A73: 0 | B73: 0 | D73: 20 | F73: 20 | Q73: 1
A74: 0 | B74: =B53 -> 0 | G74: =teksty!$D$940 -> pozostałe (mniej niż 20 tys. zł): | L74: =IF(L54="","",L52-SUM(L54:L73)) ->  | M74: =IF(M54="","",M52-SUM(M54:M73)) ->  | O74: =IF(O54="","",O52-SUM(O54:O73)) ->  | P74: =IF(P54="","",P52-SUM(P54:P73)) ->  | Q74: 0
C76: P_ID 6 | D76: F | F76: F. | G76: =teksty!D947 & IF(G78<> "", inc,"") -> Koszty nieuznawane za koszty uzyskania przychodów w bieżącym roku | L76: 0 | O76: 203758.3
A77: =127*B77 -> 0 | B77: =B78 -> 0 | G77: =teksty!$D$935 -> pdst. prawna: | H77: =teksty!$D$936 -> Art. | I77: =teksty!$D$937 -> poz. | J77: =teksty!$D$938 -> pkt. | K77: =teksty!$D$939 -> lit. | L77: =teksty!$D$934 -> (informacja uszczegóławiająca, wynikająca z potrzeb lub specyfiki jednostki) | Q77: 0
A78: =127*B78 -> 0 | B78: =IF(G78<>"",1,0) -> 0 | D78: =D77+1 -> 1 | F78: =D78 -> 1 | Q78: 1
A79: 0 | B79: 0 | D79: =D78+1 -> 2 | F79: 2 | Q79: 1
A80: 0 | B80: 0 | D80: =D79+1 -> 3 | F80: 3 | Q80: 1
A81: 0 | B81: 0 | D81: 4 | F81: 4 | Q81: 1
A82: 0 | B82: 0 | D82: 5 | F82: 5 | Q82: 1
A83: =127*B83 -> 0 | B83: =IF(G83<>"",1,0) -> 0 | D83: =D82+1 -> 6 | F83: =D83 -> 6 | Q83: 1
A84: 0 | B84: 0 | D84: =D83+1 -> 7 | F84: 7 | Q84: 1
A85: 0 | B85: 0 | D85: =D84+1 -> 8 | F85: 8 | Q85: 1
A86: 0 | B86: 0 | D86: 9 | F86: 9 | Q86: 1
A87: 0 | B87: 0 | D87: 10 | F87: 10 | Q87: 1
A88: =127*B88 -> 0 | B88: =IF(G88<>"",1,0) -> 0 | D88: =D87+1 -> 11 | F88: =D88 -> 11 | Q88: 1
A89: 0 | B89: 0 | D89: =D88+1 -> 12 | F89: 12 | Q89: 1
A90: 0 | B90: 0 | D90: =D89+1 -> 13 | F90: 13 | Q90: 1
A91: 0 | B91: 0 | D91: 14 | F91: 14 | Q91: 1
A92: 0 | B92: 0 | D92: 15 | F92: 15 | Q92: 1
A93: 0 | B93: =B77 -> 0 | G93: =teksty!$D$940 -> pozostałe (mniej niż 20 tys. zł): | L93: =IF(L78="","",L76-SUM(L78:L92)) ->  | M93: =IF(M78="","",M76-SUM(M78:M92)) ->  | O93: =IF(O78="","",O76-SUM(O78:O92)) ->  | P93: =IF(P78="","",P76-SUM(P78:P92)) ->  | Q93: 0
C95: P_ID 7 | D95: G | F95: G. | G95: =teksty!D948 & IF(G97<> "", inc,"") -> Koszty uznawane za koszty uzyskania przychodów w roku bieżącym ujęte w księgach lat ubiegłych | L95: 0 | O95: 0
A96: =127*B96 -> 0 | B96: =B97 -> 0 | G96: =teksty!$D$935 -> pdst. prawna: | H96: =teksty!$D$936 -> Art. | I96: =teksty!$D$937 -> poz. | J96: =teksty!$D$938 -> pkt. | K96: =teksty!$D$939 -> lit. | L96: =teksty!$D$934 -> (informacja uszczegóławiająca, wynikająca z potrzeb lub specyfiki jednostki) | Q96: 0
A97: =127*B97 -> 0 | B97: =IF(G97<>"",1,0) -> 0 | D97: =D96+1 -> 1 | F97: =D97 -> 1 | Q97: 1
A98: 0 | B98: 0 | D98: =D97+1 -> 2 | F98: 2 | Q98: 1
A99: 0 | B99: 0 | D99: =D98+1 -> 3 | F99: 3 | Q99: 1
A100: 0 | B100: 0 | D100: 4 | F100: 4 | Q100: 1
A101: 0 | B101: 0 | D101: 5 | F101: 5 | Q101: 1
A102: =127*B102 -> 0 | B102: =IF(G102<>"",1,0) -> 0 | D102: =D101+1 -> 6 | F102: =D102 -> 6 | Q102: 1
A103: 0 | B103: 0 | D103: =D102+1 -> 7 | F103: 7 | Q103: 1
A104: 0 | B104: 0 | D104: =D103+1 -> 8 | F104: 8 | Q104: 1
A105: 0 | B105: 0 | D105: 9 | F105: 9 | Q105: 1
A106: 0 | B106: 0 | D106: 10 | F106: 10 | Q106: 1
A107: =127*B107 -> 0 | B107: =IF(G107<>"",1,0) -> 0 | D107: =D106+1 -> 11 | F107: =D107 -> 11 | Q107: 1
A108: 0 | B108: 0 | D108: =D107+1 -> 12 | F108: 12 | Q108: 1
A109: 0 | B109: 0 | D109: =D108+1 -> 13 | F109: 13 | Q109: 1
A110: 0 | B110: 0 | D110: 14 | F110: 14 | Q110: 1
A111: 0 | B111: 0 | D111: 15 | F111: 15 | Q111: 1
A112: 0 | B112: =B96 -> 0 | G112: =teksty!$D$940 -> pozostałe (mniej niż 20 tys. zł): | L112: =IF(L97="","",L95-SUM(L97:L111)) ->  | M112: =IF(M97="","",M95-SUM(M97:M111)) ->  | O112: =IF(O97="","",O95-SUM(O97:O111)) ->  | P112: =IF(P97="","",P95-SUM(P97:P111)) ->  | Q112: 0
G114: =teksty!D949 -> Dochód (A - B - C + D + E + F - G) | L114: =IF(ISNUMBER($L$8),$L$8-$L$10-$L$24+$L$38+$L$52+$L$76-$L$95,"") -> 4094189.29 | M114: ___ | O114: =IF(ISNUMBER($O$8),$O$8-$O$10-$O$24+$O$38+$O$52+$O$76-$O$95,"") -> 4291147.75 | P114: ___ | S114: =teksty!$D$950 -> pomocniczy wiersz sumujący (wartości z tego wiersza nie są zapisywane do pliku e-sprawozdania)
C116: P_ID 8 | D116: H | F116: H. | G116: =teksty!D951 & IF(G118<> "", inc,"") -> Strata z lat ubiegłych | L116: 0 | O116: 0
A117: =127*B117 -> 0 | B117: =B118 -> 0 | L117: =teksty!$D$934 -> (informacja uszczegóławiająca, wynikająca z potrzeb lub specyfiki jednostki) | Q117: 0
A118: =127*B118 -> 0 | B118: =IF(G118<>"",1,0) -> 0 | D118: =D117+1 -> 1 | F118: =D118 -> 1 | Q118: 1
A119: 0 | B119: 0 | D119: =D118+1 -> 2 | F119: 2 | Q119: 1
A120: 0 | B120: 0 | D120: =D119+1 -> 3 | F120: 3 | Q120: 1
A121: 0 | B121: 0 | D121: 4 | F121: 4 | Q121: 1
A122: 0 | B122: 0 | D122: 5 | F122: 5 | Q122: 1
A123: 0 | B123: =B117 -> 0 | G123: =teksty!$D$941 -> pozostałe: | L123: =IF(L118="","",L116-SUM(L118:L122)) ->  | M123: =IF(M118="","",M116-SUM(M118:M122)) ->  | O123: =IF(O118="","",O116-SUM(O118:O122)) ->  | P123: =IF(P118="","",P116-SUM(P118:P122)) ->  | Q123: 0
C125: P_ID 9 | D125: I | F125: I. | G125: =teksty!D953 & IF(G127<> "", inc,"") -> Inne zmiany podstawy opodatkowania | L125: -30450 | O125: 0
A126: =127*B126 -> 0 | B126: =B127 -> 0 | G126: =teksty!$D$935 -> pdst. prawna: | H126: =teksty!$D$936 -> Art. | I126: =teksty!$D$937 -> poz. | J126: =teksty!$D$938 -> pkt. | K126: =teksty!$D$939 -> lit. | L126: =teksty!$D$934 -> (informacja uszczegóławiająca, wynikająca z potrzeb lub specyfiki jednostki) | Q126: 0
A127: =127*B127 -> 0 | B127: =IF(G127<>"",1,0) -> 0 | D127: =D126+1 -> 1 | F127: =D127 -> 1 | Q127: 1
A128: 0 | B128: 0 | D128: =D127+1 -> 2 | F128: 2 | Q128: 1
A129: 0 | B129: 0 | D129: =D128+1 -> 3 | F129: 3 | Q129: 1
A130: 0 | B130: 0 | D130: 4 | F130: 4 | Q130: 1
A131: 0 | B131: 0 | D131: 5 | F131: 5 | Q131: 1
A132: 0 | B132: =B126 -> 0 | G132: =teksty!$D$940 -> pozostałe (mniej niż 20 tys. zł): | L132: =IF(L127="","",L125-SUM(L127:L131)) ->  | M132: =IF(M127="","",M125-SUM(M127:M131)) ->  | O132: =IF(O127="","",O125-SUM(O127:O131)) ->  | P132: =IF(P127="","",P125-SUM(P127:P131)) ->  | Q132: 0
C134: P_ID 10 | D134: J | F134: J. | G134: =teksty!D954 -> Podstawa opodatkowania podatkiem dochodowym | L134: =IF(ISNUMBER($L$8),ROUND($L$114-$L$116+$L$125,0),IF(JednostkaMala_lub_Mikro,"",0)) -> 4063739 | M134: ___ | O134: =IF(ISNUMBER($O$8),ROUND($O$114-$O$116+$O$125,0),"") -> 4291148 | P134: ___ | S134: =IF(OR(_xlfn.ISFORMULA(L134),_xlfn.ISFORMULA(L136)),teksty!$D$927,"") -> W niektórych polach są pomocnicze formuły. Jeżeli to potrzebne, możesz je zmienić, lub wpisać w te pola odpowiednie kwoty.
C136: P_ID 11 | D136: K | F136: K. | G136: =teksty!D955 -> Podatek dochodowy | L136: =IF(ISNUMBER($L$8),IF($L$134> 0,ROUND(0.19*$L$134,0),0),IF(JednostkaMala_lub_Mikro,"",0)) -> 772110 | M136: ___ | O136: =IF(ISNUMBER($O$8),IF($O$134> 0,ROUND(0.19*$O$134,0),0),"") -> 815318 | P136: ___
F138: * | G138: =teksty!D957 -> trwałe różnice pomiędzy zyskiem/stratą dla celów rachunkowych a dochodem/stratą dla celów podatkowych
E140: =teksty!$D$959 -> Załączniki i objaśnienia:
G142: Załącznik 1 - polityka rachunkowości przedsiębiorstwa | O142: =teksty!$D$961 -> Załącznik: | P142: Polityka_rachunkowosci.pdf
O146: =teksty!$D$961 -> Załącznik:
O150: =teksty!$D$961 -> Załącznik:
O154: =teksty!$D$961 -> Załącznik:
O158: =teksty!$D$961 -> Załącznik:
O162: =teksty!$D$961 -> Załącznik:
O166: =teksty!$D$961 -> Załącznik:
O170: =teksty!$D$961 -> Załącznik:
O174: =teksty!$D$961 -> Załącznik:
O178: =teksty!$D$961 -> Załącznik:

Sheet inne (hidden)

Sheet teksty (hidden)
H1: Ten arkusz obsługuje wielojęzyczność skoroszytu
C2: W kolumnie D są teksty aktualnie wybranej wersji językowej, a w kolumnach B,C,E,F - dodatkowe dane konfiguracyjne: | I2: Unikalna etykieta
H3: Objaśnienie | J3: PL | K3: EN | L3: Trzeci język - do wpisania przez Użytkownika
I4: 5
A5: Etykiety przycisków: | I5: 10
C6: Id obiektu | D6: Etykieta | H6: Etykiety przycisków: | I6: 15
C7: WyzerujWszystko | D7: =OFFSET(I7,0,WybranyJezyk) -> Wyzeruj cały raport | I7: 20 | J7: Wyzeruj cały raport | K7: Reset whole report | L7: Wyzeruj cały raport
C8: WyzerujDane | D8: Wyzeruj, zachowując część Wprowadzenia | I8: 25 | J8: Wyzeruj, zachowując część Wprowadzenia | K8: Reset, but preserve descriptions | L8: Wyzeruj, zachowując część Wprowadzenia
C9: Wczytaj | D9: Wczytaj plik e-sprawozdania | I9: 30 | J9: Wczytaj plik e-sprawozdania | K9: Open report file (XML) | L9: Wczytaj plik e-sprawozdania
C10: Zapisz | D10: Zapisz jako plik e-sprawozdania | I10: 35 | J10: Zapisz jako plik e-sprawozdania | K10: Save as report file (XML) | L10: Zapisz jako plik e-sprawozdania
C11: Manual | D11: Instrukcja obsługi | I11: 40 | J11: Instrukcja obsługi | K11: User guide | L11: Instrukcja obsługi
C12: Licencja | D12: Licencja | I12: 45 | J12: Licencja | K12: Licence terms | L12: Licencja
C13: DrukujWszystko | D13: =OFFSET(I13,0,WybranyJezyk) -> Utwórz podgląd sprawozdania (PDF) | I13: 50 | J13: Utwórz podgląd sprawozdania (PDF) | K13: Create report preview (PDF) | L13: Utwórz podgląd sprawozdania (PDF)
C14: EditLinks | D14: Edytuj linki do plików… | I14: 55 | J14: Edytuj linki do plików… | K14: Edit external links… | L14: Edytuj linki do plików…
D15: =OFFSET(I15,0,WybranyJezyk) -> Etykiety skoroszytu w: | I15: 60 | J15: Etykiety skoroszytu w: | K15: Workbook labels in: | L15: Etykiety skoroszytu w:
A16: Listy: | B16: Obsługiwane języki dla etykiet: | I16: 65
B17: Nr kolejny | C17: Wart. | D17: Etykieta | H17: Lista języków | I17: 70
B18: 1 | C18: PL | D18: =OFFSET(I18,0,WybranyJezyk) -> języku polskim | I18: 75 | J18: języku polskim | K18: Polish | L18: języku polskim
B19: 2 | C19: EN | D19: =OFFSET(I19,0,WybranyJezyk) -> języku angielskim | I19: 80 | J19: języku angielskim | K19: English | L19: języku angielskim
B20: 3 | C20: 03 | D20: =OFFSET(I20,0,WybranyJezyk) -> języku trzecim | I20: 85 | J20: języku trzecim | K20: User-defined language | L20: języku trzecim
I21: 90
B22: Baza kwot (wartość nazwana Baza): | I22: 95
B23: Nr kolejny | C23: Wart. | D23: Etykieta | E23: Sufiks kodu formularza | H23: Lista baz kwot | I23: 100
B24: 1 | C24: WZlotych | D24: =OFFSET(I24,0,WybranyJezyk) -> złotych | E24: Z | I24: 105 | J24: złotych | K24: PLN | L24: złotych
B25: 2 | C25: WTysiacach | D25: =OFFSET(I25,0,WybranyJezyk) -> tysiącach złotych | E25: T | I25: 110 | J25: tysiącach złotych | K25: thousand PLN | L25: tysiącach złotych
I26: 115
B27: Wariant numeru id przedsiębiorcy (pole alternatywne w arkuszu Wprowadzenie) | I27: 120
B28: Nr kolejny | C28: Wart. | D28: Etykieta | H28: Lista typów Id (z "Wprowadzenia") | I28: 125
B29: 1 | C29: KRS | D29: =OFFSET(I29,0,WybranyJezyk) -> numer KRS | I29: 130 | J29: numer KRS | K29: KRS: | L29: numer KRS
B30: 2 | C30: NIP | D30: =OFFSET(I30,0,WybranyJezyk) -> numer NIP | I30: 135 | J30: numer NIP | K30: NIP: | L30: numer NIP
I31: 140
B32: Wariant dla pola logicznego: | I32: 145
B33: Nr kolejny | C33: Wart. | D33: Etykieta | H33: Lista Tak/Nie | I33: 150
B34: 1 | C34: true | D34: =OFFSET(I34,0,WybranyJezyk) -> Tak | I34: 155 | J34: Tak | K34: Yes | L34: Tak
B35: 2 | C35: false | D35: =OFFSET(I35,0,WybranyJezyk) -> Nie | I35: 160 | J35: Nie | K35: No | L35: Nie
I36: 165
B37: Wariant raportu (lista nazwana WariantRaportu) | I37: 170
B38: Nr kolejny | C38: Wart. | D38: Etykieta | E38: Prefiks kodu formularza | F38: Max. opcji | H38: Lista wariantów raportu | I38: 175
B39: 1 | C39: JednostkaMikro | D39: =OFFSET(I39,0,WybranyJezyk) -> dla mikroprzedsiębiorstwa ("Jednostka Mikro") | E39: SFJMI | F39: 3 | I39: 180 | J39: dla mikroprzedsiębiorstwa ("Jednostka Mikro") | K39: for micro-entities ("Jednostka Mikro") | L39: dla mikroprzedsiębiorstwa ("Jednostka Mikro")
B40: 2 | C40: JednostkaMala | D40: =OFFSET(I40,0,WybranyJezyk) -> dla małego przedsiębiorstwa ("Jednostka Mała") | E40: SFJMA | F40: 2 | I40: 185 | J40: dla małego przedsiębiorstwa ("Jednostka Mała") | K40: for small entities ("Jednostka Mała") | L40: dla małego przedsiębiorstwa ("Jednostka Mała")
B41: 3 | C41: JednostkaInna | D41: =OFFSET(I41,0,WybranyJezyk) -> dla większego przedsiębiorstwa ("Jednostka Inna") | E41: SFJIN | F41: 1 | I41: 190 | J41: dla większego przedsiębiorstwa ("Jednostka Inna") | K41: for other entities ("Jednostka Inna") | L41: dla większego przedsiębiorstwa ("Jednostka Inna")
B42: 4 | C42: JednostkaOp | D42: =OFFSET(I42,0,WybranyJezyk) -> dla organizacji pozarządowej ("Jednostka Op") | E42: SFJOP | F42: 1 | I42: 195 | J42: dla organizacji pozarządowej ("Jednostka Op") | K42: for NGOs ("Jednostka Op") | L42: dla organizacji pozarządowej ("Jednostka Op")
B43: 5 | C43: Skonsolidowana | D43: =OFFSET(I43,0,WybranyJezyk) -> skonsolidowanym (dla "Skonsolidowana Jednostka Inna") | E43: SFSIN | F43: 1 | I43: 200 | J43: skonsolidowanym (dla "Skonsolidowana Jednostka Inna") | K43: for the consolidated statement ("Skonsolidowana Jednostka Inna") | L43: skonsolidowanym (dla "Skonsolidowana Jednostka Inna")
I44: 205
B45: Lista sekcji (arkuszy) raportu | I45: 210
B46: Niezmienny Id | C46: Nazwa sekcji w zasobach XML /przedrostek nazwy elementu w dokumencie (do pierwszej spacji) | D46: Etykieta arkusza (zależna od języka) | E46: Odsyłacz do obszaru z wariantami formularza (do identyfikacji podczas importu) | H46: Lista nazw arkuszy | I46: 215 | L46: UWAGA: poniższe nazwy arkuszy się nie drukują. Dlatego najlepiej je pozostawić w wersji polskiej, bo niewłaściwa zmiana nazw arkuszy może spowodować błędy programu. Jeżeli jednak musisz je zmienić, pamiętaj, że nazwy arkuszy: 1. nie mogą zawierać dziwnych znaków jak np. "&" - tylko litery, a nazwy pierwszych 7 nie mogą zawierać spacji. 2. każda nazwa musi być unikalna
B47: Nagłówek | C47: Naglowek | D47: =OFFSET(I47,0,WybranyJezyk) -> Nagłówek | I47: 220 | J47: Nagłówek | K47: Header | L47: Nagłówek
B48: Wprowadzenie | C48: WprowadzenieDoSprawozdaniaFinansowego | D48: Wprowadzenie | E48: =Adr($B$97:$F$102) -> teksty!$B$97:$F$102 | I48: 225 | J48: Wprowadzenie | K48: Introduction | L48: Wprowadzenie
B49: Bilans | C49: Bilans | D49: Bilans | E49: =Adr($B$106:$F$111) -> teksty!$B$106:$F$111 | I49: 230 | J49: Bilans | K49: Balance | L49: Bilans
B50: RZiS | C50: RZiS | D50: RZiS | E50: =Adr($B$123:$F$128) -> teksty!$B$123:$F$128 | I50: 235 | J50: RZiS | K50: Profit | L50: RZiS
B51: ZestZmianWKapitale | C51: ZestZmianWKapitale | D51: Kapitał | E51: =Adr(B115:F119) -> teksty!$B$115:$F$119 | I51: 240 | J51: Kapitał | K51: Equity | L51: Kapitał
B52: RachPrzeplywow | C52: RachPrzeplywow | D52: Przepływy | E52: =Adr(B142:F147) -> teksty!$B$142:$F$147 | I52: 245 | J52: Przepływy | K52: CashFlow | L52: Przepływy
B53: Dodatkowe | C53: DodatkoweInformacjeIObjasnienia | D53: Dodatkowe | E53: =Adr($B$156:$F$161) -> teksty!$B$156:$F$161 | I53: 250 | J53: Dodatkowe | K53: Other | L53: Dodatkowe
A54: =A52+1 -> 1 | B54: ="Dodatkowe " &A54 -> Dodatkowe 1 | C54: ="DodatkoweInformacjeIObjasnienia " & A54 -> DodatkoweInformacjeIObjasnienia 1 | D54: Dodatkowe (1) | E54: teksty!$B$156:$F$161 | I54: 255 | J54: Dodatkowe (1) | K54: =SUBSTITUTE(J54,J$53,K$53) -> Other (1) | L54: Dodatkowe (1)
A55: =A54+1 -> 2 | B55: ="Dodatkowe " &A55 -> Dodatkowe 2 | C55: ="DodatkoweInformacjeIObjasnienia " & A55 -> DodatkoweInformacjeIObjasnienia 2 | D55: Dodatkowe (2) | E55: teksty!$B$156:$F$161 | I55: 260 | J55: Dodatkowe (2) | K55: =SUBSTITUTE(J55,J$53,K$53) -> Other (2) | L55: Dodatkowe (2)
A56: 3 | B56: Dodatkowe 3 | C56: DodatkoweInformacjeIObjasnienia 3 | D56: Dodatkowe (3) | E56: teksty!$B$156:$F$161 | I56: 265 | J56: Dodatkowe (3) | K56: Other (3) | L56: Dodatkowe (3)
A57: 4 | B57: Dodatkowe 4 | C57: DodatkoweInformacjeIObjasnienia 4 | D57: Dodatkowe (4) | E57: teksty!$B$156:$F$161 | I57: 270 | J57: Dodatkowe (4) | K57: Other (4) | L57: Dodatkowe (4)
A58: 5 | B58: Dodatkowe 5 | C58: DodatkoweInformacjeIObjasnienia 5 | D58: Dodatkowe (5) | E58: teksty!$B$156:$F$161 | I58: 275 | J58: Dodatkowe (5) | K58: Other (5) | L58: Dodatkowe (5)
A59: 6 | B59: Dodatkowe 6 | C59: DodatkoweInformacjeIObjasnienia 6 | D59: Dodatkowe (6) | E59: teksty!$B$156:$F$161 | I59: 280 | J59: Dodatkowe (6) | K59: Other (6) | L59: Dodatkowe (6)
A60: 7 | B60: Dodatkowe 7 | C60: DodatkoweInformacjeIObjasnienia 7 | D60: Dodatkowe (7) | E60: teksty!$B$156:$F$161 | I60: 285 | J60: Dodatkowe (7) | K60: Other (7) | L60: Dodatkowe (7)
A61: 8 | B61: Dodatkowe 8 | C61: DodatkoweInformacjeIObjasnienia 8 | D61: Dodatkowe (8) | E61: teksty!$B$156:$F$161 | I61: 290 | J61: Dodatkowe (8) | K61: Other (8) | L61: Dodatkowe (8)
A62: 9 | B62: Dodatkowe 9 | C62: DodatkoweInformacjeIObjasnienia 9 | D62: Dodatkowe (9) | E62: teksty!$B$156:$F$161 | I62: 295 | J62: Dodatkowe (9) | K62: Other (9) | L62: Dodatkowe (9)
A63: 10 | B63: Dodatkowe 10 | C63: DodatkoweInformacjeIObjasnienia 10 | D63: Dodatkowe (10) | E63: teksty!$B$156:$F$161 | I63: 300 | J63: Dodatkowe (10) | K63: Other (10) | L63: Dodatkowe (10)
A64: 11 | B64: Dodatkowe 11 | C64: DodatkoweInformacjeIObjasnienia 11 | D64: Dodatkowe (11) | E64: teksty!$B$156:$F$161 | I64: 305 | J64: Dodatkowe (11) | K64: Other (11) | L64: Dodatkowe (11)
A65: 12 | B65: Dodatkowe 12 | C65: DodatkoweInformacjeIObjasnienia 12 | D65: Dodatkowe (12) | E65: teksty!$B$156:$F$161 | I65: 310 | J65: Dodatkowe (12) | K65: Other (12) | L65: Dodatkowe (12)
A66: 13 | B66: Dodatkowe 13 | C66: DodatkoweInformacjeIObjasnienia 13 | D66: Dodatkowe (13) | E66: teksty!$B$156:$F$161 | I66: 315 | J66: Dodatkowe (13) | K66: Other (13) | L66: Dodatkowe (13)
A67: 14 | B67: Dodatkowe 14 | C67: DodatkoweInformacjeIObjasnienia 14 | D67: Dodatkowe (14) | E67: teksty!$B$156:$F$161 | I67: 320 | J67: Dodatkowe (14) | K67: Other (14) | L67: Dodatkowe (14)
A68: 15 | B68: Dodatkowe 15 | C68: DodatkoweInformacjeIObjasnienia 15 | D68: Dodatkowe (15) | E68: teksty!$B$156:$F$161 | I68: 325 | J68: Dodatkowe (15) | K68: Other (15) | L68: Dodatkowe (15)
A69: 16 | B69: Dodatkowe 16 | C69: DodatkoweInformacjeIObjasnienia 16 | D69: Dodatkowe (16) | E69: teksty!$B$156:$F$161 | I69: 330 | J69: Dodatkowe (16) | K69: Other (16) | L69: Dodatkowe (16)
A70: 17 | B70: Dodatkowe 17 | C70: DodatkoweInformacjeIObjasnienia 17 | D70: Dodatkowe (17) | E70: teksty!$B$156:$F$161 | I70: 335 | J70: Dodatkowe (17) | K70: Other (17) | L70: Dodatkowe (17)
A71: 18 | B71: Dodatkowe 18 | C71: DodatkoweInformacjeIObjasnienia 18 | D71: Dodatkowe (18) | E71: teksty!$B$156:$F$161 | I71: 340 | J71: Dodatkowe (18) | K71: Other (18) | L71: Dodatkowe (18)
A72: 19 | B72: Dodatkowe 19 | C72: DodatkoweInformacjeIObjasnienia 19 | D72: Dodatkowe (19) | E72: teksty!$B$156:$F$161 | I72: 345 | J72: Dodatkowe (19) | K72: Other (19) | L72: Dodatkowe (19)
A73: 20 | B73: Dodatkowe 20 | C73: DodatkoweInformacjeIObjasnienia 20 | D73: Dodatkowe (20) | E73: teksty!$B$156:$F$161 | I73: 350 | J73: Dodatkowe (20) | K73: Other (20) | L73: Dodatkowe (20)
A74: 21 | B74: Dodatkowe 21 | C74: DodatkoweInformacjeIObjasnienia 21 | D74: Dodatkowe (21) | E74: teksty!$B$156:$F$161 | I74: 355 | J74: Dodatkowe (21) | K74: Other (21) | L74: Dodatkowe (21)
A75: 22 | B75: Dodatkowe 22 | C75: DodatkoweInformacjeIObjasnienia 22 | D75: Dodatkowe (22) | E75: teksty!$B$156:$F$161 | I75: 360 | J75: Dodatkowe (22) | K75: Other (22) | L75: Dodatkowe (22)
A76: 23 | B76: Dodatkowe 23 | C76: DodatkoweInformacjeIObjasnienia 23 | D76: Dodatkowe (23) | E76: teksty!$B$156:$F$161 | I76: 365 | J76: Dodatkowe (23) | K76: Other (23) | L76: Dodatkowe (23)
A77: 24 | B77: Dodatkowe 24 | C77: DodatkoweInformacjeIObjasnienia 24 | D77: Dodatkowe (24) | E77: teksty!$B$156:$F$161 | I77: 370 | J77: Dodatkowe (24) | K77: Other (24) | L77: Dodatkowe (24)
A78: 25 | B78: Dodatkowe 25 | C78: DodatkoweInformacjeIObjasnienia 25 | D78: Dodatkowe (25) | E78: teksty!$B$156:$F$161 | I78: 375 | J78: Dodatkowe (25) | K78: Other (25) | L78: Dodatkowe (25)
A79: 26 | B79: Dodatkowe 26 | C79: DodatkoweInformacjeIObjasnienia 26 | D79: Dodatkowe (26) | E79: teksty!$B$156:$F$161 | I79: 380 | J79: Dodatkowe (26) | K79: Other (26) | L79: Dodatkowe (26)
A80: 27 | B80: Dodatkowe 27 | C80: DodatkoweInformacjeIObjasnienia 27 | D80: Dodatkowe (27) | E80: teksty!$B$156:$F$161 | I80: 385 | J80: Dodatkowe (27) | K80: Other (27) | L80: Dodatkowe (27)
A81: 28 | B81: Dodatkowe 28 | C81: DodatkoweInformacjeIObjasnienia 28 | D81: Dodatkowe (28) | E81: teksty!$B$156:$F$161 | I81: 390 | J81: Dodatkowe (28) | K81: Other (28) | L81: Dodatkowe (28)
A82: 29 | B82: Dodatkowe 29 | C82: DodatkoweInformacjeIObjasnienia 29 | D82: Dodatkowe (29) | E82: teksty!$B$156:$F$161 | I82: 395 | J82: Dodatkowe (29) | K82: Other (29) | L82: Dodatkowe (29)
A83: 30 | B83: Dodatkowe 30 | C83: DodatkoweInformacjeIObjasnienia 30 | D83: Dodatkowe (30) | E83: teksty!$B$156:$F$161 | I83: 400 | J83: Dodatkowe (30) | K83: Other (30) | L83: Dodatkowe (30)
A84: 31 | B84: Dodatkowe 31 | C84: DodatkoweInformacjeIObjasnienia 31 | D84: Dodatkowe (31) | E84: teksty!$B$156:$F$161 | I84: 405 | J84: Dodatkowe (31) | K84: Other (31) | L84: Dodatkowe (31)
A85: 32 | B85: Dodatkowe 32 | C85: DodatkoweInformacjeIObjasnienia 32 | D85: Dodatkowe (32) | E85: teksty!$B$156:$F$161 | I85: 410 | J85: Dodatkowe (32) | K85: Other (32) | L85: Dodatkowe (32)
A86: 33 | B86: Dodatkowe 33 | C86: DodatkoweInformacjeIObjasnienia 33 | D86: Dodatkowe (33) | E86: teksty!$B$156:$F$161 | I86: 415 | J86: Dodatkowe (33) | K86: Other (33) | L86: Dodatkowe (33)
A87: 34 | B87: Dodatkowe 34 | C87: DodatkoweInformacjeIObjasnienia 34 | D87: Dodatkowe (34) | E87: teksty!$B$156:$F$161 | I87: 420 | J87: Dodatkowe (34) | K87: Other (34) | L87: Dodatkowe (34)
A88: 35 | B88: Dodatkowe 35 | C88: ="DodatkoweInformacjeIObjasnienia " & A88 -> DodatkoweInformacjeIObjasnienia 35 | D88: Dodatkowe (35) | E88: teksty!$B$156:$F$161 | I88: 425 | J88: Dodatkowe (35) | K88: Other (35) | L88: Dodatkowe (35)
A89: 36 | B89: Dodatkowe 36 | C89: DodatkoweInformacjeIObjasnienia 36 | D89: Dodatkowe (36) | E89: teksty!$B$156:$F$161 | I89: 430 | J89: Dodatkowe (36) | K89: Other (36) | L89: Dodatkowe (36)
A90: 37 | B90: Dodatkowe 37 | C90: DodatkoweInformacjeIObjasnienia 37 | D90: Dodatkowe (37) | E90: teksty!$B$156:$F$161 | I90: 435 | J90: Dodatkowe (37) | K90: Other (37) | L90: Dodatkowe (37)
A91: 38 | B91: Dodatkowe 38 | C91: DodatkoweInformacjeIObjasnienia 38 | D91: Dodatkowe (38) | E91: teksty!$B$156:$F$161 | I91: 440 | J91: Dodatkowe (38) | K91: Other (38) | L91: Dodatkowe (38)
A92: 39 | B92: Dodatkowe 39 | C92: DodatkoweInformacjeIObjasnienia 39 | D92: Dodatkowe (39) | E92: teksty!$B$156:$F$161 | I92: 445 | J92: Dodatkowe (39) | K92: Other (39) | L92: Dodatkowe (39)
A93: 40 | B93: Dodatkowe 40 | C93: ="DodatkoweInformacjeIObjasnienia " & A93 -> DodatkoweInformacjeIObjasnienia 40 | D93: Dodatkowe (40) | E93: teksty!$B$156:$F$161 | I93: 450 | J93: Dodatkowe (40) | K93: Other (40) | L93: Dodatkowe (40)
I94: 455
B95: warianty sekcji "WprowadzenieDoSprawozdaniaFinansowego": | I95: 460 | L95: ------- koniec nazw arkuszy -------
B96: Nr kolejny | C96: Pole tekstowe ze wzorcem struktury | D96: Etykieta | E96: Nazwa bazowa węzła XML | F96: Odsyłacz do obszaru subelementów | H96: Lista wersji "Wprowadzenia" | I96: 465
B97: 1 | C97: JednostkaInna(Rozszerzona) | D97: =OFFSET(I97,0,WybranyJezyk) -> wersja pełna | E97: WprowadzenieDoSprawozdaniaFinansowegoJednostkaInna | I97: 470 | J97: wersja pełna | K97: full version | L97: wersja pełna
B98: 2 | C98: JednostkaMala | D98: =OFFSET(I98,0,WybranyJezyk) -> wersja uproszczona | E98: InformacjeOgolneJednostkaMikro,WprowadzenieDoSprawozdaniaFinansowegoJednostkaMala | I98: 475 | J98: wersja uproszczona | K98: simplified version | L98: wersja uproszczona
I99: 480
B100: 4 | C100: JednostkaInna | D100: =OFFSET(I100,0,WybranyJezyk) -> stała | E100: WprowadzenieDoSprawozdaniaFinansowego | I100: 485 | J100: stała | K100: fixed | L100: stała
B101: 5 | C101: JednostkaOp | D101: =OFFSET(I101,0,WybranyJezyk) -> stała | E101: WprowadzenieDoSprawozdaniaFinansowegoJednostkaOp | I101: 490 | J101: stała | K101: fixed | L101: stała
B102: 6 | C102: Skonsolidowana | D102: =OFFSET(I102,0,WybranyJezyk) -> stała | E102: WprowadzenieDoSprawozdaniaFinansowego | I102: 495 | J102: stała | K102: fixed | L102: stała
I103: 500
B104: warianty sekcji "Bilans": | I104: 505
B105: Nr kolejny | C105: Pole tekstowe ze wzorcem struktury | D105: Etykieta | E105: Nazwa bazowa węzła XML | F105: Odsyłacz do obszaru subelementów | H105: Lista wersji "Bilansu" | I105: 510
B106: 1 | C106: JednostkaInna | D106: =OFFSET(I106,0,WybranyJezyk) -> wersja pełna | E106: Bilans,BilansJednostkaInna | I106: 515 | J106: wersja pełna | K106: full version | L106: wersja pełna
B107: 2 | C107: JednostkaMala | D107: =OFFSET(I107,0,WybranyJezyk) -> wersja uproszczona | E107: BilansJednostkaMala | I107: 520 | J107: wersja uproszczona | K107: simplified version | L107: wersja uproszczona
B108: 3 | C108: JednostkaMikro | D108: =OFFSET(I108,0,WybranyJezyk) -> wersja najprostsza | E108: BilansJednostkaMikro | I108: 525 | J108: wersja najprostsza | K108: the simplest version | L108: wersja najprostsza
I109: 530
B110: 5 | C110: JednostkaOp | D110: =OFFSET(I110,0,WybranyJezyk) -> stała | E110: BilansJednostkaOp | I110: 535 | J110: stała | K110: fixed | L110: stała
B111: 6 | C111: Skonsolidowana | D111: =OFFSET(I111,0,WybranyJezyk) -> stała | E111: Bilans | I111: 540 | J111: stała | K111: fixed | L111: stała
I112: 545
B113: warianty sekcji "ZestZmianWKapitale": | I113: 550
B114: Nr kolejny | C114: Pole tekstowe ze wzorcem struktury | D114: Etykieta | E114: Nazwa bazowa węzła XML | F114: Odsyłacz do obszaru subelementów | I114: 555
B115: 1 | C115: JednostkaInna | D115: =OFFSET(I115,0,WybranyJezyk) -> stała | E115: ZestZmianWKapitale,ZestZmianWKapitaleJednostkaInna | I115: 560 | J115: stała | K115: fixed | L115: stała
I116: 565
I117: 570
B118: 4 | C118: Skonsolidowana | D118: =OFFSET(I118,0,WybranyJezyk) -> stała | E118: ZestZmianWKapitale | I118: 575 | J118: stała | K118: fixed | L118: stała
I119: 580
I120: 585
B121: warianty sekcji "RZiS": | I121: 590
B122: Nr kolejny | C122: Pole tekstowe ze wzorcem struktury | D122: Etykieta | E122: Nazwa bazowa węzła XML | F122: Odsyłacz do obszaru subelementów | H122: Lista wersji"RZiS" | I122: 595
B123: 1 | C123: JednostkaInna | D123: =OFFSET(I123,0,WybranyJezyk) -> wersja pełna | E123: RZiS,RZiSJednostkaInna | F123: =Adr($B$132:$F$133) -> teksty!$B$132:$F$133 | I123: 600 | J123: wersja pełna | K123: full version | L123: wersja pełna
B124: 2 | C124: JednostkaMala | D124: =OFFSET(I124,0,WybranyJezyk) -> wersja uproszczona | E124: RZiSJednostkaMala | F124: =Adr($B$132:$F$133) -> teksty!$B$132:$F$133 | I124: 605 | J124: wersja uproszczona | K124: simplified version | L124: wersja uproszczona
B125: 3 | C125: JednostkaMikro | D125: =OFFSET(I125,0,WybranyJezyk) -> wersja najprostsza | E125: RZiSJednostkaMikro | F125: =Adr(B137:F138) -> teksty!$B$137:$F$138 | I125: 610 | J125: wersja najprostsza | K125: the simplest version | L125: wersja najprostsza
I126: 615
B127: 5 | C127: JednostkaOp | D127: =OFFSET(I127,0,WybranyJezyk) -> stała | E127: RZiSJednostkaOp | I127: 620 | J127: stała | K127: fixed | L127: stała
B128: 6 | C128: Skonsolidowana | D128: =OFFSET(I128,0,WybranyJezyk) -> stała | E128: RZiS | F128: =Adr($B$132:$F$133) -> teksty!$B$132:$F$133 | I128: 625 | J128: stała | K128: fixed | L128: stała
I129: 630
B130: subwarianty sekcji "RZiS": | I130: 635
B131: Nr kolejny | C131: (nieistotne) | D131: Etykieta | E131: Nazwa bazowa węzła XML | F131: Odsyłacz do obszaru subelementów | H131: Lista wariantów "RZS" | I131: 640
B132: 1 | C132: Kalkulacyjny | D132: =OFFSET(I132,0,WybranyJezyk) -> wariant kalkulacyjny | E132: RZiSKalk | I132: 645 | J132: wariant kalkulacyjny | K132: calculation variant | L132: wariant kalkulacyjny
B133: 2 | C133: Porownawczy | D133: =OFFSET(I133,0,WybranyJezyk) -> wariant porównawczy | E133: RZiSPor | I133: 650 | J133: wariant porównawczy | K133: comparative variant | L133: wariant porównawczy
I134: 655
B135: subwarianty sekcji "RZiS": | I135: 660
B136: Nr kolejny | C136: (nieistotne) | D136: Etykieta | E136: Nazwa bazowa węzła XML | F136: Odsyłacz do obszaru subelementów | H136: Lista subwariantów RZiS dla jedn. Mikro | I136: 665
B137: 1 | C137: art3.1a.2 | D137: =OFFSET(I137,0,WybranyJezyk) -> wariant dla jednostki z art. 3 ust. 1a pkt 2 ustawy | E137: G | I137: 670 | J137: wariant dla jednostki z art. 3 ust. 1a pkt 2 ustawy | K137: for entities descr. by sect. 3, par. 1a, p. 2 of the Act | L137: wariant dla jednostki z art. 3 ust. 1a pkt 2 ustawy
B138: 2 | C138: pozostale | D138: =OFFSET(I138,0,WybranyJezyk) -> wariant dla jednostek z art. 3 ust. 1a p. 1,3, i 4 oraz ust. 1b | E138: F | I138: 675 | J138: wariant dla jednostek z art. 3 ust. 1a p. 1,3, i 4 oraz ust. 1b | K138: for entities descr. By sect. 3, par. 1a p. 1,3, 4 or par. 1b of the Act | L138: wariant dla jednostek z art. 3 ust. 1a p. 1,3, i 4 oraz ust. 1b
I139: 680
B140: warianty sekcji "RachPrzeplywow": | I140: 685
B141: Nr kolejny | C141: Pole tekstowe ze wzorcem struktury | D141: Etykieta | E141: Nazwa bazowa węzła XML | F141: Odsyłacz do obszaru subelementów | I141: 690
B142: 1 | C142: JednostkaInna | D142: =OFFSET(I142,0,WybranyJezyk) -> stała | E142: RachPrzeplywow,RachPrzeplywowJednostkaInna | F142: =Adr($B$151:$F$152) -> teksty!$B$151:$F$152 | I142: 695 | J142: stała | K142: fixed | L142: stała
I143: 700
I144: 705
I145: 710
B146: 5 | C146: JednostkaOp | D146: =OFFSET(I146,0,WybranyJezyk) -> stała | E146: RachPrzeplywowJednostkaInna | F146: =Adr($B$151:$F$152) -> teksty!$B$151:$F$152 | I146: 715 | J146: stała | K146: fixed | L146: stała
B147: 6 | C147: Skonsolidowana | D147: =OFFSET(I147,0,WybranyJezyk) -> stała | E147: RachPrzeplywow | F147: =Adr($B$151:$F$152) -> teksty!$B$151:$F$152 | I147: 720 | J147: stała | K147: fixed | L147: stała
I148: 725
B149: subwarianty sekcji "RachPrzeplywow": | I149: 730
B150: Nr kolejny | C150: (nieistotne) | D150: Etykieta | E150: Nazwa bazowa węzła XML | F150: Odsyłacz do obszaru subelementów | H150: Lista wariantów "Przepływów" | I150: 735
B151: 1 | C151: Bezposrednia | D151: =OFFSET(I151,0,WybranyJezyk) -> metoda bezpośrednia | E151: PrzeplywyBezp | I151: 740 | J151: metoda bezpośrednia | K151: direct method | L151: metoda bezpośrednia
B152: 2 | C152: Posrednia | D152: =OFFSET(I152,0,WybranyJezyk) -> metoda pośrednia | E152: PrzeplywyPosr | I152: 745 | J152: metoda pośrednia | K152: indirect method | L152: metoda pośrednia
I153: 750
B154: sufiksy nazwy obaszaru do "DodatkoweInformacjeIObjasnienia": | I154: 755
B155: Nr kolejny | C155: Pole tekstowe ze wzorcem struktury | D155: Etykieta | E155: Nazwa bazowa węzła XML | F155: Odsyłacz do obszaru subelementów | I155: 760
B156: 1 | C156: JednostkaInna | D156: =OFFSET(I156,0,WybranyJezyk) -> stała | E156: DodatkoweInformacjeIObjasnieniaJednstkaInna,DodatkoweInformacjeIObjasnieniaJednostkaInna | I156: 765 | J156: stała | K156: fixed | L156: stała
B157: 2 | C157: JednostkaInna | D157: =OFFSET(I157,0,WybranyJezyk) -> stała | E157: InformacjeUzupelniajaceDoBilansuJednostkaMikro,DodatkoweInformacjeIObjasnieniaJednostkaMala | I157: 770 | J157: stała | K157: fixed | L157: stała
I158: 775
B159: 4 | C159: JednostkaOp | D159: =OFFSET(I159,0,WybranyJezyk) -> stała | E159: InformacjaDodatkowaJednostkaOp | I159: 780 | J159: stała | K159: fixed | L159: stała
I160: 785
B161: 6 | C161: Skonsolidowana | D161: =OFFSET(I161,0,WybranyJezyk) -> stała | E161: DodatkoweInformacjeIObjasnieniaJednostkaInna | I161: 790 | J161: stała | K161: fixed | L161: stała
I162: 795
A163: Teksty używane w kodzie programu: | I163: 800
I164: 805
C165: ID używane w kodzie | D165: Tekst (pola {0}, {1}, {2}, … są na kolejne argumenty wywołania) | H165: Komunikaty programu | I165: 810
C166: WkbookCorrupted | D166: =OFFSET(I166,0,WybranyJezyk) -> W tym skoroszycie brakuje niektórych danych niezbędnych do poprawnego działania. (Ta kopia jest niekompletna) | H166: UWAGA: zawsze należy zachować pola {0}, {1}, {2}, … - są to miejsca na kolejne argumenty wywołania | I166: 815 | J166: W tym skoroszycie brakuje niektórych danych niezbędnych do poprawnego działania. (Ta kopia jest niekompletna) | K166: This workbook lost some vital data, and is not working properly. (This copy is incomplete). | L166: =J166 -> W tym skoroszycie brakuje niektórych danych niezbędnych do poprawnego działania. (Ta kopia jest niekompletna)
C167: WkbookProblem | D167: Problem ze skoroszytem | I167: 820 | J167: Problem ze skoroszytem | K167: Workbook problem | L167: =J167 -> Problem ze skoroszytem
C168: ErrOnOpen | D168: Błąd podczas otwierania pliku | I168: 825 | J168: Błąd podczas otwierania pliku | K168: Error on opening the file | L168: Błąd podczas otwierania pliku
C169: CannotLoadFile | D169: Nie można załadować pliku: {0} | I169: 830 | J169: Nie można załadować pliku: {0} | K169: Cannot load file: {0} | L169: Nie można załadować pliku: {0}
C170: UnknownProtectionPwd | D170: Arkusz jest chroniony nieznanym hasłem. Ten przycisk działa tylko dla arkuszy z ochroną bez hasła lub z hasłem predefiniowanym | I170: 835 | J170: Arkusz jest chroniony nieznanym hasłem. Ten przycisk działa tylko dla arkuszy z ochroną bez hasła lub z hasłem predefiniowanym | K170: This worksheet is protected by an unknown password. This button works only for the sheets protected without a password, or by the predefined password | L170: Arkusz jest chroniony nieznanym hasłem. Ten przycisk działa tylko dla arkuszy z ochroną bez hasła lub z hasłem predefiniowanym
C171: CannotUnprotect | D171: Nie można wyłączyć ochrony arkusza. Spróbuj użyć oryginalnej wersji tego skoroszytu (z tą coś jest nie tak) | I171: 840 | J171: Nie można wyłączyć ochrony arkusza. Spróbuj użyć oryginalnej wersji tego skoroszytu (z tą coś jest nie tak) | K171: Cannot unprotect this worksheet. Try to use the original version of this workbook (there is something wrong with this one). | L171: Nie można wyłączyć ochrony arkusza. Spróbuj użyć oryginalnej wersji tego skoroszytu (z tą coś jest nie tak)
C172: STDExpireMsg | D172: Szanowny Kliencie, upłynął okres licencji udzielonej na używanie tego skoroszytu. Aby przedłużyć licencję, prosimy o kontakt z producentem (biuro@zigzak.eu). | I172: 845 | J172: Szanowny Kliencie, upłynął okres licencji udzielonej na używanie tego skoroszytu. Aby przedłużyć licencję, prosimy o kontakt z producentem (biuro@zigzak.eu). | K172: Dear Customer, the licence for this workbook has expired. To buy a new licence, plrease contact the producer (biuro@zigzak.eu) | L172: Szanowny Kliencie, upłynął okres licencji udzielonej na używanie tego skoroszytu. Aby przedłużyć licencję, prosimy o kontakt z producentem (biuro@zigzak.eu).
C173: STDExpireDemoMsg | D173: Okres ważności tej wersji demonstracyjnej już upłynął. Zapytaj (biuro@zigzak.eu) o warunki udzielenia pełnej licencji | I173: 850 | J173: Okres ważności tej wersji demonstracyjnej już upłynął. Zapytaj (biuro@zigzak.eu) o warunki udzielenia pełnej licencji | K173: This demo version has expired. Ask the producer (biuro@zigzak.eu) for the license terms. | L173: Okres ważności tej wersji demonstracyjnej już upłynął. Zapytaj (biuro@zigzak.eu) o warunki udzielenia pełnej licencji
C174: IFormExpireMsg | D174: Szanowny Kliencie, upłynął okres licencji udzielonej na używanie tego skoroszytu. Aby przedłużyć licencję, prosimy o kontakt z producentem (biuro@zigzak.eu). | I174: 855 | J174: Szanowny Kliencie, upłynął okres licencji udzielonej na używanie tego skoroszytu. Aby przedłużyć licencję, prosimy o kontakt z producentem (biuro@zigzak.eu). | K174: Dear Customer, the licence for this workbook has expired. To buy a new licence, plrease contact the producer (biuro@zigzak.eu) | L174: Szanowny Kliencie, upłynął okres licencji udzielonej na używanie tego skoroszytu. Aby przedłużyć licencję, prosimy o kontakt z producentem (biuro@zigzak.eu).
C175: IFormExpireDemoMsg | D175: Okres ważności tej wersji demonstracyjnej już upłynął. W celu nabycia pełnej licencji prosimy o kontakt z naszym partnerem: Signform Sp. z o.o. tel. +48 608-43-63-83 e-mail: biuro@signform.pl | I175: 860 | J175: Okres ważności tej wersji demonstracyjnej już upłynął. W celu nabycia pełnej licencji prosimy o kontakt z naszym partnerem: Signform Sp. z o.o. tel. +48 608-43-63-83 e-mail: biuro@signform.pl | K175: This demo version has expired. To buy a licence for this workbook, contact our sales partner: Signform Sp. z o.o. phone: +48 608-43-63-83 e-mail: biuro@signform.pl | L175: Okres ważności tej wersji demonstracyjnej już upłynął. W celu nabycia pełnej licencji prosimy o kontakt z naszym partnerem: Signform Sp. z o.o. tel. +48 608-43-63-83 e-mail: biuro@signform.pl
C176: DemoLicenseMsg | D176: Wersja demonstracyjna (kopiowanie dozwolone). W sprawie otrzymania licencji na wersję produktywną skontaktuj się z Właścicielem (biuro@zigzak.eu) | I176: 865 | J176: Wersja demonstracyjna (kopiowanie dozwolone). W sprawie otrzymania licencji na wersję produktywną skontaktuj się z Właścicielem (biuro@zigzak.eu) | K176: Demo version (copying allowed). If you are interested in buying the full licence, ask the producer (biuro@zigzak.eu) . | L176: Wersja demonstracyjna (kopiowanie dozwolone). W sprawie otrzymania licencji na wersję produktywną skontaktuj się z Właścicielem (biuro@zigzak.eu)
C177: DemoYearRestriction | D177: Ta wersja demonstracyjna nie pozwala na stworzenie raportu za okres obejmujący zeszły rok ({0}). Możesz w niej stworzyć raporty za lata wcześniejsze. W sprawie otrzymania pełnej licencji skontaktuj się z producentem (biuro@zigzak.eu) | I177: 870 | J177: Ta wersja demonstracyjna nie pozwala na stworzenie raportu za okres obejmujący zeszły rok ({0}). Możesz w niej stworzyć raporty za lata wcześniejsze. W sprawie otrzymania pełnej licencji skontaktuj się z producentem (biuro@zigzak.eu) | K177: This demo version does not allow to save report for the previous year ({0}). You can use it to create reports for the previous years. If you are interested in buying the full licence, contact the producer (biuro@zigzak.eu) . | L177: Ta wersja demonstracyjna nie pozwala na stworzenie raportu za okres obejmujący zeszły rok ({0}). Możesz w niej stworzyć raporty za lata wcześniejsze. W sprawie otrzymania pełnej licencji skontaktuj się z producentem (biuro@zigzak.eu)
C178: IFormDemoYearRestriction | D178: Ta wersja demonstracyjna nie pozwala na stworzenie raportu za okres obejmujący zeszły rok ({0}). Możesz w niej stworzyć raporty za lata wcześniejsze. Aby nabyć pełną licencję, skontaktuj się z naszym partnerem: Signform Sp. z o.o. tel. +48 608-43-63-83 e-mail: biuro@signform.pl | I178: 875 | J178: Ta wersja demonstracyjna nie pozwala na stworzenie raportu za okres obejmujący zeszły rok ({0}). Możesz w niej stworzyć raporty za lata wcześniejsze. Aby nabyć pełną licencję, skontaktuj się z naszym partnerem: Signform Sp. z o.o. tel. +48 608-43-63-83 e-mail: biuro@signform.pl | K178: This demo version does not allow to save report for the previous year ({0}). You can use it to create reports for the previous years. To buy a full licence for this workbook, contact our sales partner: Signform Sp. z o.o. phone: +48 608-43-63-83 e-mail: biuro@signform.pl | L178: Ta wersja demonstracyjna nie pozwala na stworzenie raportu za okres obejmujący zeszły rok ({0}). Możesz w niej stworzyć raporty za lata wcześniejsze. Aby nabyć pełną licencję, skontaktuj się z naszym partnerem: Signform Sp. z o.o. tel. +48 608-43-63-83 e-mail: biuro@signform.pl
C179: MappingXMLFields… | D179: Przypisywanie pól arkuszy do pól dokumentu XML: | I179: 880 | J179: Przypisywanie pól arkuszy do pól dokumentu XML: | K179: Assigning worksheet fields to the XML document elements: | L179: Przypisywanie pól arkuszy do pól dokumentu XML:
C180: Assertion | D180: Nieoczekiwany problem techniczny | I180: 885 | J180: Nieoczekiwany problem techniczny | K180: Unexpected technical problem | L180: Nieoczekiwany problem techniczny
C181: NoFieldMapped | D181: We wzorcowym pliku ({0}) brak pola "{1}" Czy ten skoroszyt nie jest w jakiś sposób uszkodzony? | I181: 890 | J181: We wzorcowym pliku ({0}) brak pola "{1}" Czy ten skoroszyt nie jest w jakiś sposób uszkodzony? | K181: Field '{1}' not found in the template document ({0}). Is this workbook file corrupted? | L181: We wzorcowym pliku ({0}) brak pola "{1}" Czy ten skoroszyt nie jest w jakiś sposób uszkodzony?
C182: TooManyFieldsMapped | D182: We wzorcowym pliku ({0}) pola "{1}" występują {2} razy! Uwaga dla programisty: proszę sprawdzić definicję mapowania w wierszu {3}. | I182: 895 | J182: We wzorcowym pliku ({0}) pola "{1}" występują {2} razy! Uwaga dla programisty: proszę sprawdzić definicję mapowania w wierszu {3}. | K182: Field '{1}' occurs {2} times in the template document ({0}). Note for the programmer: check the mapping declaraction in row {3}. | L182: We wzorcowym pliku ({0}) pola "{1}" występują {2} razy! Uwaga dla programisty: proszę sprawdzić definicję mapowania w wierszu {3}.
C183: TooLongFileName | D183: Nazwa pliku jest za długa (o {0} {1}). | I183: 900 | J183: Nazwa pliku jest za długa (o {0} {1}). | K183: File name too long (by {0} {1}). | L183: Nazwa pliku jest za długa (o {0} {1}).
C184: 1char | D184: znak | I184: 905 | J184: znak | K184: character | L184: znak
C185: 2-4chars | D185: znaki | I185: 910 | J185: znaki | K185: characters | L185: znaki
C186: >4chars | D186: znaków | I186: 915 | J186: znaków | K186: characters | L186: znaków
C187: WrongFileNameChar | D187: Znak nr {0} ('{1}') w nazwie '{2}' jest niepoprawny. Dopuszczalne znaki to: litery łacińskie, cyfry, oraz myślnik ('-'), podkreślenie('_'), i kropka ('.') | I187: 920 | J187: Znak nr {0} ('{1}') w nazwie '{2}' jest niepoprawny. Dopuszczalne znaki to: litery łacińskie, cyfry, oraz myślnik ('-'), podkreślenie('_'), i kropka ('.') | K187: Character at pos. {0} ('{1}') in name '{2}' is improper. Allowed are: latin letters, digits, dashes ('-'), underscores ('_'), and dots ('.'). | L187: Znak nr {0} ('{1}') w nazwie '{2}' jest niepoprawny. Dopuszczalne znaki to: litery łacińskie, cyfry, oraz myślnik ('-'), podkreślenie('_'), i kropka ('.')
C188: Warning | D188: Ostrzeżenie | I188: 925 | J188: Ostrzeżenie | K188: Warning | L188: Ostrzeżenie
C189: CorrectThisImportFileName? | D189: Naza pliku nie spełnia wymagań MF: {0} Nazwę tego pliku możesz poprawić, nawet w oknie dialogowym które przed chwilą się zamknęło. (Wystarczy przed wskazaniem pliku kliknąć w jego nazwę prawym przyciskiem myszy i z menu kontektowego wybrać polecenie "Zmień nazwę"). Czy chcesz teraz otworzyć ponownie okno wyboru plików i poprawić w nim tę nazwę? | I189: 930 | J189: Naza pliku nie spełnia wymagań MF: {0} Nazwę tego pliku możesz poprawić, nawet w oknie dialogowym które przed chwilą się zamknęło. (Wystarczy przed wskazaniem pliku kliknąć w jego nazwę prawym przyciskiem myszy i z menu kontektowego wybrać polecenie "Zmień nazwę"). Czy chcesz teraz otworzyć ponownie okno wyboru plików i poprawić w nim tę nazwę? | K189: File name does not match the requirements: {0} You can correct this name even in the file selector dialog that you have just closed. (Before selecting the file, you can right-click the mouse on its name and from the contect menu select the "Rename" command). Do you want to open the file selector dialog again, and correct this file name? | L189: Naza pliku nie spełnia wymagań MF: {0} Nazwę tego pliku możesz poprawić, nawet w oknie dialogowym które przed chwilą się zamknęło. (Wystarczy przed wskazaniem pliku kliknąć w jego nazwę prawym przyciskiem myszy i z menu kontektowego wybrać polecenie "Zmień nazwę"). Czy chcesz teraz otworzyć ponownie okno wyboru plików i poprawić w nim tę nazwę?
C190: CorrectThisExportFileName? | D190: Ten plik zostanie odrzucony przez serwer eKRS/KAS z powodu: {0} Czy chcesz teraz poprawić tę nazwę? | I190: 935 | J190: Ten plik zostanie odrzucony przez serwer eKRS/KAS z powodu: {0} Czy chcesz teraz poprawić tę nazwę? | K190: This file will be discarded by the target portal because of: {0} Do you ant to correct its name? | L190: Ten plik zostanie odrzucony przez serwer eKRS/KAS z powodu: {0} Czy chcesz teraz poprawić tę nazwę?
C191: PreparingToExport | D191: Przygotowania do eksportu... | I191: 940 | J191: Przygotowania do eksportu... | K191: Preparing the export…. | L191: Przygotowania do eksportu...
C192: OperationFailed | D192: Przetwarzanie zostało przerwane z powodu błędu. | I192: 945 | J192: Przetwarzanie zostało przerwane z powodu błędu. | K192: Processing has been broken beacause of the error. | L192: Przetwarzanie zostało przerwane z powodu błędu.
C193: ExportFailed | D193: Podczas odczytywania danych wystąpił błąd: {0} | I193: 950 | J193: Podczas odczytywania danych wystąpił błąd: {0} | K193: An error during reading the data: {0} | L193: Podczas odczytywania danych wystąpił błąd: {0}
C194: UnexpectedError | D194: Nieoczekiwany błąd | I194: 955 | J194: Nieoczekiwany błąd | K194: Unexpected error | L194: Nieoczekiwany błąd
C195: ReportValidation | D195: Weryfikacja pliku sprawozdania… | I195: 960 | J195: Weryfikacja pliku sprawozdania… | K195: Validation of report file… | L195: Weryfikacja pliku sprawozdania…
C196: ValidationFailed | D196: Podcza weryfikacji znaleziono błędy. | I196: 965 | J196: Podcza weryfikacji znaleziono błędy. | K196: An error found during validation. | L196: Podcza weryfikacji znaleziono błędy.
C197: SavingReportFile | D197: Zapisywanie pliku sprawozdania | I197: 970 | J197: Zapisywanie pliku sprawozdania | K197: Saving report file | L197: Zapisywanie pliku sprawozdania
C198: ExportToXML | D198: =OFFSET(I198,0,WybranyJezyk) -> Eksport do XML | I198: 975 | J198: Eksport do XML | K198: Export to XML | L198: Eksport do XML
C199: SFFileFilter | D199: Pliki sprawozdań (*.xml), *.xml, Wszystkie pliki (*.*), *.* | I199: 980 | J199: Pliki sprawozdań (*.xml), *.xml, Wszystkie pliki (*.*), *.* | K199: Report files (*.xml), *.xml, All files (*.*), *.* | L199: Pliki sprawozdań (*.xml), *.xml, Wszystkie pliki (*.*), *.*
C200: SFFileImportFilter | D200: Pliki sprawozdań (*.xml), *.xml, Podpisane pliki sprawozdań (*.xml.Xades), *.xml.xades, Wszystkie pliki (*.*), *.* | I200: 985 | J200: Pliki sprawozdań (*.xml), *.xml, Podpisane pliki sprawozdań (*.xml.Xades), *.xml.xades, Wszystkie pliki (*.*), *.* | K200: Report files (*.xml), *.xml, Signed report files (*.xml.Xades), *.xml.xades, All files (*.*), *.* | L200: Pliki sprawozdań (*.xml), *.xml, Podpisane pliki sprawozdań (*.xml.Xades), *.xml.xades, Wszystkie pliki (*.*), *.*
... 766 more rows

Sheet mapowanie (hidden)
B1: Mapowanie pól sprawozdania na elementy dokumentu XML | I1: Uwaga: przestrzeń nazw "sf:" to przesztrzeń aktualnie wybranego wariantu. Używaj "xjin:", "xjma:" i "xjmi:", by odróżnić "statycznie" poszczególne warianty bazowej struktury (np. xjin to "JednostkaInna<Wtysiacach/WZlotych>"). Do podobnego celu możesz użyć "jin:", "jma:" i "jmi:" (np. jin to "JednostkaInnaStruktury")
B4: Adres | C4: Domyślne dane w miejsce pustej komórki | D4: Dodatkowy atrybut | E4: Zachowaj przy resecie częściowym | F4: Flaga | G4: Typ | H4: Nr kolejny | I4: Formuła | J4: Element nadrzędny | K4: Element docelowy | L4: Weryfikacja adresu komórki (etykieta elementu)
B5: =Adr(DataOd) -> Nagłówek!$E$8 | D5: MarkParent | G5: Data | J5: sf:Naglowek | K5: dtsf:OkresOd | L5: 0
B6: =Adr(DataDo) -> Nagłówek!$G$8 | D6: MarkParent | G6: Data | J6: sf:Naglowek | K6: dtsf:OkresDo | L6: -
B7: =Adr(Nagłówek!G11) -> Nagłówek!$G$11 | C7: =TODAY() -> 2019-08-31 | G7: Data | J7: sf:Naglowek | K7: dtsf:DataSporzadzenia
B8: =Adr(Wprowadzenie!I4) -> Wprowadzenie!$I$4 | G8: Tekst | J8: sf:P_1A | K8: dtsf:NazwaFirmy
B9: =Adr(Wprowadzenie!I24) -> Wprowadzenie!$I$24 | G9: Tekst | J9: dtsf:Siedziba | K9: dtsf:Wojewodztwo
B10: =Adr(Wprowadzenie!I22) -> Wprowadzenie!$I$22 | G10: Tekst | J10: dtsf:Siedziba | K10: dtsf:Powiat
B11: =Adr(Wprowadzenie!I20) -> Wprowadzenie!$I$20 | G11: Tekst | J11: dtsf:Siedziba | K11: dtsf:Gmina
B12: =Adr(Wprowadzenie!I16) -> Wprowadzenie!$I$16 | G12: Tekst | J12: dtsf:Siedziba | K12: dtsf:Miejscowosc
B13: =Adr(Wprowadzenie!O18) -> Wprowadzenie!$O$18 | G13: Tekst | I13: PL | J13: dtsf:Adres | K13: etd:KodKraju
B14: =Adr(Wprowadzenie!I24) -> Wprowadzenie!$I$24 | G14: Tekst | J14: dtsf:Adres | K14: etd:Wojewodztwo
B15: =Adr(Wprowadzenie!I22) -> Wprowadzenie!$I$22 | G15: Tekst | J15: dtsf:Adres | K15: etd:Powiat
B16: =Adr(Wprowadzenie!I20) -> Wprowadzenie!$I$20 | G16: Tekst | J16: dtsf:Adres | K16: etd:Gmina
B17: =Adr(Wprowadzenie!I12) -> Wprowadzenie!$I$12 | G17: Tekst | J17: dtsf:Adres | K17: etd:Ulica
B18: =Adr(Wprowadzenie!I14) -> Wprowadzenie!$I$14 | G18: Tekst | J18: dtsf:Adres | K18: etd:NrDomu
B19: =Adr(Wprowadzenie!K14) -> Wprowadzenie!$K$14 | G19: Tekst | J19: dtsf:Adres | K19: etd:NrLokalu
B20: =Adr(Wprowadzenie!I16) -> Wprowadzenie!$I$16 | G20: Tekst | J20: dtsf:Adres | K20: etd:Miejscowosc
B21: =Adr(Wprowadzenie!L18) -> Wprowadzenie!$L$18 | G21: Tekst | J21: dtsf:Adres | K21: etd:KodPocztowy
B22: =Adr(Wprowadzenie!I18) -> Wprowadzenie!$I$18 | G22: Tekst | J22: dtsf:Adres | K22: etd:Poczta
B23: =Adr(Wprowadzenie!O32) -> Wprowadzenie!$O$32 | G23: Tekst | J23: dtsf:AdresPrzedsiebiorcyZagranicznego | K23: etd:KodKraju
B24: =Adr(Wprowadzenie!L32) -> Wprowadzenie!$L$32 | G24: Tekst | J24: dtsf:AdresPrzedsiebiorcyZagranicznego | K24: etd:KodPocztowy
B25: =Adr(Wprowadzenie!I32) -> Wprowadzenie!$I$32 | G25: Tekst | J25: dtsf:AdresPrzedsiebiorcyZagranicznego | K25: etd:Miejscowosc
B26: =Adr(Wprowadzenie!I28) -> Wprowadzenie!$I$28 | G26: Tekst | J26: dtsf:AdresPrzedsiebiorcyZagranicznego | K26: etd:Ulica
B27: =Adr(Wprowadzenie!I30) -> Wprowadzenie!$I$30 | G27: Tekst | J27: dtsf:AdresPrzedsiebiorcyZagranicznego | K27: etd:NrDomu
B28: =Adr(Wprowadzenie!K30) -> Wprowadzenie!$K$30 | G28: Tekst | J28: dtsf:AdresPrzedsiebiorcyZagranicznego | K28: etd:NrLokalu
B29: =Adr(Wprowadzenie!I42) -> Wprowadzenie!$I$42 | G29: Tekst | H29: 1 | J29: sf:P_1C | K29: dtsf:KodPKD
B30: =Adr(Wprowadzenie!I43) -> Wprowadzenie!$I$43 | G30: Tekst | H30: 2 | J30: sf:P_1C | K30: dtsf:KodPKD
B31: =Adr(Wprowadzenie!I44) -> Wprowadzenie!$I$44 | G31: Tekst | H31: 3 | J31: sf:P_1C | K31: dtsf:KodPKD
B32: =Adr(Wprowadzenie!I45) -> Wprowadzenie!$I$45 | G32: Tekst | H32: 4 | J32: sf:P_1C | K32: dtsf:KodPKD
B33: =Adr(Wprowadzenie!I46) -> Wprowadzenie!$I$46 | G33: Tekst | H33: 5 | J33: sf:P_1C | K33: dtsf:KodPKD
B34: =Adr(Wprowadzenie!I47) -> Wprowadzenie!$I$47 | G34: Tekst | H34: 6 | J34: sf:P_1C | K34: dtsf:KodPKD
B35: =Adr(techniczne!$E$3) -> techniczne!$E$3 | F35: Exists | G35: Logiczny | I35: 1 | J35: sf:P_1D | K35: dtsf:KRS
B36: =Adr(Wprowadzenie!$J$51) -> Wprowadzenie!$J$51 | F36: Alternative | G36: Tekst | J36: sf:P_1D | K36: dtsf:KRS,dtsf:NIP
B37: =Adr(techniczne!$E$3) -> techniczne!$E$3 | F37: Exists | G37: Logiczny | I37: 1 | J37: sf:WprowadzenieDoSprawozdaniaFinansowegoJednostkaMikro/sf:P_1/sf:P_1C | K37: dtsf:KRS
B38: =Adr(techniczne!$E$3) -> techniczne!$E$3 | F38: Exists | G38: Logiczny | I38: 1 | J38: sf:WprowadzenieDoSprawozdaniaFinansowegoJednostkaMala/sf:P_1/sf:P_1C | K38: dtsf:KRS
B39: =Adr(techniczne!$E$3) -> techniczne!$E$3 | F39: Exists | G39: Logiczny | I39: 1 | J39: sf:WprowadzenieDoSprawozdaniaFinansowegoJednostkaOp/sf:P_1/sf:P_1C | K39: dtsf:KRS
B40: =Adr(Wprowadzenie!$J$51) -> Wprowadzenie!$J$51 | F40: Alternative | G40: Tekst | J40: sf:P_1C | K40: dtsf:KRS,dtsf:NIP
B41: =Adr(Wprowadzenie!I58) -> Wprowadzenie!$I$58 | E41: 1 | G41: Data | J41: sf:P_2 | K41: dtsf:DataOd
B42: =Adr(Wprowadzenie!I60) -> Wprowadzenie!$I$60 | E42: 1 | G42: =IF(CzyData(INDIRECT(B42)), "Data", "Tekst") -> Tekst | J42: sf:P_2 | K42: dtsf:DataDoOpis
B43: =Adr(DataOd) -> Nagłówek!$E$8 | G43: Data | J43: sf:P_3 | K43: dtsf:DataOd
B44: =Adr(DataDo) -> Nagłówek!$G$8 | G44: Data | J44: sf:P_3 | K44: dtsf:DataDo
B45: =Adr(Wprowadzenie!$I$83) -> Wprowadzenie!$I$83 | G45: Logiczny | I45: 2 | J45: xjin:WprowadzenieDoSprawozdaniaFinansowego | K45: xjin:P_4
B46: =Adr(Wprowadzenie!$I$83) -> Wprowadzenie!$I$83 | G46: Logiczny | I46: 2 | J46: xsin:WprowadzenieDoSprawozdaniaFinansowego | K46: xsin:P_8
B47: =Adr(Wprowadzenie!$I$83) -> Wprowadzenie!$I$83 | G47: Logiczny | I47: 2 | J47: sf:WprowadzenieDoSprawozdaniaFinansowegoJednostkaInna | K47: sf:P_4
B48: =Adr(Wprowadzenie!$I$89) -> Wprowadzenie!$I$89 | G48: Logiczny | I48: 1 | J48: xjin:P_5 | K48: xjin:P_5A
B49: =Adr(Wprowadzenie!$I$92) -> Wprowadzenie!$I$92 | G49: Logiczny | I49: 1 | J49: xjin:P_5 | K49: xjin:P_5B
B50: =Adr(Wprowadzenie!$I$95) -> Wprowadzenie!$I$95 | G50: Tekst | J50: xjin:P_5 | K50: xjin:P_5C
B51: =Adr(Wprowadzenie!$I$89) -> Wprowadzenie!$I$89 | G51: Logiczny | I51: 1 | J51: xjma:P_5 | K51: xjma:P_5A
B52: =Adr(Wprowadzenie!$I$92) -> Wprowadzenie!$I$92 | G52: Logiczny | I52: 1 | J52: xjma:P_5 | K52: xjma:P_5B
B53: =Adr(Wprowadzenie!$I$95) -> Wprowadzenie!$I$95 | G53: Tekst | J53: xjma:P_5 | K53: xjma:P_5C
B54: =Adr(Wprowadzenie!$I$89) -> Wprowadzenie!$I$89 | G54: Logiczny | I54: 1 | J54: xjmi:P_5 | K54: xjmi:P_5A
B55: =Adr(Wprowadzenie!$I$92) -> Wprowadzenie!$I$92 | G55: Logiczny | I55: 1 | J55: xjmi:P_5 | K55: xjmi:P_5B
B56: =Adr(Wprowadzenie!$I$95) -> Wprowadzenie!$I$95 | G56: Tekst | J56: xjmi:P_5 | K56: xjmi:P_5C
B57: =Adr(Wprowadzenie!$I$89) -> Wprowadzenie!$I$89 | G57: Logiczny | I57: 1 | J57: xjop:P_4 | K57: xjop:P_4A
B58: =Adr(Wprowadzenie!$I$92) -> Wprowadzenie!$I$92 | G58: Logiczny | I58: 1 | J58: xjop:P_4 | K58: xjop:P_4B
B59: =Adr(Wprowadzenie!$I$95) -> Wprowadzenie!$I$95 | G59: Tekst | J59: xjop:P_4 | K59: xjop:P_4C
B60: =Adr(Wprowadzenie!$I$89) -> Wprowadzenie!$I$89 | G60: Logiczny | I60: 1 | J60: xsin:P_9 | K60: xsin:P_9A
B61: =Adr(Wprowadzenie!$I$92) -> Wprowadzenie!$I$92 | G61: Logiczny | I61: 1 | J61: xsin:P_9 | K61: xsin:P_9B
B62: =Adr(Wprowadzenie!$I$95) -> Wprowadzenie!$I$95 | G62: Tekst | J62: xsin:P_9 | K62: xsin:P_9C
B63: =Adr(Wprowadzenie!$I$101) -> Wprowadzenie!$I$101 | F63: Exists | G63: Logiczny | I63: 2 | J63: xjin:WprowadzenieDoSprawozdaniaFinansowego | K63: xjin:P_6
B64: =Adr(Wprowadzenie!$I$104) -> Wprowadzenie!$I$104 | F64: Ancestor | G64: Logiczny | J64: xjin:WprowadzenieDoSprawozdaniaFinansowego | K64: xjin:P_6A
B65: =Adr(Wprowadzenie!$I$107) -> Wprowadzenie!$I$107 | F65: Ancestor | G65: Tekst | J65: xjin:WprowadzenieDoSprawozdaniaFinansowego | K65: xjin:P_6B
B66: =Adr(Wprowadzenie!$I$101) -> Wprowadzenie!$I$101 | F66: Exists | G66: Logiczny | I66: 2 | J66: xsin:WprowadzenieDoSprawozdaniaFinansowego | K66: xsin:P_10
B67: =Adr(Wprowadzenie!$I$104) -> Wprowadzenie!$I$104 | F67: Ancestor | G67: Logiczny | J67: xsin:WprowadzenieDoSprawozdaniaFinansowego | K67: xsin:P_10A
B68: =Adr(Wprowadzenie!$I$107) -> Wprowadzenie!$I$107 | F68: Ancestor | G68: Tekst | J68: xsin:WprowadzenieDoSprawozdaniaFinansowego | K68: xsin:P_10B
B69: =Adr(Wprowadzenie!$I$101) -> Wprowadzenie!$I$101 | F69: Exists | G69: Logiczny | I69: 2 | J69: sf:WprowadzenieDoSprawozdaniaFinansowegoJednostkaInna | K69: sf:P_6
B70: =Adr(Wprowadzenie!$I$104) -> Wprowadzenie!$I$104 | F70: Ancestor | G70: Logiczny | J70: sf:WprowadzenieDoSprawozdaniaFinansowegoJednostkaInna | K70: sf:P_6A
B71: =Adr(Wprowadzenie!$I$107) -> Wprowadzenie!$I$107 | F71: Ancestor | G71: Tekst | J71: sf:WprowadzenieDoSprawozdaniaFinansowegoJednostkaInna | K71: sf:P_6B
B72: =Adr(Wprowadzenie!$I$111) -> Wprowadzenie!$I$111 | F72: Ancestor | G72: Mtekst | J72: xjin:WprowadzenieDoSprawozdaniaFinansowego | K72: xjin:P_7A
B73: =Adr(Wprowadzenie!$I$122) -> Wprowadzenie!$I$122 | F73: Ancestor | G73: Mtekst | J73: xjin:WprowadzenieDoSprawozdaniaFinansowego | K73: xjin:P_7B
B74: =Adr(Wprowadzenie!$I$138) -> Wprowadzenie!$I$138 | F74: Ancestor | G74: Mtekst | J74: xjin:WprowadzenieDoSprawozdaniaFinansowego | K74: xjin:P_7C
B75: =Adr(Wprowadzenie!$I$143) -> Wprowadzenie!$I$143 | F75: Ancestor | G75: Mtekst | J75: xjin:WprowadzenieDoSprawozdaniaFinansowego | K75: xjin:P_7D
B76: =Adr(Wprowadzenie!$I$111) -> Wprowadzenie!$I$111 | F76: Ancestor | G76: Mtekst | J76: xsin:WprowadzenieDoSprawozdaniaFinansowego | K76: xsin:P_11A
B77: =Adr(Wprowadzenie!I117) -> Wprowadzenie!$I$117 | F77: Ancestor | G77: Mtekst | J77: xsin:WprowadzenieDoSprawozdaniaFinansowego | K77: xsin:P_11B
B78: =Adr(Wprowadzenie!$I$122) -> Wprowadzenie!$I$122 | F78: Ancestor | G78: Mtekst | J78: xsin:WprowadzenieDoSprawozdaniaFinansowego | K78: xsin:P_11C
B79: =Adr(Wprowadzenie!I133) -> Wprowadzenie!$I$133 | F79: Ancestor | G79: Mtekst | J79: xsin:WprowadzenieDoSprawozdaniaFinansowego | K79: xsin:P_11D
B80: =Adr(Wprowadzenie!$I$138) -> Wprowadzenie!$I$138 | F80: Ancestor | G80: Mtekst | J80: xsin:WprowadzenieDoSprawozdaniaFinansowego | K80: xsin:P_11E
B81: =Adr(Wprowadzenie!$I$143) -> Wprowadzenie!$I$143 | F81: Ancestor | G81: Mtekst | J81: xsin:WprowadzenieDoSprawozdaniaFinansowego | K81: xsin:P_11F
B82: =Adr(Wprowadzenie!$I$111) -> Wprowadzenie!$I$111 | F82: Ancestor | G82: Mtekst | J82: sf:WprowadzenieDoSprawozdaniaFinansowegoJednostkaInna | K82: sf:P_7A
B83: =Adr(Wprowadzenie!$I$122) -> Wprowadzenie!$I$122 | F83: Ancestor | G83: Mtekst | J83: sf:WprowadzenieDoSprawozdaniaFinansowegoJednostkaInna | K83: sf:P_7B
B84: =Adr(Wprowadzenie!$I$138) -> Wprowadzenie!$I$138 | F84: Ancestor | G84: Mtekst | J84: sf:WprowadzenieDoSprawozdaniaFinansowegoJednostkaInna | K84: sf:P_7C
B85: =Adr(Wprowadzenie!$I$143) -> Wprowadzenie!$I$143 | F85: Ancestor | G85: Mtekst | J85: sf:WprowadzenieDoSprawozdaniaFinansowegoJednostkaInna | K85: sf:P_7D
B86: =Adr(Wprowadzenie!$I$111) -> Wprowadzenie!$I$111 | F86: Ancestor | G86: Mtekst | J86: sf:WprowadzenieDoSprawozdaniaFinansowegoJednostkaMala | K86: sf:P_6A
B87: =Adr(Wprowadzenie!$I$122) -> Wprowadzenie!$I$122 | F87: Ancestor | G87: Mtekst | J87: sf:WprowadzenieDoSprawozdaniaFinansowegoJednostkaMala | K87: sf:P_6B
B88: =Adr(Wprowadzenie!$I$148) -> Wprowadzenie!$I$148 | F88: Ancestor | G88: Mtekst | J88: sf:WprowadzenieDoSprawozdaniaFinansowegoJednostkaMala | K88: sf:P_6C
B89: =Adr(Wprowadzenie!$I$111) -> Wprowadzenie!$I$111 | F89: Ancestor | G89: Mtekst | J89: sf:InformacjeOgolneJednostkaMikro | K89: sf:P_6A
B90: =Adr(Wprowadzenie!$I$122) -> Wprowadzenie!$I$122 | F90: Ancestor | G90: Mtekst | J90: sf:InformacjeOgolneJednostkaMikro | K90: sf:P_6B
B91: =Adr(Wprowadzenie!$I$148) -> Wprowadzenie!$I$148 | F91: Ancestor | G91: Mtekst | J91: sf:InformacjeOgolneJednostkaMikro | K91: sf:P_6C
B92: =Adr(Wprowadzenie!$I$111) -> Wprowadzenie!$I$111 | F92: Ancestor | G92: Mtekst | J92: sf:WprowadzenieDoSprawozdaniaFinansowegoJednostkaOp | K92: sf:P_5A
B93: =Adr(Wprowadzenie!$I$122) -> Wprowadzenie!$I$122 | F93: Ancestor | G93: Mtekst | J93: sf:WprowadzenieDoSprawozdaniaFinansowegoJednostkaOp | K93: sf:P_5B
B94: =Adr(Wprowadzenie!$I$148) -> Wprowadzenie!$I$148 | F94: Ancestor | G94: Mtekst | J94: sf:WprowadzenieDoSprawozdaniaFinansowegoJednostkaOp | K94: sf:P_5C
B95: =Adr(Wprowadzenie!I154) -> Wprowadzenie!$I$154 | G95: Tekst | J95: xsin:WprowadzenieDoSprawozdaniaFinansowego | K95: xsin:P_12
B96: =Adr(Wprowadzenie!I159) -> Wprowadzenie!$I$159 | G96: Tekst | J96: xsin:WprowadzenieDoSprawozdaniaFinansowego | K96: xsin:P_13
B97: =Adr(Wprowadzenie!$I$165) -> Wprowadzenie!$I$165 | F97: Pidx | G97: Tekst | H97: 1 | J97: sf:P_8 | K97: dtsf:NazwaPozycji
B98: =Adr(Wprowadzenie!$I$167) -> Wprowadzenie!$I$167 | F98: Pidx | G98: Mtekst | H98: 1 | J98: sf:P_8 | K98: dtsf:Opis
B99: =Adr(Wprowadzenie!$I$171) -> Wprowadzenie!$I$171 | F99: Pidx | G99: Tekst | H99: 2 | J99: sf:P_8 | K99: dtsf:NazwaPozycji
B100: =Adr(Wprowadzenie!$I$173) -> Wprowadzenie!$I$173 | F100: Pidx | G100: Mtekst | H100: 2 | J100: sf:P_8 | K100: dtsf:Opis
B101: =Adr(Wprowadzenie!$I$177) -> Wprowadzenie!$I$177 | F101: Pidx | G101: Tekst | H101: 3 | J101: sf:P_8 | K101: dtsf:NazwaPozycji
B102: =Adr(Wprowadzenie!$I$179) -> Wprowadzenie!$I$179 | F102: Pidx | G102: Mtekst | H102: 3 | J102: sf:P_8 | K102: dtsf:Opis
B103: =Adr(Wprowadzenie!$I$183) -> Wprowadzenie!$I$183 | F103: Pidx | G103: Tekst | H103: 4 | J103: sf:P_8 | K103: dtsf:NazwaPozycji
B104: =Adr(Wprowadzenie!$I$185) -> Wprowadzenie!$I$185 | F104: Pidx | G104: Mtekst | H104: 4 | J104: sf:P_8 | K104: dtsf:Opis
B105: =Adr(Wprowadzenie!$I$165) -> Wprowadzenie!$I$165 | F105: Pidx | G105: Tekst | H105: 1 | J105: xsin:P_14 | K105: dtsf:NazwaPozycji
B106: =Adr(Wprowadzenie!$I$167) -> Wprowadzenie!$I$167 | F106: Pidx | G106: Mtekst | H106: 1 | J106: xsin:P_14 | K106: dtsf:Opis
B107: =Adr(Wprowadzenie!$I$171) -> Wprowadzenie!$I$171 | F107: Pidx | G107: Tekst | H107: 2 | J107: xsin:P_14 | K107: dtsf:NazwaPozycji
B108: =Adr(Wprowadzenie!$I$173) -> Wprowadzenie!$I$173 | F108: Pidx | G108: Mtekst | H108: 2 | J108: xsin:P_14 | K108: dtsf:Opis
B109: =Adr(Wprowadzenie!$I$177) -> Wprowadzenie!$I$177 | F109: Pidx | G109: Tekst | H109: 3 | J109: xsin:P_14 | K109: dtsf:NazwaPozycji
B110: =Adr(Wprowadzenie!$I$179) -> Wprowadzenie!$I$179 | F110: Pidx | G110: Mtekst | H110: 3 | J110: xsin:P_14 | K110: dtsf:Opis
B111: =Adr(Wprowadzenie!$I$183) -> Wprowadzenie!$I$183 | F111: Pidx | G111: Tekst | H111: 4 | J111: xsin:P_14 | K111: dtsf:NazwaPozycji
B112: =Adr(Wprowadzenie!$I$185) -> Wprowadzenie!$I$185 | F112: Pidx | G112: Mtekst | H112: 4 | J112: xsin:P_14 | K112: dtsf:Opis
B113: =Adr(Wprowadzenie!$I$75) -> Wprowadzenie!$I$75 | G113: Tekst | J113: sf:WprowadzenieDoSprawozdaniaFinansowegoJednostkaInna | K113: sf:P_9
B114: =Adr(Wprowadzenie!$I$75) -> Wprowadzenie!$I$75 | G114: Tekst | J114: sf:WprowadzenieDoSprawozdaniaFinansowegoJednostkaMala | K114: sf:P_4
B115: =Adr(Wprowadzenie!$I$75) -> Wprowadzenie!$I$75 | G115: Tekst | J115: sf:InformacjeOgolneJednostkaMikro | K115: sf:P_4
B116: =Adr(Wprowadzenie!$I$165) -> Wprowadzenie!$I$165 | F116: Pidx | G116: Tekst | H116: 1 | J116: sf:P_7 | K116: dtsf:NazwaPozycji
B117: =Adr(Wprowadzenie!$I$167) -> Wprowadzenie!$I$167 | F117: Pidx | G117: Mtekst | H117: 1 | J117: sf:P_7 | K117: dtsf:Opis
B118: =Adr(Wprowadzenie!$I$171) -> Wprowadzenie!$I$171 | F118: Pidx | G118: Tekst | H118: 2 | J118: sf:P_7 | K118: dtsf:NazwaPozycji
B119: =Adr(Wprowadzenie!$I$173) -> Wprowadzenie!$I$173 | F119: Pidx | G119: Mtekst | H119: 2 | J119: sf:P_7 | K119: dtsf:Opis
B120: =Adr(Wprowadzenie!$I$177) -> Wprowadzenie!$I$177 | F120: Pidx | G120: Tekst | H120: 3 | J120: sf:P_7 | K120: dtsf:NazwaPozycji
B121: =Adr(Wprowadzenie!$I$179) -> Wprowadzenie!$I$179 | F121: Pidx | G121: Mtekst | H121: 3 | J121: sf:P_7 | K121: dtsf:Opis
B122: =Adr(Wprowadzenie!$I$183) -> Wprowadzenie!$I$183 | F122: Pidx | G122: Tekst | H122: 4 | J122: sf:P_7 | K122: dtsf:NazwaPozycji
B123: =Adr(Wprowadzenie!$I$185) -> Wprowadzenie!$I$185 | F123: Pidx | G123: Mtekst | H123: 4 | J123: sf:P_7 | K123: dtsf:Opis
B124: =Adr(Wprowadzenie!$I$165) -> Wprowadzenie!$I$165 | F124: Pidx | G124: Tekst | H124: 1 | J124: xjop:P_6 | K124: dtsf:NazwaPozycji
B125: =Adr(Wprowadzenie!$I$167) -> Wprowadzenie!$I$167 | F125: Pidx | G125: Mtekst | H125: 1 | J125: xjop:P_6 | K125: dtsf:Opis
B126: =Adr(Wprowadzenie!$I$171) -> Wprowadzenie!$I$171 | F126: Pidx | G126: Tekst | H126: 2 | J126: xjop:P_6 | K126: dtsf:NazwaPozycji
B127: =Adr(Wprowadzenie!$I$173) -> Wprowadzenie!$I$173 | F127: Pidx | G127: Mtekst | H127: 2 | J127: xjop:P_6 | K127: dtsf:Opis
B128: =Adr(Wprowadzenie!$I$177) -> Wprowadzenie!$I$177 | F128: Pidx | G128: Tekst | H128: 3 | J128: xjop:P_6 | K128: dtsf:NazwaPozycji
B129: =Adr(Wprowadzenie!$I$179) -> Wprowadzenie!$I$179 | F129: Pidx | G129: Mtekst | H129: 3 | J129: xjop:P_6 | K129: dtsf:Opis
B130: =Adr(Wprowadzenie!$I$183) -> Wprowadzenie!$I$183 | F130: Pidx | G130: Tekst | H130: 4 | J130: xjop:P_6 | K130: dtsf:NazwaPozycji
B131: =Adr(Wprowadzenie!$I$185) -> Wprowadzenie!$I$185 | F131: Pidx | G131: Mtekst | H131: 4 | J131: xjop:P_6 | K131: dtsf:Opis
B132: =Adr(Bilans!$V$97) -> Bilans!$V$97 | G132: Kwota | I132: *SumUp | J132: jin:Aktywa | K132: dtsf:KwotaA
B133: =Adr(Bilans!$W$97) -> Bilans!$W$97 | G133: Kwota | I133: *SumUp | J133: jin:Aktywa | K133: dtsf:KwotaB
B134: =Adr(Bilans!V6) -> Bilans!$V$6 | G134: Kwota | I134: *Sum | J134: jin:Aktywa_A | K134: dtsf:KwotaA
B135: =Adr(Bilans!W6) -> Bilans!$W$6 | G135: Kwota | I135: *Sum | J135: jin:Aktywa_A | K135: dtsf:KwotaB
B136: =Adr(Bilans!V7) -> Bilans!$V$7 | G136: Kwota | I136: *Sum | J136: jin:Aktywa_A_I | K136: dtsf:KwotaA
B137: =Adr(Bilans!W7) -> Bilans!$W$7 | G137: Kwota | I137: *Sum | J137: jin:Aktywa_A_I | K137: dtsf:KwotaB
B138: =Adr(Bilans!V8) -> Bilans!$V$8 | G138: Kwota | J138: jin:Aktywa_A_I_1 | K138: dtsf:KwotaA
B139: =Adr(Bilans!W8) -> Bilans!$W$8 | G139: Kwota | J139: jin:Aktywa_A_I_1 | K139: dtsf:KwotaB
B140: =Adr(Bilans!V9) -> Bilans!$V$9 | G140: Kwota | J140: jin:Aktywa_A_I_2 | K140: dtsf:KwotaA
B141: =Adr(Bilans!W9) -> Bilans!$W$9 | G141: Kwota | J141: jin:Aktywa_A_I_2 | K141: dtsf:KwotaB
B142: =Adr(Bilans!V10) -> Bilans!$V$10 | G142: Kwota | J142: jin:Aktywa_A_I_3 | K142: dtsf:KwotaA
B143: =Adr(Bilans!W10) -> Bilans!$W$10 | G143: Kwota | J143: jin:Aktywa_A_I_3 | K143: dtsf:KwotaB
B144: =Adr(Bilans!V11) -> Bilans!$V$11 | G144: Kwota | J144: jin:Aktywa_A_I_4 | K144: dtsf:KwotaA
B145: =Adr(Bilans!W11) -> Bilans!$W$11 | G145: Kwota | J145: jin:Aktywa_A_I_4 | K145: dtsf:KwotaB
B146: =Adr(Bilans!V12) -> Bilans!$V$12 | G146: Kwota | I146: *Sum | J146: jin:Aktywa_A_II | K146: dtsf:KwotaA
B147: =Adr(Bilans!W12) -> Bilans!$W$12 | G147: Kwota | I147: *Sum | J147: jin:Aktywa_A_II | K147: dtsf:KwotaB
B148: =Adr(Bilans!V13) -> Bilans!$V$13 | G148: Kwota | I148: *Sum | J148: jin:Aktywa_A_II_1 | K148: dtsf:KwotaA
B149: =Adr(Bilans!W13) -> Bilans!$W$13 | G149: Kwota | I149: *Sum | J149: jin:Aktywa_A_II_1 | K149: dtsf:KwotaB
B150: =Adr(Bilans!V14) -> Bilans!$V$14 | G150: Kwota | J150: jin:Aktywa_A_II_1_A | K150: dtsf:KwotaA
B151: =Adr(Bilans!W14) -> Bilans!$W$14 | G151: Kwota | J151: jin:Aktywa_A_II_1_A | K151: dtsf:KwotaB
B152: =Adr(Bilans!V15) -> Bilans!$V$15 | G152: Kwota | J152: jin:Aktywa_A_II_1_B | K152: dtsf:KwotaA
B153: =Adr(Bilans!W15) -> Bilans!$W$15 | G153: Kwota | J153: jin:Aktywa_A_II_1_B | K153: dtsf:KwotaB
B154: =Adr(Bilans!V16) -> Bilans!$V$16 | G154: Kwota | J154: jin:Aktywa_A_II_1_C | K154: dtsf:KwotaA
B155: =Adr(Bilans!W16) -> Bilans!$W$16 | G155: Kwota | J155: jin:Aktywa_A_II_1_C | K155: dtsf:KwotaB
B156: =Adr(Bilans!V17) -> Bilans!$V$17 | G156: Kwota | J156: jin:Aktywa_A_II_1_D | K156: dtsf:KwotaA
B157: =Adr(Bilans!W17) -> Bilans!$W$17 | G157: Kwota | J157: jin:Aktywa_A_II_1_D | K157: dtsf:KwotaB
B158: =Adr(Bilans!V18) -> Bilans!$V$18 | G158: Kwota | J158: jin:Aktywa_A_II_1_E | K158: dtsf:KwotaA
B159: =Adr(Bilans!W18) -> Bilans!$W$18 | G159: Kwota | J159: jin:Aktywa_A_II_1_E | K159: dtsf:KwotaB
B160: =Adr(Bilans!V19) -> Bilans!$V$19 | G160: Kwota | J160: jin:Aktywa_A_II_2 | K160: dtsf:KwotaA
B161: =Adr(Bilans!W19) -> Bilans!$W$19 | G161: Kwota | J161: jin:Aktywa_A_II_2 | K161: dtsf:KwotaB
B162: =Adr(Bilans!V20) -> Bilans!$V$20 | G162: Kwota | J162: jin:Aktywa_A_II_3 | K162: dtsf:KwotaA
B163: =Adr(Bilans!W20) -> Bilans!$W$20 | G163: Kwota | J163: jin:Aktywa_A_II_3 | K163: dtsf:KwotaB
B164: =Adr(Bilans!V21) -> Bilans!$V$21 | G164: Kwota | I164: *Sum | J164: jin:Aktywa_A_III | K164: dtsf:KwotaA
B165: =Adr(Bilans!W21) -> Bilans!$W$21 | G165: Kwota | I165: *Sum | J165: jin:Aktywa_A_III | K165: dtsf:KwotaB
B166: =Adr(Bilans!V22) -> Bilans!$V$22 | G166: Kwota | J166: jin:Aktywa_A_III_1 | K166: dtsf:KwotaA
B167: =Adr(Bilans!W22) -> Bilans!$W$22 | G167: Kwota | J167: jin:Aktywa_A_III_1 | K167: dtsf:KwotaB
B168: =Adr(Bilans!V23) -> Bilans!$V$23 | G168: Kwota | J168: jin:Aktywa_A_III_2 | K168: dtsf:KwotaA
B169: =Adr(Bilans!W23) -> Bilans!$W$23 | G169: Kwota | J169: jin:Aktywa_A_III_2 | K169: dtsf:KwotaB
B170: =Adr(Bilans!V24) -> Bilans!$V$24 | G170: Kwota | J170: jin:Aktywa_A_III_3 | K170: dtsf:KwotaA
B171: =Adr(Bilans!W24) -> Bilans!$W$24 | G171: Kwota | J171: jin:Aktywa_A_III_3 | K171: dtsf:KwotaB
B172: =Adr(Bilans!V25) -> Bilans!$V$25 | G172: Kwota | I172: *Sum | J172: jin:Aktywa_A_IV | K172: dtsf:KwotaA
B173: =Adr(Bilans!W25) -> Bilans!$W$25 | G173: Kwota | I173: *Sum | J173: jin:Aktywa_A_IV | K173: dtsf:KwotaB
B174: =Adr(Bilans!V26) -> Bilans!$V$26 | G174: Kwota | J174: jin:Aktywa_A_IV_1 | K174: dtsf:KwotaA
B175: =Adr(Bilans!W26) -> Bilans!$W$26 | G175: Kwota | J175: jin:Aktywa_A_IV_1 | K175: dtsf:KwotaB
B176: =Adr(Bilans!V27) -> Bilans!$V$27 | G176: Kwota | J176: jin:Aktywa_A_IV_2 | K176: dtsf:KwotaA
B177: =Adr(Bilans!W27) -> Bilans!$W$27 | G177: Kwota | J177: jin:Aktywa_A_IV_2 | K177: dtsf:KwotaB
B178: =Adr(Bilans!V28) -> Bilans!$V$28 | G178: Kwota | I178: *Sum | J178: jin:Aktywa_A_IV_3 | K178: dtsf:KwotaA
B179: =Adr(Bilans!W28) -> Bilans!$W$28 | G179: Kwota | I179: *Sum | J179: jin:Aktywa_A_IV_3 | K179: dtsf:KwotaB
B180: =Adr(Bilans!V29) -> Bilans!$V$29 | G180: Kwota | I180: *Sum | J180: jin:Aktywa_A_IV_3_A | K180: dtsf:KwotaA
B181: =Adr(Bilans!W29) -> Bilans!$W$29 | G181: Kwota | I181: *Sum | J181: jin:Aktywa_A_IV_3_A | K181: dtsf:KwotaB
B182: =Adr(Bilans!V30) -> Bilans!$V$30 | G182: Kwota | J182: jin:Aktywa_A_IV_3_A_1 | K182: dtsf:KwotaA
B183: =Adr(Bilans!W30) -> Bilans!$W$30 | G183: Kwota | J183: jin:Aktywa_A_IV_3_A_1 | K183: dtsf:KwotaB
B184: =Adr(Bilans!V31) -> Bilans!$V$31 | G184: Kwota | J184: jin:Aktywa_A_IV_3_A_2 | K184: dtsf:KwotaA
B185: =Adr(Bilans!W31) -> Bilans!$W$31 | G185: Kwota | J185: jin:Aktywa_A_IV_3_A_2 | K185: dtsf:KwotaB
B186: =Adr(Bilans!V32) -> Bilans!$V$32 | G186: Kwota | J186: jin:Aktywa_A_IV_3_A_3 | K186: dtsf:KwotaA
B187: =Adr(Bilans!W32) -> Bilans!$W$32 | G187: Kwota | J187: jin:Aktywa_A_IV_3_A_3 | K187: dtsf:KwotaB
B188: =Adr(Bilans!V33) -> Bilans!$V$33 | G188: Kwota | J188: jin:Aktywa_A_IV_3_A_4 | K188: dtsf:KwotaA
B189: =Adr(Bilans!W33) -> Bilans!$W$33 | G189: Kwota | J189: jin:Aktywa_A_IV_3_A_4 | K189: dtsf:KwotaB
B190: =Adr(Bilans!V35) -> Bilans!$V$35 | G190: Kwota | I190: *Sum | J190: jin:Aktywa_A_IV_3_B | K190: dtsf:KwotaA
B191: =Adr(Bilans!W35) -> Bilans!$W$35 | G191: Kwota | I191: *Sum | J191: jin:Aktywa_A_IV_3_B | K191: dtsf:KwotaB
B192: =Adr(Bilans!V36) -> Bilans!$V$36 | G192: Kwota | J192: jin:Aktywa_A_IV_3_B_1 | K192: dtsf:KwotaA
B193: =Adr(Bilans!W36) -> Bilans!$W$36 | G193: Kwota | J193: jin:Aktywa_A_IV_3_B_1 | K193: dtsf:KwotaB
B194: =Adr(Bilans!V37) -> Bilans!$V$37 | G194: Kwota | J194: jin:Aktywa_A_IV_3_B_2 | K194: dtsf:KwotaA
B195: =Adr(Bilans!W37) -> Bilans!$W$37 | G195: Kwota | J195: jin:Aktywa_A_IV_3_B_2 | K195: dtsf:KwotaB
B196: =Adr(Bilans!V38) -> Bilans!$V$38 | G196: Kwota | J196: jin:Aktywa_A_IV_3_B_3 | K196: dtsf:KwotaA
B197: =Adr(Bilans!W38) -> Bilans!$W$38 | G197: Kwota | J197: jin:Aktywa_A_IV_3_B_3 | K197: dtsf:KwotaB
B198: =Adr(Bilans!V39) -> Bilans!$V$39 | G198: Kwota | J198: jin:Aktywa_A_IV_3_B_4 | K198: dtsf:KwotaA
B199: =Adr(Bilans!W39) -> Bilans!$W$39 | G199: Kwota | J199: jin:Aktywa_A_IV_3_B_4 | K199: dtsf:KwotaB
B200: =Adr(Bilans!V40) -> Bilans!$V$40 | G200: Kwota | I200: *Sum | J200: jin:Aktywa_A_IV_3_C | K200: dtsf:KwotaA
B201: =Adr(Bilans!W40) -> Bilans!$W$40 | G201: Kwota | I201: *Sum | J201: jin:Aktywa_A_IV_3_C | K201: dtsf:KwotaB
B202: =Adr(Bilans!V41) -> Bilans!$V$41 | G202: Kwota | J202: jin:Aktywa_A_IV_3_C_1 | K202: dtsf:KwotaA
... 2926 more rows

Sheet techniczne (hidden)
A1: Na poczatek trochę pól powiązanych z zapisywanym/odczytywanym plikiem: | O1: Kod języka etykiet: | P1: =VLOOKUP(Q1,teksty!B18:D20,2) -> PL | Q1: 1
C2: Wariant raportu: | D2: =VLOOKUP(F2,ListaWariantowRaportow,2) & VLOOKUP(G2,BazyKwot,2) -> JednostkaInnaWZlotych | F2: 3 | G2: 1 | I2: Daty w nagłówkach: | K2: =OR(DataDo="", MONTH(DataOd)> 1) -> FALSE | O2: XED | P2: #4370
C3: Numer ID podmiotu: | D3: =VLOOKUP(E3,teksty!B29:C30,2) -> KRS | E3: 1 | O3: XSD | P3: http://www.mf.gov.pl/documents/764034/6464789/{jednostka}{baza}%281%29_v1-0.xsd
O4: SF namespace | P4: =Q117 -> http://www.mf.gov.pl/schematy/SF/DefinicjeTypySprawozdaniaFinansowe{nsPrefix}{jednostka}{baza}
O9: Dodatkowe testy merytoryczne podczas Importu i dopisywania (Append):
O11: Sprawdź podczas importu | P11: Nie używane | Q11: Wykonać przed walidacją XSD? | R11: Węzeł z porównywaną wartością (wyrażenie Xpath) (uruchamiane dla DocumentNode) | S11: Oczekiwana wartość | T11: Komunikat o ewentualnym błędzie (Wpisz {Val} tam, gdzie ma być podstawiona wartość z importowanego dokumentu)
O12: =TRUE -> TRUE | Q12: =TRUE -> TRUE | R12: *[local-name()='Naglowek']/*[local-name()='KodSprawozdania']/@wersjaSchemy | S12: {wersjaSchemy} | T12: ="Niewłaściwy wersja pliku sprawozdania ({Val}), podczas gdy powinien to być '{Exp}'. Ten format może zawierać inne pola, i taka operacja jest niemożliwa" -> Niewłaściwy wersja pliku sprawozdania ({Val}), podczas gdy powinien to być '{Exp}'. Ten format może zawierać inne pola, i taka operacja jest niemożliwa
O14: Nazwa skoroszytu: | Q14: e-sprawozdań finansowych
O15: Numer seryjny: | Q15: DEMO
O16: Numer edycji: | Q16: 1.43
O17: Wygenerowano: | Q17: 2019-08-31T21:13:58
O19: Komunikaty w oknach dialogowych | Q19: 00
O82: Wzorce wszystkich przestrzeni nazw i ich prefiksy. Ta lista ma dwojakie zastosowanie: 1. wiersze z nazwą załącznika są używane do budowy Schema Cache (Po nazwie załącznika - pamiętaj o zmianie nazwy Obiektu po wstawieniu, na taki, jaki jest wpisany w pierwszej kolumnie) 2. wiersze z przedrostkiem NS - do "uzdatnienia" dokumentu do wyszukiwania poprzez dodanie tych przestrzeni nazw do właściwości obiektu DOMDocument
O83: Nazwa załącznika | P83: Prefiks NS | Q83: Przestrzeń nazw
O84: KodyPKD | Q84: http://crd.gov.pl/xml/schematy/dziedzinowe/mf/2018/02/01/eD/KodyPKD/
O85: KodyKrajow | Q85: http://crd.gov.pl/xml/schematy/dziedzinowe/mf/2016/01/25/eD/DefinicjeTypy/
O86: ElementarneTypyDanych | Q86: http://crd.gov.pl/xml/schematy/dziedzinowe/mf/2016/01/25/eD/DefinicjeTypy/
O87: StrukturyDanych | Q87: http://crd.gov.pl/xml/schematy/dziedzinowe/mf/2016/01/25/eD/DefinicjeTypy/
O88: DefinicjeTypySF | Q88: http://www.mf.gov.pl/schematy/SF/DefinicjeTypySprawozdaniaFinansowe/2018/07/09/DefinicjeTypySprawozdaniaFinansowe/
O89: JednostkaInnaStruktury | Q89: http://www.mf.gov.pl/schematy/SF/DefinicjeTypySprawozdaniaFinansowe/2018/07/09/JednostkaInnaStruktury
O90: JednostkaInnaWZlotych | Q90: http://www.mf.gov.pl/schematy/SF/DefinicjeTypySprawozdaniaFinansowe/2018/07/09/JednostkaInnaWZlotych
O91: JednostkaInnaWTysiacach | Q91: http://www.mf.gov.pl/schematy/SF/DefinicjeTypySprawozdaniaFinansowe/2018/07/09/JednostkaInnaWTysiacach
O92: JednostkaMalaStruktury | Q92: http://www.mf.gov.pl/schematy/SF/DefinicjeTypySprawozdaniaFinansowe/2018/07/09/JednostkaMalaStruktury
O93: JednostkaMalaWTysiacach | Q93: http://www.mf.gov.pl/schematy/SF/DefinicjeTypySprawozdaniaFinansowe/2018/07/09/JednostkaMalaWTysiacach
O94: JednostkaMalaWZlotych | Q94: http://www.mf.gov.pl/schematy/SF/DefinicjeTypySprawozdaniaFinansowe/2018/07/09/JednostkaMalaWZlotych
O95: JednostkaMikroStruktury | Q95: http://www.mf.gov.pl/schematy/SF/DefinicjeTypySprawozdaniaFinansowe/2018/07/09/JednostkaMikroStruktury
O96: JednostkaMikroWTysiacach | Q96: http://www.mf.gov.pl/schematy/SF/DefinicjeTypySprawozdaniaFinansowe/2018/07/09/JednostkaMikroWTysiacach
O97: JednostkaMikroWZlotych | Q97: http://www.mf.gov.pl/schematy/SF/DefinicjeTypySprawozdaniaFinansowe/2018/07/09/JednostkaMikroWZlotych
O98: JednostkaOpStruktury | Q98: http://www.mf.gov.pl/schematy/SF/DefinicjeTypySprawozdaniaFinansowe/2018/07/09/JednostkaOpStruktury
O99: JednostkaOpWZlotych | Q99: http://www.mf.gov.pl/schematy/SF/DefinicjeTypySprawozdaniaFinansowe/2018/07/09/JednostkaOrganizacjiPozarzadowejWZlotych
O100: JednostkaOpWTysiacach | Q100: http://www.mf.gov.pl/schematy/SF/DefinicjeTypySprawozdaniaFinansowe/2018/07/09/JednostkaOrganizacjiPozarzadowejWTysiacach
Q101: http://www.mf.gov.pl/schematy/SF/DefinicjeTypySprawozdaniaFinansowe/2018/07/09/SkonsolidowanaJednostkaInnaStruktury
Q102: http://www.mf.gov.pl/schematy/SF/DefinicjeTypySprawozdaniaFinansowe/2018/07/09/SkonsolidowanaJednostkaInnaWTysiacach
Q103: http://www.mf.gov.pl/schematy/SF/DefinicjeTypySprawozdaniaFinansowe/2018/07/09/SkonsolidowanaJednostkaInnaWZlotych
P104: etd | Q104: http://crd.gov.pl/xml/schematy/dziedzinowe/mf/2016/01/25/eD/DefinicjeTypy/
P105: dtsf | Q105: http://www.mf.gov.pl/schematy/SF/DefinicjeTypySprawozdaniaFinansowe/2018/07/09/DefinicjeTypySprawozdaniaFinansowe/
P106: jmi | Q106: http://www.mf.gov.pl/schematy/SF/DefinicjeTypySprawozdaniaFinansowe/2018/07/09/JednostkaMikroStruktury
P107: jma | Q107: http://www.mf.gov.pl/schematy/SF/DefinicjeTypySprawozdaniaFinansowe/2018/07/09/JednostkaMalaStruktury
P108: jin | Q108: http://www.mf.gov.pl/schematy/SF/DefinicjeTypySprawozdaniaFinansowe/2018/07/09/JednostkaInnaStruktury
P109: jop | Q109: http://www.mf.gov.pl/schematy/SF/DefinicjeTypySprawozdaniaFinansowe/2018/07/09/JednostkaOpStruktury
P110: sin | Q110: http://www.mf.gov.pl/schematy/SF/DefinicjeTypySprawozdaniaFinansowe/2018/07/09/SkonsolidowanaJednostkaInnaStruktury
P111: st | Q111: http://www.mf.gov.pl/schematy/SF/DefinicjeTypySprawozdaniaFinansowe/2018/07/09/{jednostka}Struktury
P112: xjin | Q112: http://www.mf.gov.pl/schematy/SF/DefinicjeTypySprawozdaniaFinansowe/2018/07/09/JednostkaInna{baza}
P113: xjma | Q113: http://www.mf.gov.pl/schematy/SF/DefinicjeTypySprawozdaniaFinansowe/2018/07/09/JednostkaMala{baza}
P114: xjmi | Q114: http://www.mf.gov.pl/schematy/SF/DefinicjeTypySprawozdaniaFinansowe/2018/07/09/JednostkaMikro{baza}
P115: xsin | Q115: http://www.mf.gov.pl/schematy/SF/DefinicjeTypySprawozdaniaFinansowe/2018/07/09/SkonsolidowanaJednostkaInna{baza}
P116: xjop | Q116: http://www.mf.gov.pl/schematy/SF/DefinicjeTypySprawozdaniaFinansowe/2018/07/09/JednostkaOrganizacjiPozarzadowej{baza}
P117: sf | Q117: http://www.mf.gov.pl/schematy/SF/DefinicjeTypySprawozdaniaFinansowe{nsPrefix}{jednostka}{baza}
O119: Tablica wyjatków dla atrybutu ReportDef.Info:
O120: Typ wyjatku (Hint) | P120: Wariant raportu | Q120: Argument 'About' | R120: Wartość
O121: extra | P121: default | Q121: nsPrefix | R121: /2018/07/09/
O122: extra | P122: default | Q122: wersjaSchemy | R122: 1-0E
O123: extra | P123: Skonsolidowana | Q123: wersjaSchemy | R123: 1-0
O124: xmlns | P124: JednostkaOp | Q124: Jednostka | R124: JednostkaOrganizacjiPozarzadowej
O125: xmlns | P125: Skonsolidowana | Q125: Jednostka | R125: SkonsolidowanaJednostkaInna
C137: Lista dodatkowych elementów tekstowych (AdditionalTextElements), ładowanych przy okazji pobierania wzorców T* (segmentów XML)
C138: Nazwa ramki tekstowej
C139: ID_PozycjaUzytkownikaBezPodstawy
C140: ID_PozycjaUzytkownika
C141: Wpr_P2
C142: Wpr_P4
C143: Wpr_P5
C145: Numery pozycji "Wprowadzenia" (różnią się dla poszczególnych wariantów):
G146: Inna(ext) | H146: Mała | J146: Inna | K146: Op | L146: Sk
C147: Numer waruantu (jak w opisie tej sekcji w arkuszy "teksty"): | F147: pole ref. | G147: 1 | H147: 2 | I147: nie używane | J147: 4 | K147: 5 | L147: 6
B148: 1 | C148: Numer NIP/KRS | G148: P_1D | H148: P_1C | J148: P_1D | K148: P_1C | L148: P_1D
B149: 2 | C149: Czas trwania działalności (jeśli ograniczony) | G149: P_2 | H149: P_2 | J149: P_2 | K149: P_2
B150: 3 | C150: Zakres dat raportu | G150: P_3 | H150: P_3 | J150: P_3 | K150: P_3
B151: 4 | C151: Kryteria zastosowane do wyboru jednostek w raporcie skonsolidowanym | L151: P_3
B152: 5 | C152: Włączenie danych wewn. Jednostek organizacyjnych | G152: P_4 | J152: P_4 | L152: P_8
B153: 6 | C153: Założenie kontynuacji działalności jednostki | G153: P_5 | H153: P_5 | J153: P_5 | K153: P_4 | L153: P_9
B154: 7 | C154: Czy w okresie nastąpiło połączenie spółek? | G154: P_6 | J154: P_6 | L154: P_10
B155: 8 | C155: Uproszczenia, zastsowane w raporcie | G155: P_9 | H155: P_4 | J155: P_9
B156: 9 | C156: Polityka rachunkowości | G156: P_7 | H156: P_6 | J156: P_7 | K156: P_5 | L156: P_11
B157: 10 | C157: wycena aktywów i pasywów | G157: P_7B | H157: P_6B | J157: P_7B | K157: P_5B | L157: P_11C
B158: 11 | C158: ustalenie wyniku fin. | G158: P_7C | J158: P_7C | L158: P_11E
B159: 12 | C159: sporządzanie sprawozdań finansowych | G159: P_7D | J159: P_7D | L159: P_11F
B160: 13 | C160: Uwagi | G160: P_8 | H160: P_7 | J160: P_8 | K160: P_6 | L160: P_14
B161: 14 | C161: Lista jednostek odporządkowanych | L161: P_2
B162: 15 | C162: Lista jednostek innych niż podporządkowane | L162: P_4
B163: 16 | C163: Lista jednostekwyłączonych z raportu | L163: P_5
B164: 22 | C164: Lista jednostek o ograniczonym czasie trwania | L164: P_6
B165: 23 | C165: Lista jednostek o innych okresach | L165: P_7
